{"text_format":"1","workbook":"xlsx","n_sheets":5,"sheets":["RACE SETUP","DISPLAY NOTICE","CALCULATIONS","PY DATA","Changes"],"not_rendered":{"charts":0,"images":0,"macros":1,"external_links":0,"defined_names":4,"comments":0,"pivot_tables":0},"unopened":[],"bounds":{"document_bytes":16777216,"sheet_cells":100000,"rows_first":2000,"rows_last":500,"rows_between":2000,"halvings":0,"cell_chars":16384,"cell_head_chars":4096},"cells_cut":0,"cells_raw":0,"read":"whole","date_system":"1900"}

{"sheet":"RACE SETUP","index":0,"n_rows":24,"n_cols":4,"rows_kept":24,"cut":false,"hidden":false,"merged":[]}
[]
[null,"Pursuit Race Timing Sheet  -  RACE SETUP"]
[]
[null,"Race Start Time for Ref PY","12:00:00"," HH:MM"]
[]
[null,"Race Duration for Ref PY",100," minutes"]
[]
[null,"Slowest Class Competing (Ref PY)","Gull"]
[]
[null,"Reference PY",{"$f":"VLOOKUP(C8,'PY DATA'!F3:G97,2,FALSE)","v":1388}]
[]
[null,"Finish",{"$f":"C4+(C6/60)/24","v":"13:40:00"},"  (= Start time + Race duration)"]
[]
[null,"RACE will be "]
[null,{"$f":" \"Based on:\"&\" \"&C8&\" (PY \"&C10&\")  racing for \"&C6&\" minutes\"","v":"Based on: Gull (PY 1388)  racing for 100 minutes"}]
[]
[null,"INSTRUCTIONS"]
[null,"1 - Update the list of classes and PYs in the sheet \"PY DATA\""]
[null,"2 - Enter Race Start Time for the Reference (slowest) class"]
[null,"3 - Enter the Duration of race for the Reference Class"]
[null,"4 - Click in the Slowest Class cell and then open the drop-down list - Choose the Reference class"]
[null,"5 - Check the DISPLAY NOTICE sheet (edit year if necessary) and then Print"]
[]
[null,"[Changes to the list of classes shown on the DISPLAY NOTICE are made in the PY DATA sheet.] "]

{"sheet":"DISPLAY NOTICE","index":1,"n_rows":53,"n_cols":6,"rows_kept":53,"cut":false,"hidden":false,"merged":[[3,3,3,4],[3,1,4,1],[3,5,4,5],[3,2,4,2]]}
[null,"PURSUIT RACE - START TIME OFFSETS FOR EACH CLASS      2025"]
[null,{"$f":"'RACE SETUP'!B15","v":"Based on: Gull (PY 1388)  racing for 100 minutes"}]
[]
[null,"Scheduled Start Time","START TIME OFFSET","Yardstick range",null,"Classes starting"]
[null,null,null,"from","to"]
[]
[null,{"$f":"CALCULATIONS!B28","v":"12:00:00"},0,{"$f":"CALCULATIONS!F28","v":1382},{"$f":"CALCULATIONS!G28","v":1394},{"$f":"CALCULATIONS!I28","v":"Gull"}]
[null,{"$f":"CALCULATIONS!B29","v":"12:01:00"},{"$f":"C7+1","v":1},{"$f":"CALCULATIONS!F29","v":1368},{"$f":"CALCULATIONS!G29","v":1381},{"$f":"CALCULATIONS!I29","v":" "}]
[null,{"$f":"CALCULATIONS!B30","v":"12:02:00"},{"$f":"C8+1","v":2},{"$f":"CALCULATIONS!F30","v":1354},{"$f":"CALCULATIONS!G30","v":1367},{"$f":"CALCULATIONS!I30","v":"Topper"}]
[null,{"$f":"CALCULATIONS!B31","v":"12:03:00"},3,{"$f":"CALCULATIONS!F31","v":1340},{"$f":"CALCULATIONS!G31","v":1353},{"$f":"CALCULATIONS!I31","v":" "}]
[null,{"$f":"CALCULATIONS!B32","v":"12:04:00"},4,{"$f":"CALCULATIONS!F32","v":1326},{"$f":"CALCULATIONS!G32","v":1339},{"$f":"CALCULATIONS!I32","v":"Pico"}]
[null,{"$f":"CALCULATIONS!B33","v":"12:05:00"},5,{"$f":"CALCULATIONS!F33","v":1312},{"$f":"CALCULATIONS!G33","v":1325},{"$f":"CALCULATIONS!I33","v":" "}]
[null,{"$f":"CALCULATIONS!B34","v":"12:06:00"},6,{"$f":"CALCULATIONS!F34","v":1298},{"$f":"CALCULATIONS!G34","v":1311},{"$f":"CALCULATIONS!I34","v":"Quba S"}]
[null,{"$f":"CALCULATIONS!B35","v":"12:07:00"},7,{"$f":"CALCULATIONS!F35","v":1284},{"$f":"CALCULATIONS!G35","v":1297},{"$f":"CALCULATIONS!I35","v":" "}]
[null,{"$f":"CALCULATIONS!B36","v":"12:08:00"},8,{"$f":"CALCULATIONS!F36","v":1271},{"$f":"CALCULATIONS!G36","v":1283},{"$f":"CALCULATIONS!I36","v":"Feva S"}]
[null,{"$f":"CALCULATIONS!B37","v":"12:09:00"},9,{"$f":"CALCULATIONS!F37","v":1257},{"$f":"CALCULATIONS!G37","v":1270},{"$f":"CALCULATIONS!I37","v":"Topaz Uno"}]
[null,{"$f":"CALCULATIONS!B38","v":"12:10:00"},10,{"$f":"CALCULATIONS!F38","v":1243},{"$f":"CALCULATIONS!G38","v":1256},{"$f":"CALCULATIONS!I38","v":" "}]
[null,{"$f":"CALCULATIONS!B39","v":"12:11:00"},11,{"$f":"CALCULATIONS!F39","v":1229},{"$f":"CALCULATIONS!G39","v":1242},{"$f":"CALCULATIONS!I39","v":" "}]
[null,{"$f":"CALCULATIONS!B40","v":"12:12:00"},12,{"$f":"CALCULATIONS!F40","v":1215},{"$f":"CALCULATIONS!G40","v":1228},{"$f":"CALCULATIONS!I40","v":" "}]
[null,{"$f":"CALCULATIONS!B41","v":"12:13:00"},13,{"$f":"CALCULATIONS!F41","v":1201},{"$f":"CALCULATIONS!G41","v":1214},{"$f":"CALCULATIONS!I41","v":4.7}]
[null,{"$f":"CALCULATIONS!B42","v":"12:14:00"},14,{"$f":"CALCULATIONS!F42","v":1187},{"$f":"CALCULATIONS!G42","v":1200},{"$f":"CALCULATIONS!I42","v":"Wanderer,  Miracle,  Lightning"}]
[null,{"$f":"CALCULATIONS!B43","v":"12:15:00"},15,{"$f":"CALCULATIONS!F43","v":1173},{"$f":"CALCULATIONS!G43","v":1186},{"$f":"CALCULATIONS!I43","v":" "}]
[null,{"$f":"CALCULATIONS!B44","v":"12:16:00"},16,{"$f":"CALCULATIONS!F44","v":1159},{"$f":"CALCULATIONS!G44","v":1172},{"$f":"CALCULATIONS!I44","v":"Enterprise,  Graduate (orig)"}]
[null,{"$f":"CALCULATIONS!B45","v":"12:17:00"},17,{"$f":"CALCULATIONS!F45","v":1146},{"$f":"CALCULATIONS!G45","v":1158},{"$f":"CALCULATIONS!I45","v":"Radial,  Europe"}]
[null,{"$f":"CALCULATIONS!B46","v":"12:18:00"},18,{"$f":"CALCULATIONS!F46","v":1132},{"$f":"CALCULATIONS!G46","v":1145},{"$f":"CALCULATIONS!I46","v":"Vision"}]
[null,{"$f":"CALCULATIONS!B47","v":"12:19:00"},19,{"$f":"CALCULATIONS!F47","v":1118},{"$f":"CALCULATIONS!G47","v":1131},{"$f":"CALCULATIONS!I47","v":"Graduate (new),  Streaker"}]
[null,{"$f":"CALCULATIONS!B48","v":"12:20:00"},20,{"$f":"CALCULATIONS!F48","v":1104},{"$f":"CALCULATIONS!G48","v":1117},{"$f":"CALCULATIONS!I48","v":"Wayfarer,  Vareo"}]
[null,{"$f":"CALCULATIONS!B49","v":"12:21:00"},21,{"$f":"CALCULATIONS!F49","v":1090},{"$f":"CALCULATIONS!G49","v":1103},{"$f":"CALCULATIONS!I49","v":"Laser"}]
[null,{"$f":"CALCULATIONS!B50","v":"12:22:00"},22,{"$f":"CALCULATIONS!F50","v":1076},{"$f":"CALCULATIONS!G50","v":1089},{"$f":"CALCULATIONS!I50","v":" "}]
[null,{"$f":"CALCULATIONS!B51","v":"12:23:00"},23,{"$f":"CALCULATIONS!F51","v":1062},{"$f":"CALCULATIONS!G51","v":1075},{"$f":"CALCULATIONS!I51","v":"Vago XD"}]
[null,{"$f":"CALCULATIONS!B52","v":"12:24:00"},24,{"$f":"CALCULATIONS!F52","v":1048},{"$f":"CALCULATIONS!G52","v":1061},{"$f":"CALCULATIONS!I52","v":"Blaze Fire"}]
[null,{"$f":"CALCULATIONS!B53","v":"12:25:00"},25,{"$f":"CALCULATIONS!F53","v":1035},{"$f":"CALCULATIONS!G53","v":1047},{"$f":"CALCULATIONS!I53","v":" "}]
[null,{"$f":"CALCULATIONS!B54","v":"12:26:00"},26,{"$f":"CALCULATIONS!F54","v":1021},{"$f":"CALCULATIONS!G54","v":1034},{"$f":"CALCULATIONS!I54","v":"Blaze"}]
[null,{"$f":"CALCULATIONS!B55","v":"12:27:00"},27,{"$f":"CALCULATIONS!F55","v":1007},{"$f":"CALCULATIONS!G55","v":1020},{"$f":"CALCULATIONS!I55","v":" "}]
[null,{"$f":"CALCULATIONS!B56","v":"12:28:00"},28,{"$f":"CALCULATIONS!F56","v":993},{"$f":"CALCULATIONS!G56","v":1006},{"$f":"CALCULATIONS!I56","v":" "}]
[null,{"$f":"CALCULATIONS!B57","v":"12:29:00"},29,{"$f":"CALCULATIONS!F57","v":979},{"$f":"CALCULATIONS!G57","v":992},{"$f":"CALCULATIONS!I57","v":" "}]
[null,{"$f":"CALCULATIONS!B58","v":"12:30:00"},30,{"$f":"CALCULATIONS!F58","v":965},{"$f":"CALCULATIONS!G58","v":978},{"$f":"CALCULATIONS!I58","v":"Contender"}]
[null,{"$f":"CALCULATIONS!B59","v":"12:31:00"},31,{"$f":"CALCULATIONS!F59","v":951},{"$f":"CALCULATIONS!G59","v":964},{"$f":"CALCULATIONS!I59","v":4000}]
[null,{"$f":"CALCULATIONS!B60","v":"12:32:00"},32,{"$f":"CALCULATIONS!F60","v":937},{"$f":"CALCULATIONS!G60","v":950},{"$f":"CALCULATIONS!I60","v":"Osprey,  RS 400"}]
[null,{"$f":"CALCULATIONS!B61","v":"12:33:00"},33,{"$f":"CALCULATIONS!F61","v":924},{"$f":"CALCULATIONS!G61","v":936},{"$f":"CALCULATIONS!I61","v":" "}]
[null,{"$f":"CALCULATIONS!B62","v":"12:34:00"},34,{"$f":"CALCULATIONS!F62","v":910},{"$f":"CALCULATIONS!G62","v":923},{"$f":"CALCULATIONS!I62","v":"RS 600"}]
[null,{"$f":"CALCULATIONS!B63","v":"12:35:00"},35,{"$f":"CALCULATIONS!F63","v":896},{"$f":"CALCULATIONS!G63","v":909},{"$f":"CALCULATIONS!I63","v":" "}]
[null,{"$f":"CALCULATIONS!B64","v":"12:36:00"},36,{"$f":"CALCULATIONS!F64","v":882},{"$f":"CALCULATIONS!G64","v":895},{"$f":"CALCULATIONS!I64","v":" "}]
[null,{"$f":"CALCULATIONS!B65","v":"12:37:00"},{"$f":"C43+1","v":37},{"$f":"CALCULATIONS!F65","v":868},{"$f":"CALCULATIONS!G65","v":881},{"$f":"CALCULATIONS!I65","v":" "}]
[null,{"$f":"CALCULATIONS!B66","v":"12:38:00"},38,{"$f":"CALCULATIONS!F66","v":854},{"$f":"CALCULATIONS!G66","v":867},{"$f":"CALCULATIONS!I66","v":" "}]
[null,{"$f":"CALCULATIONS!B67","v":"12:39:00"},39,{"$f":"CALCULATIONS!F67","v":840},{"$f":"CALCULATIONS!G67","v":853},{"$f":"CALCULATIONS!I67","v":" "}]
[null,{"$f":"CALCULATIONS!B68","v":"12:40:00"},40,{"$f":"CALCULATIONS!F68","v":826},{"$f":"CALCULATIONS!G68","v":839},{"$f":"CALCULATIONS!I68","v":" "}]
[null,{"$f":"CALCULATIONS!B69","v":"12:41:00"},41,{"$f":"CALCULATIONS!F69","v":812},{"$f":"CALCULATIONS!G69","v":825},{"$f":"CALCULATIONS!I69","v":" "}]
[null,{"$f":"CALCULATIONS!B70","v":"12:42:00"},42,{"$f":"CALCULATIONS!F70","v":799},{"$f":"CALCULATIONS!G70","v":811},{"$f":"CALCULATIONS!I70","v":" "}]
[null,{"$f":"CALCULATIONS!B71","v":"12:43:00"},43,{"$f":"CALCULATIONS!F71","v":785},{"$f":"CALCULATIONS!G71","v":798},{"$f":"CALCULATIONS!I71","v":" "}]
[null,{"$f":"CALCULATIONS!B72","v":"12:44:00"},44,{"$f":"CALCULATIONS!F72","v":771},{"$f":"CALCULATIONS!G72","v":784},{"$f":"CALCULATIONS!I72","v":" "}]
[]
[null,"RACE FINISHES AT -",null,null,null,{"$f":"B7+Race/24/60","v":"13:40:00"}]

{"sheet":"CALCULATIONS","index":2,"n_rows":89,"n_cols":9,"rows_kept":89,"cut":false,"hidden":false,"merged":[]}
[]
[null,"Start",{"$f":"'RACE SETUP'!C4","v":"12:00:00"}]
[null,"Finish",{"$f":"'RACE SETUP'!C12","v":"13:40:00"},null,6.9444444444444436E-4]
[null,"Race",{"$f":"'RACE SETUP'!C6","v":100}," mins",null,null,1480]
[null,"RefPY",{"$f":"'RACE SETUP'!C10","v":1388}]
[]
[null,"Start time","Race length","upper time","upper PY","min PY","max PY","GROUP"]
[]
[null,{"$f":"B10-1/24/60","v":"11:41:00"},{"$f":"C10+1","v":119},{"$f":"C9+0.5","v":119.5},{"$f":"D9/Race*RefPY","v":1658.66},{"$f":"G10+1","v":1645},{"$f":"INT(E9)","v":1658}]
[null,"11:42:00",118,118.5,1644.78,1631,{"$f":"INT(E10)","v":1644}]
[null,"11:43:00",117,117.5,1630.9,1618,1630]
[null,"11:44:00",116,116.5,1617.02,1604,1617]
[null,"11:45:00",115,115.5,1603.14,1590,1603]
[null,"11:46:00",114,114.5,1589.26,1576,1589]
[null,"11:47:00",113,113.5,1575.38,1562,1575]
[null,{"$f":"B17-1/24/60","v":"11:48:00"},{"$f":"C17+1","v":112},{"$f":"C16+0.5","v":112.5},{"$f":"D16/Race*RefPY","v":1561.5},{"$f":"G17+1","v":1548},{"$f":"INT(E16)","v":1561}]
[null,"11:49:00",111,111.5,1547.62,1534,1547]
[null,"11:50:00",110,110.5,1533.74,1520,1533]
[null,"11:51:00",109,109.5,1519.86,1506,1519]
[null,"11:52:00",108,108.5,1505.98,1493,1505]
[null,"11:53:00",107,107.5,1492.1,1479,1492]
[null,"11:54:00",106,106.5,1478.22,1465,1478]
[null,"11:55:00",105,105.5,1464.34,1451,1464]
[null,"11:56:00",104,104.5,1450.4599999999998,{"$f":"G25+1","v":1437},{"$f":"INT(E24)","v":1450}]
[null,"11:57:00",103,103.5,1436.58,{"$f":"G26+1","v":1423},{"$f":"INT(E25)","v":1436}]
[null,"11:58:00",102,102.5,1422.6999999999998,{"$f":"G27+1","v":1409},{"$f":"INT(E26)","v":1422}]
[null,"11:59:00",101,{"$f":"C27+0.5","v":101.5},{"$f":"D27/Race*RefPY","v":1408.82},{"$f":"G28+1","v":1395},{"$f":"INT(E27)","v":1408}]
[null,{"$f":"Start","v":"12:00:00"},{"$f":"Race","v":100},{"$f":"C28+0.5","v":100.5},{"$f":"D28/Race*RefPY","v":1394.9399999999998},{"$f":"G29+1","v":1382},{"$f":"INT(E28)","v":1394},1,{"$f":"IF(ISERROR((VLOOKUP(H28,'PY DATA'!$Q$3:$S$100,3,FALSE))),\" \",VLOOKUP(H28,'PY DATA'!$Q$3:$S$100,3,FALSE))","v":"Gull"}]
[null,{"$f":"B28+1/24/60","v":"12:01:00"},{"$f":"C28-1","v":99},{"$f":"C29+0.5","v":99.5},1381.06,{"$f":"G30+1","v":1368},{"$f":"INT(E29)","v":1381},{"$f":"H28+1","v":2},{"$f":"IF(ISERROR((VLOOKUP(H29,'PY DATA'!$Q$3:$S$100,3,FALSE))),\" \",VLOOKUP(H29,'PY DATA'!$Q$3:$S$100,3,FALSE))","v":" "}]
[null,{"$f":"B29+1/24/60","v":"12:02:00"},{"$f":"C29-1","v":98},98.5,1367.18,1354,1367,{"$f":"H29+1","v":3},{"$f":"IF(ISERROR((VLOOKUP(H30,'PY DATA'!$Q$3:$S$100,3,FALSE))),\" \",VLOOKUP(H30,'PY DATA'!$Q$3:$S$100,3,FALSE))","v":"Topper"}]
[null,"12:03:00",97,97.5,1353.3,1340,1353,4,{"$f":"IF(ISERROR((VLOOKUP(H31,'PY DATA'!$Q$3:$S$100,3,FALSE))),\" \",VLOOKUP(H31,'PY DATA'!$Q$3:$S$100,3,FALSE))","v":" "}]
[null,"12:04:00",96,96.5,1339.4199999999998,1326,1339,5,{"$f":"IF(ISERROR((VLOOKUP(H32,'PY DATA'!$Q$3:$S$100,3,FALSE))),\" \",VLOOKUP(H32,'PY DATA'!$Q$3:$S$100,3,FALSE))","v":"Pico"}]
[null,"12:05:00",95,95.5,1325.54,1312,1325,6,{"$f":"IF(ISERROR((VLOOKUP(H33,'PY DATA'!$Q$3:$S$100,3,FALSE))),\" \",VLOOKUP(H33,'PY DATA'!$Q$3:$S$100,3,FALSE))","v":" "}]
[null,"12:06:00",94,94.5,1311.6599999999999,1298,1311,7,{"$f":"IF(ISERROR((VLOOKUP(H34,'PY DATA'!$Q$3:$S$100,3,FALSE))),\" \",VLOOKUP(H34,'PY DATA'!$Q$3:$S$100,3,FALSE))","v":"Quba S"}]
[null,"12:07:00",93,93.5,1297.78,1284,1297,8,{"$f":"IF(ISERROR((VLOOKUP(H35,'PY DATA'!$Q$3:$S$100,3,FALSE))),\" \",VLOOKUP(H35,'PY DATA'!$Q$3:$S$100,3,FALSE))","v":" "}]
[null,"12:08:00",92,92.5,1283.9000000000001,1271,1283,9,{"$f":"IF(ISERROR((VLOOKUP(H36,'PY DATA'!$Q$3:$S$100,3,FALSE))),\" \",VLOOKUP(H36,'PY DATA'!$Q$3:$S$100,3,FALSE))","v":"Feva S"}]
[null,"12:09:00",91,91.5,1270.02,1257,1270,10,{"$f":"IF(ISERROR((VLOOKUP(H37,'PY DATA'!$Q$3:$S$100,3,FALSE))),\" \",VLOOKUP(H37,'PY DATA'!$Q$3:$S$100,3,FALSE))","v":"Topaz Uno"}]
[null,"12:10:00",90,90.5,1256.1400000000001,1243,1256,11,{"$f":"IF(ISERROR((VLOOKUP(H38,'PY DATA'!$Q$3:$S$100,3,FALSE))),\" \",VLOOKUP(H38,'PY DATA'!$Q$3:$S$100,3,FALSE))","v":" "}]
[null,"12:11:00",89,89.5,1242.26,1229,1242,12,{"$f":"IF(ISERROR((VLOOKUP(H39,'PY DATA'!$Q$3:$S$100,3,FALSE))),\" \",VLOOKUP(H39,'PY DATA'!$Q$3:$S$100,3,FALSE))","v":" "}]
[null,"12:12:00",88,88.5,1228.3800000000001,1215,1228,13,{"$f":"IF(ISERROR((VLOOKUP(H40,'PY DATA'!$Q$3:$S$100,3,FALSE))),\" \",VLOOKUP(H40,'PY DATA'!$Q$3:$S$100,3,FALSE))","v":" "}]
[null,"12:13:00",87,87.5,1214.5,1201,1214,14,{"$f":"IF(ISERROR((VLOOKUP(H41,'PY DATA'!$Q$3:$S$100,3,FALSE))),\" \",VLOOKUP(H41,'PY DATA'!$Q$3:$S$100,3,FALSE))","v":4.7}]
[null,"12:14:00",86,86.5,1200.6199999999999,1187,1200,15,{"$f":"IF(ISERROR((VLOOKUP(H42,'PY DATA'!$Q$3:$S$100,3,FALSE))),\" \",VLOOKUP(H42,'PY DATA'!$Q$3:$S$100,3,FALSE))","v":"Wanderer,  Miracle,  Lightning"}]
[null,"12:15:00",85,85.5,1186.74,1173,1186,16,{"$f":"IF(ISERROR((VLOOKUP(H43,'PY DATA'!$Q$3:$S$100,3,FALSE))),\" \",VLOOKUP(H43,'PY DATA'!$Q$3:$S$100,3,FALSE))","v":" "}]
[null,"12:16:00",84,84.5,1172.8599999999999,1159,1172,17,{"$f":"IF(ISERROR((VLOOKUP(H44,'PY DATA'!$Q$3:$S$100,3,FALSE))),\" \",VLOOKUP(H44,'PY DATA'!$Q$3:$S$100,3,FALSE))","v":"Enterprise,  Graduate (orig)"}]
[null,"12:17:00",83,83.5,1158.98,1146,1158,18,{"$f":"IF(ISERROR((VLOOKUP(H45,'PY DATA'!$Q$3:$S$100,3,FALSE))),\" \",VLOOKUP(H45,'PY DATA'!$Q$3:$S$100,3,FALSE))","v":"Radial,  Europe"}]
[null,"12:18:00",82,82.5,1145.0999999999999,1132,1145,19,{"$f":"IF(ISERROR((VLOOKUP(H46,'PY DATA'!$Q$3:$S$100,3,FALSE))),\" \",VLOOKUP(H46,'PY DATA'!$Q$3:$S$100,3,FALSE))","v":"Vision"}]
[null,"12:19:00",81,81.5,1131.22,1118,1131,20,{"$f":"IF(ISERROR((VLOOKUP(H47,'PY DATA'!$Q$3:$S$100,3,FALSE))),\" \",VLOOKUP(H47,'PY DATA'!$Q$3:$S$100,3,FALSE))","v":"Graduate (new),  Streaker"}]
[null,{"$f":"B47+1/24/60","v":"12:20:00"},{"$f":"C47-1","v":80},80.5,1117.3400000000001,{"$f":"G49+1","v":1104},{"$f":"INT(E48)","v":1117},21,{"$f":"IF(ISERROR((VLOOKUP(H48,'PY DATA'!$Q$3:$S$100,3,FALSE))),\" \",VLOOKUP(H48,'PY DATA'!$Q$3:$S$100,3,FALSE))","v":"Wayfarer,  Vareo"}]
[null,"12:21:00",79,79.5,1103.46,1090,1103,22,{"$f":"IF(ISERROR((VLOOKUP(H49,'PY DATA'!$Q$3:$S$100,3,FALSE))),\" \",VLOOKUP(H49,'PY DATA'!$Q$3:$S$100,3,FALSE))","v":"Laser"}]
[null,"12:22:00",78,78.5,1089.5800000000002,1076,1089,23,{"$f":"IF(ISERROR((VLOOKUP(H50,'PY DATA'!$Q$3:$S$100,3,FALSE))),\" \",VLOOKUP(H50,'PY DATA'!$Q$3:$S$100,3,FALSE))","v":" "}]
[null,"12:23:00",77,77.5,1075.7,1062,1075,24,{"$f":"IF(ISERROR((VLOOKUP(H51,'PY DATA'!$Q$3:$S$100,3,FALSE))),\" \",VLOOKUP(H51,'PY DATA'!$Q$3:$S$100,3,FALSE))","v":"Vago XD"}]
[null,"12:24:00",76,76.5,1061.82,1048,1061,25,{"$f":"IF(ISERROR((VLOOKUP(H52,'PY DATA'!$Q$3:$S$100,3,FALSE))),\" \",VLOOKUP(H52,'PY DATA'!$Q$3:$S$100,3,FALSE))","v":"Blaze Fire"}]
[null,"12:25:00",75,75.5,1047.94,1035,1047,26,{"$f":"IF(ISERROR((VLOOKUP(H53,'PY DATA'!$Q$3:$S$100,3,FALSE))),\" \",VLOOKUP(H53,'PY DATA'!$Q$3:$S$100,3,FALSE))","v":" "}]
[null,"12:26:00",74,74.5,1034.06,1021,1034,27,{"$f":"IF(ISERROR((VLOOKUP(H54,'PY DATA'!$Q$3:$S$100,3,FALSE))),\" \",VLOOKUP(H54,'PY DATA'!$Q$3:$S$100,3,FALSE))","v":"Blaze"}]
[null,"12:27:00",73,73.5,1020.18,1007,1020,28,{"$f":"IF(ISERROR((VLOOKUP(H55,'PY DATA'!$Q$3:$S$100,3,FALSE))),\" \",VLOOKUP(H55,'PY DATA'!$Q$3:$S$100,3,FALSE))","v":" "}]
[null,"12:28:00",72,72.5,1006.3,{"$f":"G57+1","v":993},{"$f":"INT(E56)","v":1006},29,{"$f":"IF(ISERROR((VLOOKUP(H56,'PY DATA'!$Q$3:$S$100,3,FALSE))),\" \",VLOOKUP(H56,'PY DATA'!$Q$3:$S$100,3,FALSE))","v":" "}]
[null,{"$f":"B56+1/24/60","v":"12:29:00"},{"$f":"C56-1","v":71},71.5,992.42,979,{"$f":"INT(E57)","v":992},30,{"$f":"IF(ISERROR((VLOOKUP(H57,'PY DATA'!$Q$3:$S$100,3,FALSE))),\" \",VLOOKUP(H57,'PY DATA'!$Q$3:$S$100,3,FALSE))","v":" "}]
[null,{"$f":"B57+1/24/60","v":"12:30:00"},{"$f":"C57-1","v":70},70.5,978.54,965,{"$f":"INT(E58)","v":978},31,{"$f":"IF(ISERROR((VLOOKUP(H58,'PY DATA'!$Q$3:$S$100,3,FALSE))),\" \",VLOOKUP(H58,'PY DATA'!$Q$3:$S$100,3,FALSE))","v":"Contender"}]
[null,{"$f":"B58+1/24/60","v":"12:31:00"},{"$f":"C58-1","v":69},69.5,964.66,951,{"$f":"INT(E59)","v":964},32,{"$f":"IF(ISERROR((VLOOKUP(H59,'PY DATA'!$Q$3:$S$100,3,FALSE))),\" \",VLOOKUP(H59,'PY DATA'!$Q$3:$S$100,3,FALSE))","v":4000}]
[null,{"$f":"B59+1/24/60","v":"12:32:00"},{"$f":"C59-1","v":68},68.5,950.78000000000009,{"$f":"G61+1","v":937},{"$f":"INT(E60)","v":950},33,{"$f":"IF(ISERROR((VLOOKUP(H60,'PY DATA'!$Q$3:$S$100,3,FALSE))),\" \",VLOOKUP(H60,'PY DATA'!$Q$3:$S$100,3,FALSE))","v":"Osprey,  RS 400"}]
[null,{"$f":"B60+1/24/60","v":"12:33:00"},{"$f":"C60-1","v":67},67.5,936.90000000000009,{"$f":"G62+1","v":924},{"$f":"INT(E61)","v":936},{"$f":"H60+1","v":34},{"$f":"IF(ISERROR((VLOOKUP(H61,'PY DATA'!$Q$3:$S$100,3,FALSE))),\" \",VLOOKUP(H61,'PY DATA'!$Q$3:$S$100,3,FALSE))","v":" "}]
[null,"12:34:00",66,66.5,923.0200000000001,910,923,35,{"$f":"IF(ISERROR((VLOOKUP(H62,'PY DATA'!$Q$3:$S$100,3,FALSE))),\" \",VLOOKUP(H62,'PY DATA'!$Q$3:$S$100,3,FALSE))","v":"RS 600"}]
[null,"12:35:00",65,65.5,909.14,896,909,36,{"$f":"IF(ISERROR((VLOOKUP(H63,'PY DATA'!$Q$3:$S$100,3,FALSE))),\" \",VLOOKUP(H63,'PY DATA'!$Q$3:$S$100,3,FALSE))","v":" "}]
[null,"12:36:00",64,64.5,895.26,882,895,37,{"$f":"IF(ISERROR((VLOOKUP(H64,'PY DATA'!$Q$3:$S$100,3,FALSE))),\" \",VLOOKUP(H64,'PY DATA'!$Q$3:$S$100,3,FALSE))","v":" "}]
[null,"12:37:00",63,63.5,881.38,868,881,38,{"$f":"IF(ISERROR((VLOOKUP(H65,'PY DATA'!$Q$3:$S$100,3,FALSE))),\" \",VLOOKUP(H65,'PY DATA'!$Q$3:$S$100,3,FALSE))","v":" "}]
[null,"12:38:00",62,62.5,867.5,854,867,39,{"$f":"IF(ISERROR((VLOOKUP(H66,'PY DATA'!$Q$3:$S$100,3,FALSE))),\" \",VLOOKUP(H66,'PY DATA'!$Q$3:$S$100,3,FALSE))","v":" "}]
[null,"12:39:00",61,61.5,853.62,840,853,40,{"$f":"IF(ISERROR((VLOOKUP(H67,'PY DATA'!$Q$3:$S$100,3,FALSE))),\" \",VLOOKUP(H67,'PY DATA'!$Q$3:$S$100,3,FALSE))","v":" "}]
[null,"12:40:00",60,60.5,839.74,826,839,41,{"$f":"IF(ISERROR((VLOOKUP(H68,'PY DATA'!$Q$3:$S$100,3,FALSE))),\" \",VLOOKUP(H68,'PY DATA'!$Q$3:$S$100,3,FALSE))","v":" "}]
[null,"12:41:00",59,59.5,825.86,812,825,42,{"$f":"IF(ISERROR((VLOOKUP(H69,'PY DATA'!$Q$3:$S$100,3,FALSE))),\" \",VLOOKUP(H69,'PY DATA'!$Q$3:$S$100,3,FALSE))","v":" "}]
[null,"12:42:00",58,58.5,811.9799999999999,799,811,43,{"$f":"IF(ISERROR((VLOOKUP(H70,'PY DATA'!$Q$3:$S$100,3,FALSE))),\" \",VLOOKUP(H70,'PY DATA'!$Q$3:$S$100,3,FALSE))","v":" "}]
[null,"12:43:00",57,57.5,798.09999999999991,785,798,44,{"$f":"IF(ISERROR((VLOOKUP(H71,'PY DATA'!$Q$3:$S$100,3,FALSE))),\" \",VLOOKUP(H71,'PY DATA'!$Q$3:$S$100,3,FALSE))","v":" "}]
[null,"12:44:00",56,56.5,784.21999999999991,771,784,45,{"$f":"IF(ISERROR((VLOOKUP(H72,'PY DATA'!$Q$3:$S$100,3,FALSE))),\" \",VLOOKUP(H72,'PY DATA'!$Q$3:$S$100,3,FALSE))","v":" "}]
[null,"12:45:00",55,55.5,770.34,757,770,46,{"$f":"IF(ISERROR((VLOOKUP(H73,'PY DATA'!$Q$3:$S$100,3,FALSE))),\" \",VLOOKUP(H73,'PY DATA'!$Q$3:$S$100,3,FALSE))","v":" "}]
[null,"12:46:00",54,54.5,756.46,743,756,47,{"$f":"IF(ISERROR((VLOOKUP(H74,'PY DATA'!$Q$3:$S$100,3,FALSE))),\" \",VLOOKUP(H74,'PY DATA'!$Q$3:$S$100,3,FALSE))","v":" "}]
[null,"12:47:00",53,53.5,742.58,729,742,48,{"$f":"IF(ISERROR((VLOOKUP(H75,'PY DATA'!$Q$3:$S$100,3,FALSE))),\" \",VLOOKUP(H75,'PY DATA'!$Q$3:$S$100,3,FALSE))","v":" "}]
[null,"12:48:00",52,52.5,728.7,715,728,49,{"$f":"IF(ISERROR((VLOOKUP(H76,'PY DATA'!$Q$3:$S$100,3,FALSE))),\" \",VLOOKUP(H76,'PY DATA'!$Q$3:$S$100,3,FALSE))","v":" "}]
[null,"12:49:00",51,51.5,714.82,701,714,50,{"$f":"IF(ISERROR((VLOOKUP(H77,'PY DATA'!$Q$3:$S$100,3,FALSE))),\" \",VLOOKUP(H77,'PY DATA'!$Q$3:$S$100,3,FALSE))","v":" "}]
[null,"12:50:00",50,50.5,700.94,688,700,51,{"$f":"IF(ISERROR((VLOOKUP(H78,'PY DATA'!$Q$3:$S$100,3,FALSE))),\" \",VLOOKUP(H78,'PY DATA'!$Q$3:$S$100,3,FALSE))","v":" "}]
[null,"12:51:00",49,49.5,687.06,674,687,52,{"$f":"IF(ISERROR((VLOOKUP(H79,'PY DATA'!$Q$3:$S$100,3,FALSE))),\" \",VLOOKUP(H79,'PY DATA'!$Q$3:$S$100,3,FALSE))","v":" "}]
[null,"12:52:00",48,48.5,673.18,660,673,53,{"$f":"IF(ISERROR((VLOOKUP(H80,'PY DATA'!$Q$3:$S$100,3,FALSE))),\" \",VLOOKUP(H80,'PY DATA'!$Q$3:$S$100,3,FALSE))","v":" "}]
[null,"12:53:00",47,47.5,659.3,646,659,54,{"$f":"IF(ISERROR((VLOOKUP(H81,'PY DATA'!$Q$3:$S$100,3,FALSE))),\" \",VLOOKUP(H81,'PY DATA'!$Q$3:$S$100,3,FALSE))","v":" "}]
[null,"12:54:00",46,46.5,645.42000000000007,632,645,55,{"$f":"IF(ISERROR((VLOOKUP(H82,'PY DATA'!$Q$3:$S$100,3,FALSE))),\" \",VLOOKUP(H82,'PY DATA'!$Q$3:$S$100,3,FALSE))","v":" "}]
[null,"12:55:00",45,45.5,631.54000000000008,618,631,56,{"$f":"IF(ISERROR((VLOOKUP(H83,'PY DATA'!$Q$3:$S$100,3,FALSE))),\" \",VLOOKUP(H83,'PY DATA'!$Q$3:$S$100,3,FALSE))","v":" "}]
[null,"12:56:00",44,44.5,617.66,0,617,57,{"$f":"IF(ISERROR((VLOOKUP(H84,'PY DATA'!$Q$3:$S$100,3,FALSE))),\" \",VLOOKUP(H84,'PY DATA'!$Q$3:$S$100,3,FALSE))","v":" "}]
[]
[]
[null,null,"upper PY =  upper time  *  Ref PY  /  Race"]
[null,null,"max PY  =  INT(upper PY)"]
[null,null,"min PY = max PY of the next start time  +  1"]

{"sheet":"PY DATA","index":3,"n_rows":1330,"n_cols":19,"rows_kept":1330,"cut":false,"hidden":false,"merged":[]}
[]
[null,"PY","GROUP",null,"Group","Class Name","PY","Classes in Race",null,"GROUP",null,null,null,null,"GROUP CLASS",null,"Group",null,"Group Classes"]
[null,{"$f":"MIN($G$3:$G$97)-20","v":896},{"$f":"Race-INT(Race*B3/RefPY+0.5)+1","v":36},null,{"$f":"VLOOKUP(G3,$B$3:$C$1500,2,FALSE)","v":1},"Gull",1388,{"$f":"IF((G3<=RefPY), F3,\"X\")","v":"Gull"},null,{"$f":"VLOOKUP(G3,$B$3:$C$1500,2,FALSE)","v":1},{"$f":"J3&\"-\"&L3","v":"1-1"},{"$f":"IF(J3=J2,L2+1,1)","v":1},{"$f":"COUNTIF($J$3:$J$97,J3)","v":1},{"$f":"J3&\"-\"&M3","v":"1-1"},{"$f":"IF((J3=J2)*AND(O2<>\"X\"),O2&\",  \"&H3,H3)","v":"Gull"},null,1,{"$f":"VLOOKUP(Q3,$J$3:$N$97,5,FALSE)","v":"1-1"},{"$f":"VLOOKUP(R3,$K$3:$O$97,5,FALSE)","v":"Gull"}]
[null,{"$f":"B3+1","v":897},{"$f":"Race-INT(Race*B4/RefPY+0.5)+1","v":36},null,3,"Topper",1363,{"$f":"IF((G4<=RefPY), F4,\"X\")","v":"Topper"},null,3,{"$f":"J4&\"-\"&L4","v":"3-1"},{"$f":"IF(J4=J3,L3+1,1)","v":1},{"$f":"COUNTIF($J$3:$J$97,J4)","v":1},{"$f":"J4&\"-\"&M4","v":"3-1"},{"$f":"IF((J4=J3)*AND(O3<>\"X\"),O3&\",  \"&H4,H4)","v":"Topper"},null,{"$f":"Q3+1","v":2},{"$f":"VLOOKUP(Q4,$J$3:$N$97,5,FALSE)","v":{"$error":"#N/A"}},{"$f":"VLOOKUP(R4,$K$3:$O$97,5,FALSE)","v":{"$error":"#N/A"}}]
[null,{"$f":"B4+1","v":898},36,null,5,"Pico",1330,"Pico",null,5,"5-1",1,{"$f":"COUNTIF($J$3:$J$97,J5)","v":1},"5-1","Pico",null,{"$f":"Q4+1","v":3},"3-1","Topper"]
[null,899,36,null,7,"Quba S",1300,"Quba S",null,7,"7-1",1,1,"7-1","Quba S",null,4,{"$error":"#N/A"},{"$error":"#N/A"}]
[null,900,36,null,9,"Feva S",1282,"Feva S",null,9,"9-1",1,1,"9-1","Feva S",null,5,"5-1","Pico"]
[null,901,36,null,10,"Topaz Uno",1257,"Topaz Uno",null,10,"10-1",1,1,"10-1","Topaz Uno",null,6,{"$error":"#N/A"},{"$error":"#N/A"}]
[null,902,36,null,14,4.7,1210,4.7,null,14,"14-1",1,1,"14-1",4.7,null,7,"7-1","Quba S"]
[null,903,36,null,15,"Wanderer",1200,"Wanderer",null,15,"15-1",1,3,"15-3","Wanderer",null,8,{"$error":"#N/A"},{"$error":"#N/A"}]
[null,904,36,null,15,"Miracle",1196,"Miracle",null,15,"15-2",2,3,"15-3","Wanderer,  Miracle",null,9,"9-1","Feva S"]
[null,905,36,null,15,"Lightning",1191,"Lightning",null,15,"15-3",3,3,"15-3","Wanderer,  Miracle,  Lightning",null,10,"10-1","Topaz Uno"]
[null,906,36,null,17,"Enterprise",1160,"Enterprise",null,17,"17-1",1,2,"17-2","Enterprise",null,11,{"$error":"#N/A"},{"$error":"#N/A"}]
[null,907,36,null,17,"Graduate (orig)",1159,"Graduate (orig)",null,17,"17-2",2,2,"17-2","Enterprise,  Graduate (orig)",null,12,{"$error":"#N/A"},{"$error":"#N/A"}]
[null,908,36,null,18,"Radial",1154,"Radial",null,18,"18-1",1,2,"18-2","Radial",null,13,{"$error":"#N/A"},{"$error":"#N/A"}]
[null,909,36,null,18,"Europe",1153,"Europe",null,18,"18-2",2,2,"18-2","Radial,  Europe",null,14,"14-1",4.7]
[null,910,35,null,19,"Vision",1138,"Vision",null,19,"19-1",1,1,"19-1","Vision",null,15,"15-3","Wanderer,  Miracle,  Lightning"]
[null,911,35,null,20,"Graduate (new)",1125,"Graduate (new)",null,20,"20-1",1,2,"20-2","Graduate (new)",null,16,{"$error":"#N/A"},{"$error":"#N/A"}]
[null,912,35,null,20,"Streaker",1124,"Streaker",null,20,"20-2",2,2,"20-2","Graduate (new),  Streaker",null,17,"17-2","Enterprise,  Graduate (orig)"]
[null,913,35,null,21,"Wayfarer",1116,"Wayfarer",null,21,"21-1",1,2,"21-2","Wayfarer",null,18,"18-2","Radial,  Europe"]
[null,914,35,null,21,"Vareo",1108,"Vareo",null,21,"21-2",2,2,"21-2","Wayfarer,  Vareo",null,19,"19-1","Vision"]
[null,915,35,null,22,"Laser",1099,"Laser",null,22,"22-1",1,1,"22-1","Laser",null,20,"20-2",{"$f":"VLOOKUP(R22,$K$3:$O$97,5,FALSE)","v":"Graduate (new),  Streaker"}]
[null,916,35,null,24,"Vago XD",1072,"Vago XD",null,24,"24-1",1,1,"24-1","Vago XD",null,21,"21-2","Wayfarer,  Vareo"]
[null,917,35,null,25,"Blaze Fire",1050,"Blaze Fire",null,25,"25-1",1,1,"25-1","Blaze Fire",null,22,"22-1","Laser"]
[null,918,35,null,27,"Blaze",1027,"Blaze",null,27,"27-1",1,1,"27-1","Blaze",null,23,{"$error":"#N/A"},{"$error":"#N/A"}]
[null,919,35,null,31,"Contender",966,"Contender",null,31,"31-1",1,1,"31-1","Contender",null,24,"24-1","Vago XD"]
[null,920,35,null,32,4000,955,4000,null,32,"32-1",1,1,"32-1",4000,null,25,"25-1","Blaze Fire"]
[null,921,35,null,33,"Osprey",950,"Osprey",null,33,"33-1",1,2,"33-2","Osprey",null,26,{"$error":"#N/A"},{"$error":"#N/A"}]
[null,922,35,null,33,"RS 400",942,"RS 400",null,33,"33-2",2,2,"33-2","Osprey,  RS 400",null,27,"27-1","Blaze"]
[null,923,35,null,35,"RS 600",916,"RS 600",null,35,"35-1",1,1,"35-1","RS 600",null,28,{"$error":"#N/A"},{"$error":"#N/A"}]
[null,924,34,null,{"$error":"#N/A"},null,null,0,null,{"$error":"#N/A"},{"$error":"#N/A"},{"$error":"#N/A"},67,{"$error":"#N/A"},{"$error":"#N/A"},null,29,{"$error":"#N/A"},{"$error":"#N/A"}]
[null,925,34,null,{"$error":"#N/A"},null,null,0,null,{"$error":"#N/A"},{"$error":"#N/A"},{"$error":"#N/A"},67,{"$error":"#N/A"},{"$error":"#N/A"},null,30,{"$error":"#N/A"},{"$error":"#N/A"}]
[null,926,34,null,{"$error":"#N/A"},null,null,0,null,{"$error":"#N/A"},{"$error":"#N/A"},{"$error":"#N/A"},67,{"$error":"#N/A"},{"$error":"#N/A"},null,31,"31-1","Contender"]
[null,927,34,null,{"$error":"#N/A"},null,null,0,null,{"$error":"#N/A"},{"$error":"#N/A"},{"$error":"#N/A"},67,{"$error":"#N/A"},{"$error":"#N/A"},null,32,"32-1",4000]
[null,928,34,null,{"$f":"VLOOKUP(G35,$B$3:$C$1500,2,FALSE)","v":{"$error":"#N/A"}},null,null,0,null,{"$f":"VLOOKUP(G35,$B$3:$C$1500,2,FALSE)","v":{"$error":"#N/A"}},{"$error":"#N/A"},{"$error":"#N/A"},67,{"$error":"#N/A"},{"$error":"#N/A"},null,33,{"$f":"VLOOKUP(Q35,$J$3:$N$97,5,FALSE)","v":"33-2"},"Osprey,  RS 400"]
[null,929,34,null,{"$error":"#N/A"},null,null,0,null,{"$error":"#N/A"},{"$error":"#N/A"},{"$error":"#N/A"},67,{"$error":"#N/A"},{"$error":"#N/A"},null,34,{"$error":"#N/A"},{"$error":"#N/A"}]
[null,930,34,null,{"$error":"#N/A"},null,null,0,null,{"$error":"#N/A"},{"$error":"#N/A"},{"$error":"#N/A"},67,{"$error":"#N/A"},{"$error":"#N/A"},null,35,"35-1","RS 600"]
[null,931,34,null,{"$error":"#N/A"},null,null,0,null,{"$error":"#N/A"},{"$error":"#N/A"},{"$error":"#N/A"},67,{"$error":"#N/A"},{"$error":"#N/A"},null,36,{"$error":"#N/A"},{"$f":"VLOOKUP(R38,$K$3:$O$97,5,FALSE)","v":{"$error":"#N/A"}}]
[null,932,34,null,{"$error":"#N/A"},null,null,0,null,{"$error":"#N/A"},{"$error":"#N/A"},{"$error":"#N/A"},67,{"$error":"#N/A"},{"$error":"#N/A"},null,37,{"$error":"#N/A"},{"$error":"#N/A"}]
[null,933,34,null,{"$error":"#N/A"},null,null,0,null,{"$error":"#N/A"},{"$error":"#N/A"},{"$error":"#N/A"},67,{"$error":"#N/A"},{"$error":"#N/A"},null,38,{"$error":"#N/A"},{"$error":"#N/A"}]
[null,934,34,null,{"$error":"#N/A"},null,null,0,null,{"$error":"#N/A"},{"$error":"#N/A"},{"$error":"#N/A"},67,{"$error":"#N/A"},{"$error":"#N/A"},null,39,{"$error":"#N/A"},{"$error":"#N/A"}]
[null,935,34,null,{"$error":"#N/A"},null,null,0,null,{"$error":"#N/A"},{"$error":"#N/A"},{"$error":"#N/A"},67,{"$error":"#N/A"},{"$error":"#N/A"},null,40,{"$error":"#N/A"},{"$error":"#N/A"}]
[null,936,34,null,{"$error":"#N/A"},null,null,0,null,{"$error":"#N/A"},{"$error":"#N/A"},{"$error":"#N/A"},67,{"$error":"#N/A"},{"$error":"#N/A"},null,{"$f":"Q42+1","v":41},{"$error":"#N/A"},{"$error":"#N/A"}]
[null,937,33,null,{"$error":"#N/A"},null,null,0,null,{"$error":"#N/A"},{"$error":"#N/A"},{"$error":"#N/A"},67,{"$error":"#N/A"},{"$error":"#N/A"},null,42,{"$error":"#N/A"},{"$error":"#N/A"}]
[null,938,33,null,{"$error":"#N/A"},null,null,0,null,{"$error":"#N/A"},{"$error":"#N/A"},{"$error":"#N/A"},67,{"$error":"#N/A"},{"$error":"#N/A"},null,43,{"$error":"#N/A"},{"$error":"#N/A"}]
[null,939,33,null,{"$error":"#N/A"},null,null,0,null,{"$error":"#N/A"},{"$error":"#N/A"},{"$error":"#N/A"},67,{"$error":"#N/A"},{"$error":"#N/A"},null,44,{"$error":"#N/A"},{"$error":"#N/A"}]
[null,940,33,null,{"$error":"#N/A"},null,null,0,null,{"$error":"#N/A"},{"$error":"#N/A"},{"$error":"#N/A"},67,{"$error":"#N/A"},{"$error":"#N/A"},null,45,{"$error":"#N/A"},{"$error":"#N/A"}]
[null,941,33,null,{"$error":"#N/A"},null,null,0,null,{"$error":"#N/A"},{"$error":"#N/A"},{"$error":"#N/A"},67,{"$error":"#N/A"},{"$error":"#N/A"},null,46,{"$error":"#N/A"},{"$error":"#N/A"}]
[null,942,33,null,{"$error":"#N/A"},null,null,0,null,{"$error":"#N/A"},{"$error":"#N/A"},{"$error":"#N/A"},67,{"$error":"#N/A"},{"$error":"#N/A"},null,{"$f":"Q48+1","v":47},{"$error":"#N/A"},{"$error":"#N/A"}]
[null,943,33,null,{"$error":"#N/A"},null,null,0,null,{"$error":"#N/A"},{"$error":"#N/A"},{"$error":"#N/A"},67,{"$error":"#N/A"},{"$error":"#N/A"},null,48,{"$error":"#N/A"},{"$error":"#N/A"}]
[null,944,33,null,{"$error":"#N/A"},null,null,0,null,{"$error":"#N/A"},{"$error":"#N/A"},{"$error":"#N/A"},67,{"$error":"#N/A"},{"$error":"#N/A"},null,49,{"$error":"#N/A"},{"$error":"#N/A"}]
[null,945,33,null,{"$error":"#N/A"},null,null,0,null,{"$error":"#N/A"},{"$error":"#N/A"},{"$error":"#N/A"},67,{"$error":"#N/A"},{"$error":"#N/A"},null,50,{"$error":"#N/A"},{"$error":"#N/A"}]
[null,946,33,null,{"$error":"#N/A"},null,null,0,null,{"$error":"#N/A"},{"$error":"#N/A"},{"$error":"#N/A"},67,{"$error":"#N/A"},{"$error":"#N/A"},null,51,{"$error":"#N/A"},{"$error":"#N/A"}]
[null,947,33,null,{"$error":"#N/A"},null,null,0,null,{"$error":"#N/A"},{"$error":"#N/A"},{"$error":"#N/A"},67,{"$error":"#N/A"},{"$error":"#N/A"},null,52,{"$error":"#N/A"},{"$error":"#N/A"}]
[null,948,33,null,{"$error":"#N/A"},null,null,0,null,{"$error":"#N/A"},{"$error":"#N/A"},{"$error":"#N/A"},67,{"$error":"#N/A"},{"$error":"#N/A"},null,53,{"$error":"#N/A"},{"$error":"#N/A"}]
[null,949,33,null,{"$error":"#N/A"},null,null,0,null,{"$error":"#N/A"},{"$error":"#N/A"},{"$error":"#N/A"},67,{"$error":"#N/A"},{"$error":"#N/A"},null,54,{"$error":"#N/A"},{"$error":"#N/A"}]
[null,950,33,null,{"$error":"#N/A"},null,null,0,null,{"$error":"#N/A"},{"$error":"#N/A"},{"$error":"#N/A"},67,{"$error":"#N/A"},{"$error":"#N/A"},null,55,{"$error":"#N/A"},{"$error":"#N/A"}]
[null,951,32,null,{"$error":"#N/A"},null,null,0,null,{"$error":"#N/A"},{"$error":"#N/A"},{"$error":"#N/A"},67,{"$error":"#N/A"},{"$error":"#N/A"},null,56,{"$error":"#N/A"},{"$error":"#N/A"}]
[null,952,32,null,{"$error":"#N/A"},null,null,0,null,{"$error":"#N/A"},{"$error":"#N/A"},{"$error":"#N/A"},67,{"$error":"#N/A"},{"$error":"#N/A"},null,57,{"$error":"#N/A"},{"$error":"#N/A"}]
[null,953,32,null,{"$error":"#N/A"},null,null,0,null,{"$error":"#N/A"},{"$error":"#N/A"},{"$error":"#N/A"},67,{"$error":"#N/A"},{"$error":"#N/A"},null,58,{"$error":"#N/A"},{"$error":"#N/A"}]
[null,954,32,null,{"$error":"#N/A"},null,null,0,null,{"$error":"#N/A"},{"$error":"#N/A"},{"$error":"#N/A"},67,{"$error":"#N/A"},{"$error":"#N/A"},null,59,{"$error":"#N/A"},{"$error":"#N/A"}]
[null,955,32,null,{"$error":"#N/A"},null,null,0,null,{"$error":"#N/A"},{"$error":"#N/A"},{"$error":"#N/A"},67,{"$error":"#N/A"},{"$error":"#N/A"},null,60,{"$error":"#N/A"},{"$error":"#N/A"}]
[null,956,32,null,{"$error":"#N/A"},null,null,0,null,{"$error":"#N/A"},{"$error":"#N/A"},{"$error":"#N/A"},67,{"$error":"#N/A"},{"$error":"#N/A"},null,61,{"$error":"#N/A"},{"$error":"#N/A"}]
[null,957,32,null,{"$error":"#N/A"},null,null,0,null,{"$error":"#N/A"},{"$error":"#N/A"},{"$error":"#N/A"},67,{"$error":"#N/A"},{"$error":"#N/A"},null,62,{"$error":"#N/A"},{"$error":"#N/A"}]
[null,958,32,null,{"$error":"#N/A"},null,null,0,null,{"$error":"#N/A"},{"$error":"#N/A"},{"$error":"#N/A"},67,{"$error":"#N/A"},{"$error":"#N/A"},null,63,{"$error":"#N/A"},{"$error":"#N/A"}]
[null,959,32,null,{"$error":"#N/A"},null,null,0,null,{"$error":"#N/A"},{"$error":"#N/A"},{"$error":"#N/A"},67,{"$error":"#N/A"},{"$error":"#N/A"},null,64,{"$error":"#N/A"},{"$error":"#N/A"}]
[null,960,32,null,{"$f":"VLOOKUP(G67,$B$3:$C$1500,2,FALSE)","v":{"$error":"#N/A"}},null,null,0,null,{"$f":"VLOOKUP(G67,$B$3:$C$1500,2,FALSE)","v":{"$error":"#N/A"}},{"$error":"#N/A"},{"$error":"#N/A"},67,{"$error":"#N/A"},{"$error":"#N/A"},null,65,{"$error":"#N/A"},{"$error":"#N/A"}]
[null,961,{"$f":"Race-INT(Race*B68/RefPY+0.5)+1","v":32},null,{"$error":"#N/A"},null,null,{"$f":"IF((G68<=RefPY), F68,\"X\")","v":0},null,{"$error":"#N/A"},{"$f":"J68&\"-\"&L68","v":{"$error":"#N/A"}},{"$f":"IF(J68=J67,L67+1,1)","v":{"$error":"#N/A"}},{"$f":"COUNTIF($J$3:$J$97,J68)","v":67},{"$f":"J68&\"-\"&M68","v":{"$error":"#N/A"}},{"$f":"IF((J68=J67)*AND(O67<>\"X\"),O67&\",  \"&H68,H68)","v":{"$error":"#N/A"}},null,66,{"$f":"VLOOKUP(Q68,$J$3:$N$97,5,FALSE)","v":{"$error":"#N/A"}},{"$f":"VLOOKUP(R68,$K$3:$O$97,5,FALSE)","v":{"$error":"#N/A"}}]
[null,{"$f":"B68+1","v":962},32,null,{"$error":"#N/A"},null,null,0,null,{"$error":"#N/A"},{"$error":"#N/A"},{"$error":"#N/A"},67,{"$error":"#N/A"},{"$error":"#N/A"},null,67,{"$error":"#N/A"},{"$error":"#N/A"}]
[null,963,32,null,{"$error":"#N/A"},null,null,0,null,{"$error":"#N/A"},{"$error":"#N/A"},{"$error":"#N/A"},67,{"$error":"#N/A"},{"$error":"#N/A"},null,68,{"$error":"#N/A"},{"$error":"#N/A"}]
[null,964,32,null,{"$error":"#N/A"},null,null,0,null,{"$error":"#N/A"},{"$error":"#N/A"},{"$error":"#N/A"},67,{"$error":"#N/A"},{"$error":"#N/A"},null,69,{"$error":"#N/A"},{"$error":"#N/A"}]
[null,965,31,null,{"$error":"#N/A"},null,null,0,null,{"$error":"#N/A"},{"$error":"#N/A"},{"$error":"#N/A"},67,{"$error":"#N/A"},{"$error":"#N/A"},null,70,{"$error":"#N/A"},{"$error":"#N/A"}]
[null,966,31,null,{"$error":"#N/A"},null,null,0,null,{"$error":"#N/A"},{"$error":"#N/A"},{"$error":"#N/A"},67,{"$error":"#N/A"},{"$error":"#N/A"},null,71,{"$error":"#N/A"},{"$error":"#N/A"}]
[null,967,31,null,{"$error":"#N/A"},null,null,0,null,{"$error":"#N/A"},{"$f":"J74&\"-\"&L74","v":{"$error":"#N/A"}},{"$error":"#N/A"},67,{"$error":"#N/A"},{"$error":"#N/A"},null,72,{"$error":"#N/A"},{"$error":"#N/A"}]
[null,968,31,null,{"$error":"#N/A"},null,null,0,null,{"$error":"#N/A"},{"$error":"#N/A"},{"$error":"#N/A"},67,{"$error":"#N/A"},{"$error":"#N/A"},null,73,{"$error":"#N/A"},{"$error":"#N/A"}]
[null,969,31,null,{"$error":"#N/A"},null,null,0,null,{"$error":"#N/A"},{"$error":"#N/A"},{"$error":"#N/A"},67,{"$error":"#N/A"},{"$error":"#N/A"},null,74,{"$error":"#N/A"},{"$error":"#N/A"}]
[null,970,31,null,{"$error":"#N/A"},null,null,0,null,{"$error":"#N/A"},{"$error":"#N/A"},{"$error":"#N/A"},67,{"$error":"#N/A"},{"$error":"#N/A"},null,75,{"$error":"#N/A"},{"$error":"#N/A"}]
[null,971,31,null,{"$error":"#N/A"},null,null,0,null,{"$error":"#N/A"},{"$error":"#N/A"},{"$error":"#N/A"},67,{"$error":"#N/A"},{"$error":"#N/A"},null,76,{"$error":"#N/A"},{"$error":"#N/A"}]
[null,972,31,null,{"$error":"#N/A"},null,null,0,null,{"$error":"#N/A"},{"$error":"#N/A"},{"$error":"#N/A"},67,{"$error":"#N/A"},{"$error":"#N/A"},null,77,{"$error":"#N/A"},{"$error":"#N/A"}]
[null,973,31,null,{"$error":"#N/A"},null,null,0,null,{"$error":"#N/A"},{"$error":"#N/A"},{"$error":"#N/A"},67,{"$error":"#N/A"},{"$error":"#N/A"},null,78,{"$error":"#N/A"},{"$error":"#N/A"}]
[null,974,31,null,{"$error":"#N/A"},null,null,0,null,{"$error":"#N/A"},{"$error":"#N/A"},{"$error":"#N/A"},67,{"$error":"#N/A"},{"$error":"#N/A"},null,79,{"$error":"#N/A"},{"$error":"#N/A"}]
[null,975,31,null,{"$error":"#N/A"},null,null,0,null,{"$error":"#N/A"},{"$error":"#N/A"},{"$error":"#N/A"},67,{"$error":"#N/A"},{"$error":"#N/A"},null,80,{"$error":"#N/A"},{"$error":"#N/A"}]
[null,976,31,null,{"$error":"#N/A"},null,null,0,null,{"$error":"#N/A"},{"$f":"J83&\"-\"&L83","v":{"$error":"#N/A"}},{"$f":"IF(J83=J82,L82+1,1)","v":{"$error":"#N/A"}},67,{"$f":"J83&\"-\"&M83","v":{"$error":"#N/A"}},{"$error":"#N/A"},null,81,{"$error":"#N/A"},{"$error":"#N/A"}]
[null,977,31,null,{"$error":"#N/A"},null,null,0,null,{"$error":"#N/A"},{"$error":"#N/A"},{"$error":"#N/A"},67,{"$error":"#N/A"},{"$error":"#N/A"},null,82,{"$error":"#N/A"},{"$error":"#N/A"}]
[null,978,31,null,{"$error":"#N/A"},null,null,0,null,{"$error":"#N/A"},{"$error":"#N/A"},{"$error":"#N/A"},67,{"$error":"#N/A"},{"$error":"#N/A"},null,83,{"$error":"#N/A"},{"$error":"#N/A"}]
[null,979,30,null,{"$error":"#N/A"},null,null,0,null,{"$error":"#N/A"},{"$error":"#N/A"},{"$error":"#N/A"},67,{"$error":"#N/A"},{"$error":"#N/A"},null,84,{"$error":"#N/A"},{"$error":"#N/A"}]
[null,980,30,null,{"$error":"#N/A"},null,null,0,null,{"$error":"#N/A"},{"$error":"#N/A"},{"$error":"#N/A"},67,{"$error":"#N/A"},{"$error":"#N/A"},null,85,{"$error":"#N/A"},{"$error":"#N/A"}]
[null,981,30,null,{"$error":"#N/A"},null,null,0,null,{"$error":"#N/A"},{"$error":"#N/A"},{"$error":"#N/A"},67,{"$error":"#N/A"},{"$error":"#N/A"},null,86,{"$error":"#N/A"},{"$error":"#N/A"}]
[null,982,30,null,{"$error":"#N/A"},null,null,0,null,{"$error":"#N/A"},{"$error":"#N/A"},{"$error":"#N/A"},67,{"$error":"#N/A"},{"$error":"#N/A"},null,87,{"$error":"#N/A"},{"$error":"#N/A"}]
[null,983,30,null,{"$error":"#N/A"},null,null,0,null,{"$error":"#N/A"},{"$error":"#N/A"},{"$error":"#N/A"},67,{"$error":"#N/A"},{"$error":"#N/A"},null,88,{"$error":"#N/A"},{"$error":"#N/A"}]
[null,984,30,null,{"$error":"#N/A"},null,null,0,null,{"$error":"#N/A"},{"$error":"#N/A"},{"$error":"#N/A"},67,{"$error":"#N/A"},{"$error":"#N/A"},null,89,{"$error":"#N/A"},{"$error":"#N/A"}]
[null,985,30,null,{"$error":"#N/A"},null,null,0,null,{"$error":"#N/A"},{"$error":"#N/A"},{"$error":"#N/A"},67,{"$error":"#N/A"},{"$error":"#N/A"},null,90,{"$error":"#N/A"},{"$error":"#N/A"}]
[null,986,30,null,{"$error":"#N/A"},null,null,0,null,{"$error":"#N/A"},{"$error":"#N/A"},{"$error":"#N/A"},67,{"$error":"#N/A"},{"$error":"#N/A"},null,91,{"$error":"#N/A"},{"$error":"#N/A"}]
[null,987,30,null,{"$error":"#N/A"},null,null,0,null,{"$error":"#N/A"},{"$error":"#N/A"},{"$error":"#N/A"},67,{"$error":"#N/A"},{"$error":"#N/A"},null,92,{"$error":"#N/A"},{"$error":"#N/A"}]
[null,988,30,null,{"$error":"#N/A"},null,null,0,null,{"$error":"#N/A"},{"$error":"#N/A"},{"$error":"#N/A"},67,{"$error":"#N/A"},{"$error":"#N/A"},null,93,{"$error":"#N/A"},{"$error":"#N/A"}]
[null,989,30,null,{"$error":"#N/A"},null,null,0,null,{"$error":"#N/A"},{"$error":"#N/A"},{"$error":"#N/A"},67,{"$error":"#N/A"},{"$error":"#N/A"},null,94,{"$error":"#N/A"},{"$error":"#N/A"}]
[null,990,30,null,{"$error":"#N/A"},null,null,0,null,{"$error":"#N/A"},{"$error":"#N/A"},{"$error":"#N/A"},67,{"$error":"#N/A"},{"$error":"#N/A"},null,95,{"$error":"#N/A"},{"$error":"#N/A"}]
[null,991,30,null,null,null,null,null,null,null,null,null,null,null,null,null,96,{"$error":"#N/A"},{"$error":"#N/A"}]
[null,992,30,null,null,null,null,null,null,null,null,null,null,null,null,null,97,{"$error":"#N/A"},{"$error":"#N/A"}]
[null,993,29,null,null,null,null,null,null,null,null,null,null,null,null,null,98,{"$error":"#N/A"},{"$error":"#N/A"}]
[null,994,29,null,null,null,null,null,null,null,null,null,null,null,null,null,99,{"$error":"#N/A"},{"$error":"#N/A"}]
[null,995,29,null,null,null,null,null,null,null,null,null,null,null,null,null,100,{"$error":"#N/A"},{"$error":"#N/A"}]
[null,996,29,null,null,null,null,null,null,null,null,null,null,null,null,null,101,{"$error":"#N/A"},{"$error":"#N/A"}]
[null,997,29,null,null,null,null,null,null,null,null,null,null,null,null,null,102,{"$error":"#N/A"},{"$error":"#N/A"}]
[null,998,29,null,null,null,null,null,null,null,null,null,null,null,null,null,103,{"$error":"#N/A"},{"$error":"#N/A"}]
[null,999,29,null,null,null,null,null,null,null,null,null,null,null,null,null,104,{"$error":"#N/A"},{"$error":"#N/A"}]
[null,1000,29,null,null,null,null,null,null,null,null,null,null,null,null,null,105,{"$error":"#N/A"},{"$error":"#N/A"}]
[null,1001,29,null,null,null,null,null,null,null,null,null,null,null,null,null,106,{"$error":"#N/A"},{"$error":"#N/A"}]
[null,1002,29,null,null,null,null,null,null,null,null,null,null,null,null,null,107,{"$error":"#N/A"},{"$error":"#N/A"}]
[null,1003,29,null,null,null,null,null,null,null,null,null,null,null,null,null,108,{"$error":"#N/A"},{"$error":"#N/A"}]
[null,1004,29,null,null,null,null,null,null,null,null,null,null,null,null,null,109,{"$error":"#N/A"},{"$error":"#N/A"}]
[null,1005,29,null,null,null,null,null,null,null,null,null,null,null,null,null,110,{"$error":"#N/A"},{"$error":"#N/A"}]
[null,1006,29,null,null,null,null,null,null,null,null,null,null,null,null,null,{"$f":"Q112+1","v":111},{"$error":"#N/A"},{"$error":"#N/A"}]
[null,1007,28,null,null,null,null,null,null,null,null,null,null,null,null,null,112,{"$error":"#N/A"},{"$error":"#N/A"}]
[null,1008,28,null,null,null,null,null,null,null,null,null,null,null,null,null,113,{"$error":"#N/A"},{"$error":"#N/A"}]
[null,1009,28,null,null,null,null,null,null,null,null,null,null,null,null,null,114,{"$error":"#N/A"},{"$error":"#N/A"}]
[null,1010,28,null,null,null,null,null,null,null,null,null,null,null,null,null,115,{"$error":"#N/A"},{"$error":"#N/A"}]
[null,1011,28,null,null,null,null,null,null,null,null,null,null,null,null,null,116,{"$error":"#N/A"},{"$error":"#N/A"}]
[null,1012,28,null,null,null,null,null,null,null,null,null,null,null,null,null,117,{"$error":"#N/A"},{"$error":"#N/A"}]
[null,1013,28,null,null,null,null,null,null,null,null,null,null,null,null,null,118,{"$error":"#N/A"},{"$error":"#N/A"}]
[null,1014,28,null,null,null,null,null,null,null,null,null,null,null,null,null,119,{"$error":"#N/A"},{"$error":"#N/A"}]
[null,1015,28,null,null,null,null,null,null,null,null,null,null,null,null,null,120,{"$error":"#N/A"},{"$error":"#N/A"}]
[null,1016,28,null,null,null,null,null,null,null,null,null,null,null,null,null,121,{"$error":"#N/A"},{"$error":"#N/A"}]
[null,1017,28,null,null,null,null,null,null,null,null,null,null,null,null,null,122,{"$error":"#N/A"},{"$error":"#N/A"}]
[null,1018,28,null,null,null,null,null,null,null,null,null,null,null,null,null,123,{"$error":"#N/A"},{"$error":"#N/A"}]
[null,1019,28,null,null,null,null,null,null,null,null,null,null,null,null,null,124,{"$error":"#N/A"},{"$error":"#N/A"}]
[null,1020,28,null,null,null,null,null,null,null,null,null,null,null,null,null,125,{"$error":"#N/A"},{"$error":"#N/A"}]
[null,1021,27,null,null,null,null,null,null,null,null,null,null,null,null,null,126,{"$error":"#N/A"},{"$error":"#N/A"}]
[null,1022,27,null,null,null,null,null,null,null,null,null,null,null,null,null,null,null,{"$error":"#N/A"}]
[null,1023,27,null,null,null,null,null,null,null,null,null,null,null,null,null,null,null,{"$error":"#N/A"}]
[null,1024,27,null,null,null,null,null,null,null,null,null,null,null,null,null,null,null,{"$error":"#N/A"}]
[null,1025,{"$f":"Race-INT(Race*B132/RefPY+0.5)+1","v":27},null,null,null,null,null,null,null,null,null,null,null,null,null,null,null,{"$f":"VLOOKUP(R132,$K$3:$O$97,5,FALSE)","v":{"$error":"#N/A"}}]
[null,{"$f":"B132+1","v":1026},27,null,null,null,null,null,null,null,null,null,null,null,null,null,null,null,{"$error":"#N/A"}]
[null,1027,27,null,null,null,null,null,null,null,null,null,null,null,null,null,null,null,{"$error":"#N/A"}]
[null,1028,27,null,null,null,null,null,null,null,null,null,null,null,null,null,null,null,{"$error":"#N/A"}]
[null,1029,27,null,null,null,null,null,null,null,null,null,null,null,null,null,null,null,{"$error":"#N/A"}]
[null,1030,27,null,null,null,null,null,null,null,null,null,null,null,null,null,null,null,{"$error":"#N/A"}]
[null,1031,27,null,null,null,null,null,null,null,null,null,null,null,null,null,null,null,{"$error":"#N/A"}]
[null,1032,27,null,null,null,null,null,null,null,null,null,null,null,null,null,null,null,{"$error":"#N/A"}]
[null,1033,27,null,null,null,null,null,null,null,null,null,null,null,null,null,null,null,{"$error":"#N/A"}]
[null,1034,27,null,null,null,null,null,null,null,null,null,null,null,null,null,null,null,{"$error":"#N/A"}]
[null,1035,26,null,null,null,null,null,null,null,null,null,null,null,null,null,null,null,{"$error":"#N/A"}]
[null,1036,26,null,null,null,null,null,null,null,null,null,null,null,null,null,null,null,{"$error":"#N/A"}]
[null,1037,26,null,null,null,null,null,null,null,null,null,null,null,null,null,null,null,{"$error":"#N/A"}]
[null,1038,26,null,null,null,null,null,null,null,null,null,null,null,null,null,null,null,{"$error":"#N/A"}]
[null,1039,26,null,null,null,null,null,null,null,null,null,null,null,null,null,null,null,{"$error":"#N/A"}]
[null,1040,26,null,null,null,null,null,null,null,null,null,null,null,null,null,null,null,{"$error":"#N/A"}]
[null,1041,26,null,null,null,null,null,null,null,null,null,null,null,null,null,null,null,{"$error":"#N/A"}]
[null,1042,26,null,null,null,null,null,null,null,null,null,null,null,null,null,null,null,{"$error":"#N/A"}]
[null,1043,26,null,null,null,null,null,null,null,null,null,null,null,null,null,null,null,{"$error":"#N/A"}]
[null,1044,26,null,null,null,null,null,null,null,null,null,null,null,null,null,null,null,{"$error":"#N/A"}]
[null,1045,26,null,null,null,null,null,null,null,null,null,null,null,null,null,null,null,{"$error":"#N/A"}]
[null,1046,26,null,null,null,null,null,null,null,null,null,null,null,null,null,null,null,{"$error":"#N/A"}]
[null,1047,26,null,null,null,null,null,null,null,null,null,null,null,null,null,null,null,{"$error":"#N/A"}]
[null,1048,25,null,null,null,null,null,null,null,null,null,null,null,null,null,null,null,{"$error":"#N/A"}]
[null,1049,25,null,null,null,null,null,null,null,null,null,null,null,null,null,null,null,{"$error":"#N/A"}]
[null,1050,25,null,null,null,null,null,null,null,null,null,null,null,null,null,null,null,{"$error":"#N/A"}]
[null,1051,25,null,null,null,null,null,null,null,null,null,null,null,null,null,null,null,{"$error":"#N/A"}]
[null,1052,25,null,null,null,null,null,null,null,null,null,null,null,null,null,null,null,{"$error":"#N/A"}]
[null,1053,25,null,null,null,null,null,null,null,null,null,null,null,null,null,null,null,{"$error":"#N/A"}]
[null,1054,25,null,null,null,null,null,null,null,null,null,null,null,null,null,null,null,{"$error":"#N/A"}]
[null,1055,25,null,null,null,null,null,null,null,null,null,null,null,null,null,null,null,{"$error":"#N/A"}]
[null,1056,25,null,null,null,null,null,null,null,null,null,null,null,null,null,null,null,{"$error":"#N/A"}]
[null,1057,25,null,null,null,null,null,null,null,null,null,null,null,null,null,null,null,{"$error":"#N/A"}]
[null,1058,25,null,null,null,null,null,null,null,null,null,null,null,null,null,null,null,{"$error":"#N/A"}]
[null,1059,25,null,null,null,null,null,null,null,null,null,null,null,null,null,null,null,{"$error":"#N/A"}]
[null,1060,25,null,null,null,null,null,null,null,null,null,null,null,null,null,null,null,{"$error":"#N/A"}]
[null,1061,25,null,null,null,null,null,null,null,null,null,null,null,null,null,null,null,{"$error":"#N/A"}]
[null,1062,24,null,null,null,null,null,null,null,null,null,null,null,null,null,null,null,{"$error":"#N/A"}]
[null,1063,24,null,null,null,null,null,null,null,null,null,null,null,null,null,null,null,{"$error":"#N/A"}]
[null,1064,24,null,null,null,null,null,null,null,null,null,null,null,null,null,null,null,{"$error":"#N/A"}]
[null,1065,24,null,null,null,null,null,null,null,null,null,null,null,null,null,null,null,{"$error":"#N/A"}]
[null,1066,24,null,null,null,null,null,null,null,null,null,null,null,null,null,null,null,{"$error":"#N/A"}]
[null,1067,24,null,null,null,null,null,null,null,null,null,null,null,null,null,null,null,{"$error":"#N/A"}]
[null,1068,24,null,null,null,null,null,null,null,null,null,null,null,null,null,null,null,{"$error":"#N/A"}]
[null,1069,24,null,null,null,null,null,null,null,null,null,null,null,null,null,null,null,{"$error":"#N/A"}]
[null,1070,24,null,null,null,null,null,null,null,null,null,null,null,null,null,null,null,{"$error":"#N/A"}]
[null,1071,24,null,null,null,null,null,null,null,null,null,null,null,null,null,null,null,{"$error":"#N/A"}]
[null,1072,24,null,null,null,null,null,null,null,null,null,null,null,null,null,null,null,{"$error":"#N/A"}]
[null,1073,24,null,null,null,null,null,null,null,null,null,null,null,null,null,null,null,{"$error":"#N/A"}]
[null,1074,24,null,null,null,null,null,null,null,null,null,null,null,null,null,null,null,{"$error":"#N/A"}]
[null,1075,24,null,null,null,null,null,null,null,null,null,null,null,null,null,null,null,{"$error":"#N/A"}]
[null,1076,23,null,null,null,null,null,null,null,null,null,null,null,null,null,null,null,{"$error":"#N/A"}]
[null,1077,23,null,null,null,null,null,null,null,null,null,null,null,null,null,null,null,{"$error":"#N/A"}]
[null,1078,23,null,null,null,null,null,null,null,null,null,null,null,null,null,null,null,{"$error":"#N/A"}]
[null,1079,23,null,null,null,null,null,null,null,null,null,null,null,null,null,null,null,{"$error":"#N/A"}]
[null,1080,23,null,null,null,null,null,null,null,null,null,null,null,null,null,null,null,{"$error":"#N/A"}]
[null,1081,23,null,null,null,null,null,null,null,null,null,null,null,null,null,null,null,{"$error":"#N/A"}]
[null,1082,23,null,null,null,null,null,null,null,null,null,null,null,null,null,null,null,{"$error":"#N/A"}]
[null,1083,23,null,null,null,null,null,null,null,null,null,null,null,null,null,null,null,{"$error":"#N/A"}]
[null,1084,23,null,null,null,null,null,null,null,null,null,null,null,null,null,null,null,{"$error":"#N/A"}]
[null,1085,23,null,null,null,null,null,null,null,null,null,null,null,null,null,null,null,{"$error":"#N/A"}]
[null,1086,23,null,null,null,null,null,null,null,null,null,null,null,null,null,null,null,{"$error":"#N/A"}]
[null,1087,23,null,null,null,null,null,null,null,null,null,null,null,null,null,null,null,{"$error":"#N/A"}]
[null,1088,23,null,null,null,null,null,null,null,null,null,null,null,null,null,null,null,{"$error":"#N/A"}]
[null,1089,{"$f":"Race-INT(Race*B196/RefPY+0.5)+1","v":23},null,null,null,null,null,null,null,null,null,null,null,null,null,null,null,{"$f":"VLOOKUP(R196,$K$3:$O$97,5,FALSE)","v":{"$error":"#N/A"}}]
[null,{"$f":"B196+1","v":1090},22,null,null,null,null,null,null,null,null,null,null,null,null,null,null,null,{"$error":"#N/A"}]
[null,1091,22,null,null,null,null,null,null,null,null,null,null,null,null,null,null,null,{"$error":"#N/A"}]
[null,1092,22,null,null,null,null,null,null,null,null,null,null,null,null,null,null,null,{"$error":"#N/A"}]
[null,1093,22,null,null,null,null,null,null,null,null,null,null,null,null,null,null,null,{"$error":"#N/A"}]
[null,1094,22,null,null,null,null,null,null,null,null,null,null,null,null,null,null,null,{"$error":"#N/A"}]
[null,1095,22,null,null,null,null,null,null,null,null,null,null,null,null,null,null,null,{"$error":"#N/A"}]
[null,1096,22,null,null,null,null,null,null,null,null,null,null,null,null,null,null,null,{"$error":"#N/A"}]
[null,1097,22,null,null,null,null,null,null,null,null,null,null,null,null,null,null,null,{"$error":"#N/A"}]
[null,1098,22,null,null,null,null,null,null,null,null,null,null,null,null,null,null,null,{"$error":"#N/A"}]
[null,1099,22,null,null,null,null,null,null,null,null,null,null,null,null,null,null,null,{"$error":"#N/A"}]
[null,1100,22,null,null,null,null,null,null,null,null,null,null,null,null,null,null,null,{"$error":"#N/A"}]
[null,1101,22,null,null,null,null,null,null,null,null,null,null,null,null,null,null,null,{"$error":"#N/A"}]
[null,1102,22,null,null,null,null,null,null,null,null,null,null,null,null,null,null,null,{"$error":"#N/A"}]
[null,1103,22,null,null,null,null,null,null,null,null,null,null,null,null,null,null,null,{"$error":"#N/A"}]
[null,1104,21,null,null,null,null,null,null,null,null,null,null,null,null,null,null,null,{"$error":"#N/A"}]
[null,1105,21,null,null,null,null,null,null,null,null,null,null,null,null,null,null,null,{"$error":"#N/A"}]
[null,1106,21,null,null,null,null,null,null,null,null,null,null,null,null,null,null,null,{"$error":"#N/A"}]
[null,1107,21,null,null,null,null,null,null,null,null,null,null,null,null,null,null,null,{"$error":"#N/A"}]
[null,1108,21,null,null,null,null,null,null,null,null,null,null,null,null,null,null,null,{"$error":"#N/A"}]
[null,1109,21,null,null,null,null,null,null,null,null,null,null,null,null,null,null,null,{"$error":"#N/A"}]
[null,1110,21,null,null,null,null,null,null,null,null,null,null,null,null,null,null,null,{"$error":"#N/A"}]
[null,1111,21,null,null,null,null,null,null,null,null,null,null,null,null,null,null,null,{"$error":"#N/A"}]
[null,1112,21,null,null,null,null,null,null,null,null,null,null,null,null,null,null,null,{"$error":"#N/A"}]
[null,1113,21,null,null,null,null,null,null,null,null,null,null,null,null,null,null,null,{"$error":"#N/A"}]
[null,1114,21,null,null,null,null,null,null,null,null,null,null,null,null,null,null,null,{"$error":"#N/A"}]
[null,1115,21,null,null,null,null,null,null,null,null,null,null,null,null,null,null,null,{"$error":"#N/A"}]
[null,1116,21,null,null,null,null,null,null,null,null,null,null,null,null,null,null,null,{"$error":"#N/A"}]
[null,1117,21,null,null,null,null,null,null,null,null,null,null,null,null,null,null,null,{"$error":"#N/A"}]
[null,1118,20,null,null,null,null,null,null,null,null,null,null,null,null,null,null,null,{"$error":"#N/A"}]
[null,1119,20,null,null,null,null,null,null,null,null,null,null,null,null,null,null,null,{"$error":"#N/A"}]
[null,1120,20,null,null,null,null,null,null,null,null,null,null,null,null,null,null,null,{"$error":"#N/A"}]
[null,1121,20,null,null,null,null,null,null,null,null,null,null,null,null,null,null,null,{"$error":"#N/A"}]
[null,1122,20,null,null,null,null,null,null,null,null,null,null,null,null,null,null,null,{"$error":"#N/A"}]
[null,1123,20,null,null,null,null,null,null,null,null,null,null,null,null,null,null,null,{"$error":"#N/A"}]
[null,1124,20,null,null,null,null,null,null,null,null,null,null,null,null,null,null,null,{"$error":"#N/A"}]
[null,1125,20,null,null,null,null,null,null,null,null,null,null,null,null,null,null,null,{"$error":"#N/A"}]
[null,1126,20,null,null,null,null,null,null,null,null,null,null,null,null,null,null,null,{"$error":"#N/A"}]
[null,1127,20,null,null,null,null,null,null,null,null,null,null,null,null,null,null,null,{"$error":"#N/A"}]
[null,1128,20,null,null,null,null,null,null,null,null,null,null,null,null,null,null,null,{"$error":"#N/A"}]
[null,1129,20,null,null,null,null,null,null,null,null,null,null,null,null,null,null,null,{"$error":"#N/A"}]
[null,1130,20,null,null,null,null,null,null,null,null,null,null,null,null,null,null,null,{"$error":"#N/A"}]
[null,1131,20,null,null,null,null,null,null,null,null,null,null,null,null,null,null,null,{"$error":"#N/A"}]
[null,1132,19,null,null,null,null,null,null,null,null,null,null,null,null,null,null,null,{"$error":"#N/A"}]
[null,1133,19,null,null,null,null,null,null,null,null,null,null,null,null,null,null,null,{"$error":"#N/A"}]
[null,1134,19,null,null,null,null,null,null,null,null,null,null,null,null,null,null,null,{"$error":"#N/A"}]
[null,1135,19,null,null,null,null,null,null,null,null,null,null,null,null,null,null,null,{"$error":"#N/A"}]
[null,1136,19,null,null,null,null,null,null,null,null,null,null,null,null,null,null,null,{"$error":"#N/A"}]
[null,1137,19,null,null,null,null,null,null,null,null,null,null,null,null,null,null,null,{"$error":"#N/A"}]
[null,1138,19,null,null,null,null,null,null,null,null,null,null,null,null,null,null,null,{"$error":"#N/A"}]
[null,1139,19,null,null,null,null,null,null,null,null,null,null,null,null,null,null,null,{"$error":"#N/A"}]
[null,1140,19,null,null,null,null,null,null,null,null,null,null,null,null,null,null,null,{"$error":"#N/A"}]
[null,1141,19,null,null,null,null,null,null,null,null,null,null,null,null,null,null,null,{"$error":"#N/A"}]
[null,1142,19,null,null,null,null,null,null,null,null,null,null,null,null,null,null,null,{"$error":"#N/A"}]
[null,1143,19,null,null,null,null,null,null,null,null,null,null,null,null,null,null,null,{"$error":"#N/A"}]
[null,1144,19,null,null,null,null,null,null,null,null,null,null,null,null,null,null,null,{"$error":"#N/A"}]
[null,1145,19,null,null,null,null,null,null,null,null,null,null,null,null,null,null,null,{"$error":"#N/A"}]
[null,1146,18,null,null,null,null,null,null,null,null,null,null,null,null,null,null,null,{"$error":"#N/A"}]
[null,1147,18,null,null,null,null,null,null,null,null,null,null,null,null,null,null,null,{"$error":"#N/A"}]
[null,1148,18,null,null,null,null,null,null,null,null,null,null,null,null,null,null,null,{"$error":"#N/A"}]
[null,1149,18,null,null,null,null,null,null,null,null,null,null,null,null,null,null,null,{"$error":"#N/A"}]
[null,1150,18,null,null,null,null,null,null,null,null,null,null,null,null,null,null,null,{"$error":"#N/A"}]
[null,1151,18,null,null,null,null,null,null,null,null,null,null,null,null,null,null,null,{"$error":"#N/A"}]
[null,1152,18,null,null,null,null,null,null,null,null,null,null,null,null,null,null,null,{"$error":"#N/A"}]
[null,1153,{"$f":"Race-INT(Race*B260/RefPY+0.5)+1","v":18},null,null,null,null,null,null,null,null,null,null,null,null,null,null,null,{"$f":"VLOOKUP(R260,$K$3:$O$97,5,FALSE)","v":{"$error":"#N/A"}}]
[null,{"$f":"B260+1","v":1154},18,null,null,null,null,null,null,null,null,null,null,null,null,null,null,null,{"$error":"#N/A"}]
[null,1155,18,null,null,null,null,null,null,null,null,null,null,null,null,null,null,null,{"$error":"#N/A"}]
[null,1156,18,null,null,null,null,null,null,null,null,null,null,null,null,null,null,null,{"$error":"#N/A"}]
[null,1157,18,null,null,null,null,null,null,null,null,null,null,null,null,null,null,null,{"$error":"#N/A"}]
[null,1158,18,null,null,null,null,null,null,null,null,null,null,null,null,null,null,null,{"$error":"#N/A"}]
[null,1159,17,null,null,null,null,null,null,null,null,null,null,null,null,null,null,null,{"$error":"#N/A"}]
[null,1160,17,null,null,null,null,null,null,null,null,null,null,null,null,null,null,null,{"$error":"#N/A"}]
[null,1161,17,null,null,null,null,null,null,null,null,null,null,null,null,null,null,null,{"$error":"#N/A"}]
[null,1162,17,null,null,null,null,null,null,null,null,null,null,null,null,null,null,null,{"$error":"#N/A"}]
[null,1163,17,null,null,null,null,null,null,null,null,null,null,null,null,null,null,null,{"$error":"#N/A"}]
[null,1164,17,null,null,null,null,null,null,null,null,null,null,null,null,null,null,null,{"$error":"#N/A"}]
[null,1165,17,null,null,null,null,null,null,null,null,null,null,null,null,null,null,null,{"$error":"#N/A"}]
[null,1166,17,null,null,null,null,null,null,null,null,null,null,null,null,null,null,null,{"$error":"#N/A"}]
[null,1167,17,null,null,null,null,null,null,null,null,null,null,null,null,null,null,null,{"$error":"#N/A"}]
[null,1168,17,null,null,null,null,null,null,null,null,null,null,null,null,null,null,null,{"$error":"#N/A"}]
[null,1169,17,null,null,null,null,null,null,null,null,null,null,null,null,null,null,null,{"$error":"#N/A"}]
[null,1170,17,null,null,null,null,null,null,null,null,null,null,null,null,null,null,null,{"$error":"#N/A"}]
[null,1171,17,null,null,null,null,null,null,null,null,null,null,null,null,null,null,null,{"$error":"#N/A"}]
[null,1172,17,null,null,null,null,null,null,null,null,null,null,null,null,null,null,null,{"$error":"#N/A"}]
[null,1173,16,null,null,null,null,null,null,null,null,null,null,null,null,null,null,null,{"$error":"#N/A"}]
[null,1174,16,null,null,null,null,null,null,null,null,null,null,null,null,null,null,null,{"$error":"#N/A"}]
[null,1175,16,null,null,null,null,null,null,null,null,null,null,null,null,null,null,null,{"$error":"#N/A"}]
[null,1176,16,null,null,null,null,null,null,null,null,null,null,null,null,null,null,null,{"$error":"#N/A"}]
[null,1177,16,null,null,null,null,null,null,null,null,null,null,null,null,null,null,null,{"$error":"#N/A"}]
[null,1178,16,null,null,null,null,null,null,null,null,null,null,null,null,null,null,null,{"$error":"#N/A"}]
[null,1179,16,null,null,null,null,null,null,null,null,null,null,null,null,null,null,null,{"$error":"#N/A"}]
[null,1180,16,null,null,null,null,null,null,null,null,null,null,null,null,null,null,null,{"$error":"#N/A"}]
[null,1181,16,null,null,null,null,null,null,null,null,null,null,null,null,null,null,null,{"$error":"#N/A"}]
[null,1182,16,null,null,null,null,null,null,null,null,null,null,null,null,null,null,null,{"$error":"#N/A"}]
[null,1183,16,null,null,null,null,null,null,null,null,null,null,null,null,null,null,null,{"$error":"#N/A"}]
[null,1184,16,null,null,null,null,null,null,null,null,null,null,null,null,null,null,null,{"$error":"#N/A"}]
[null,1185,16,null,null,null,null,null,null,null,null,null,null,null,null,null,null,null,{"$error":"#N/A"}]
[null,1186,16,null,null,null,null,null,null,null,null,null,null,null,null,null,null,null,{"$error":"#N/A"}]
[null,1187,15,null,null,null,null,null,null,null,null,null,null,null,null,null,null,null,{"$error":"#N/A"}]
[null,1188,15,null,null,null,null,null,null,null,null,null,null,null,null,null,null,null,{"$error":"#N/A"}]
[null,1189,15,null,null,null,null,null,null,null,null,null,null,null,null,null,null,null,{"$error":"#N/A"}]
[null,1190,15,null,null,null,null,null,null,null,null,null,null,null,null,null,null,null,{"$error":"#N/A"}]
[null,1191,15,null,null,null,null,null,null,null,null,null,null,null,null,null,null,null,{"$error":"#N/A"}]
[null,1192,15,null,null,null,null,null,null,null,null,null,null,null,null,null,null,null,{"$error":"#N/A"}]
[null,1193,15,null,null,null,null,null,null,null,null,null,null,null,null,null,null,null,{"$error":"#N/A"}]
[null,1194,15,null,null,null,null,null,null,null,null,null,null,null,null,null,null,null,{"$error":"#N/A"}]
[null,1195,15,null,null,null,null,null,null,null,null,null,null,null,null,null,null,null,{"$error":"#N/A"}]
[null,1196,15,null,null,null,null,null,null,null,null,null,null,null,null,null,null,null,{"$error":"#N/A"}]
[null,1197,15,null,null,null,null,null,null,null,null,null,null,null,null,null,null,null,{"$error":"#N/A"}]
[null,1198,15,null,null,null,null,null,null,null,null,null,null,null,null,null,null,null,{"$error":"#N/A"}]
[null,1199,15,null,null,null,null,null,null,null,null,null,null,null,null,null,null,null,{"$error":"#N/A"}]
[null,1200,15,null,null,null,null,null,null,null,null,null,null,null,null,null,null,null,{"$error":"#N/A"}]
[null,1201,14,null,null,null,null,null,null,null,null,null,null,null,null,null,null,null,{"$error":"#N/A"}]
[null,1202,14,null,null,null,null,null,null,null,null,null,null,null,null,null,null,null,{"$error":"#N/A"}]
[null,1203,14,null,null,null,null,null,null,null,null,null,null,null,null,null,null,null,{"$error":"#N/A"}]
[null,1204,14,null,null,null,null,null,null,null,null,null,null,null,null,null,null,null,{"$error":"#N/A"}]
[null,1205,14,null,null,null,null,null,null,null,null,null,null,null,null,null,null,null,{"$error":"#N/A"}]
[null,1206,14,null,null,null,null,null,null,null,null,null,null,null,null,null,null,null,{"$error":"#N/A"}]
[null,1207,14,null,null,null,null,null,null,null,null,null,null,null,null,null,null,null,{"$error":"#N/A"}]
[null,1208,14,null,null,null,null,null,null,null,null,null,null,null,null,null,null,null,{"$error":"#N/A"}]
[null,1209,14,null,null,null,null,null,null,null,null,null,null,null,null,null,null,null,{"$error":"#N/A"}]
[null,1210,14,null,null,null,null,null,null,null,null,null,null,null,null,null,null,null,{"$error":"#N/A"}]
[null,1211,14,null,null,null,null,null,null,null,null,null,null,null,null,null,null,null,{"$error":"#N/A"}]
[null,1212,14,null,null,null,null,null,null,null,null,null,null,null,null,null,null,null,{"$error":"#N/A"}]
[null,1213,14,null,null,null,null,null,null,null,null,null,null,null,null,null,null,null,{"$error":"#N/A"}]
[null,1214,14,null,null,null,null,null,null,null,null,null,null,null,null,null,null,null,{"$error":"#N/A"}]
[null,1215,13,null,null,null,null,null,null,null,null,null,null,null,null,null,null,null,{"$error":"#N/A"}]
[null,1216,13,null,null,null,null,null,null,null,null,null,null,null,null,null,null,null,{"$error":"#N/A"}]
[null,1217,{"$f":"Race-INT(Race*B324/RefPY+0.5)+1","v":13},null,null,null,null,null,null,null,null,null,null,null,null,null,null,null,{"$f":"VLOOKUP(R324,$K$3:$O$97,5,FALSE)","v":{"$error":"#N/A"}}]
[null,{"$f":"B324+1","v":1218},13,null,null,null,null,null,null,null,null,null,null,null,null,null,null,null,{"$error":"#N/A"}]
[null,1219,13,null,null,null,null,null,null,null,null,null,null,null,null,null,null,null,{"$error":"#N/A"}]
[null,1220,13,null,null,null,null,null,null,null,null,null,null,null,null,null,null,null,{"$error":"#N/A"}]
[null,1221,13,null,null,null,null,null,null,null,null,null,null,null,null,null,null,null,{"$error":"#N/A"}]
[null,1222,13,null,null,null,null,null,null,null,null,null,null,null,null,null,null,null,{"$error":"#N/A"}]
[null,1223,13,null,null,null,null,null,null,null,null,null,null,null,null,null,null,null,{"$error":"#N/A"}]
[null,1224,13,null,null,null,null,null,null,null,null,null,null,null,null,null,null,null,{"$error":"#N/A"}]
[null,1225,13,null,null,null,null,null,null,null,null,null,null,null,null,null,null,null,{"$error":"#N/A"}]
[null,1226,13,null,null,null,null,null,null,null,null,null,null,null,null,null,null,null,{"$error":"#N/A"}]
[null,1227,13,null,null,null,null,null,null,null,null,null,null,null,null,null,null,null,{"$error":"#N/A"}]
[null,1228,13,null,null,null,null,null,null,null,null,null,null,null,null,null,null,null,{"$error":"#N/A"}]
[null,1229,12,null,null,null,null,null,null,null,null,null,null,null,null,null,null,null,{"$error":"#N/A"}]
[null,1230,12,null,null,null,null,null,null,null,null,null,null,null,null,null,null,null,{"$error":"#N/A"}]
[null,1231,12,null,null,null,null,null,null,null,null,null,null,null,null,null,null,null,{"$error":"#N/A"}]
[null,1232,12,null,null,null,null,null,null,null,null,null,null,null,null,null,null,null,{"$error":"#N/A"}]
[null,1233,12,null,null,null,null,null,null,null,null,null,null,null,null,null,null,null,{"$error":"#N/A"}]
[null,1234,12,null,null,null,null,null,null,null,null,null,null,null,null,null,null,null,{"$error":"#N/A"}]
[null,1235,12,null,null,null,null,null,null,null,null,null,null,null,null,null,null,null,{"$error":"#N/A"}]
[null,1236,12,null,null,null,null,null,null,null,null,null,null,null,null,null,null,null,{"$error":"#N/A"}]
[null,1237,12,null,null,null,null,null,null,null,null,null,null,null,null,null,null,null,{"$error":"#N/A"}]
[null,1238,12,null,null,null,null,null,null,null,null,null,null,null,null,null,null,null,{"$error":"#N/A"}]
[null,1239,12,null,null,null,null,null,null,null,null,null,null,null,null,null,null,null,{"$error":"#N/A"}]
[null,1240,12,null,null,null,null,null,null,null,null,null,null,null,null,null,null,null,{"$error":"#N/A"}]
[null,1241,12,null,null,null,null,null,null,null,null,null,null,null,null,null,null,null,{"$error":"#N/A"}]
[null,1242,12,null,null,null,null,null,null,null,null,null,null,null,null,null,null,null,{"$error":"#N/A"}]
[null,1243,11,null,null,null,null,null,null,null,null,null,null,null,null,null,null,null,{"$error":"#N/A"}]
[null,1244,11,null,null,null,null,null,null,null,null,null,null,null,null,null,null,null,{"$error":"#N/A"}]
[null,1245,11,null,null,null,null,null,null,null,null,null,null,null,null,null,null,null,{"$error":"#N/A"}]
[null,1246,11,null,null,null,null,null,null,null,null,null,null,null,null,null,null,null,{"$error":"#N/A"}]
[null,1247,11,null,null,null,null,null,null,null,null,null,null,null,null,null,null,null,{"$error":"#N/A"}]
[null,1248,11,null,null,null,null,null,null,null,null,null,null,null,null,null,null,null,{"$error":"#N/A"}]
[null,1249,11,null,null,null,null,null,null,null,null,null,null,null,null,null,null,null,{"$error":"#N/A"}]
[null,1250,11,null,null,null,null,null,null,null,null,null,null,null,null,null,null,null,{"$error":"#N/A"}]
[null,1251,11,null,null,null,null,null,null,null,null,null,null,null,null,null,null,null,{"$error":"#N/A"}]
[null,1252,11,null,null,null,null,null,null,null,null,null,null,null,null,null,null,null,{"$error":"#N/A"}]
[null,1253,11,null,null,null,null,null,null,null,null,null,null,null,null,null,null,null,{"$error":"#N/A"}]
[null,1254,11,null,null,null,null,null,null,null,null,null,null,null,null,null,null,null,{"$error":"#N/A"}]
[null,1255,11,null,null,null,null,null,null,null,null,null,null,null,null,null,null,null,{"$error":"#N/A"}]
[null,1256,11,null,null,null,null,null,null,null,null,null,null,null,null,null,null,null,{"$error":"#N/A"}]
[null,1257,10,null,null,null,null,null,null,null,null,null,null,null,null,null,null,null,{"$error":"#N/A"}]
[null,1258,10,null,null,null,null,null,null,null,null,null,null,null,null,null,null,null,{"$error":"#N/A"}]
[null,1259,10,null,null,null,null,null,null,null,null,null,null,null,null,null,null,null,{"$error":"#N/A"}]
[null,1260,10,null,null,null,null,null,null,null,null,null,null,null,null,null,null,null,{"$error":"#N/A"}]
[null,1261,10,null,null,null,null,null,null,null,null,null,null,null,null,null,null,null,{"$error":"#N/A"}]
[null,1262,10,null,null,null,null,null,null,null,null,null,null,null,null,null,null,null,{"$error":"#N/A"}]
[null,1263,10,null,null,null,null,null,null,null,null,null,null,null,null,null,null,null,{"$error":"#N/A"}]
[null,1264,10,null,null,null,null,null,null,null,null,null,null,null,null,null,null,null,{"$error":"#N/A"}]
[null,1265,10,null,null,null,null,null,null,null,null,null,null,null,null,null,null,null,{"$error":"#N/A"}]
[null,1266,10,null,null,null,null,null,null,null,null,null,null,null,null,null,null,null,{"$error":"#N/A"}]
[null,1267,10,null,null,null,null,null,null,null,null,null,null,null,null,null,null,null,{"$error":"#N/A"}]
[null,1268,10,null,null,null,null,null,null,null,null,null,null,null,null,null,null,null,{"$error":"#N/A"}]
[null,1269,10,null,null,null,null,null,null,null,null,null,null,null,null,null,null,null,{"$error":"#N/A"}]
[null,1270,10,null,null,null,null,null,null,null,null,null,null,null,null,null,null,null,{"$error":"#N/A"}]
[null,1271,9,null,null,null,null,null,null,null,null,null,null,null,null,null,null,null,{"$error":"#N/A"}]
[null,1272,9,null,null,null,null,null,null,null,null,null,null,null,null,null,null,null,{"$error":"#N/A"}]
[null,1273,9,null,null,null,null,null,null,null,null,null,null,null,null,null,null,null,{"$error":"#N/A"}]
[null,1274,9,null,null,null,null,null,null,null,null,null,null,null,null,null,null,null,{"$error":"#N/A"}]
[null,1275,9,null,null,null,null,null,null,null,null,null,null,null,null,null,null,null,{"$error":"#N/A"}]
[null,1276,9,null,null,null,null,null,null,null,null,null,null,null,null,null,null,null,{"$error":"#N/A"}]
[null,1277,9,null,null,null,null,null,null,null,null,null,null,null,null,null,null,null,{"$error":"#N/A"}]
[null,1278,9,null,null,null,null,null,null,null,null,null,null,null,null,null,null,null,{"$error":"#N/A"}]
[null,1279,9,null,null,null,null,null,null,null,null,null,null,null,null,null,null,null,{"$error":"#N/A"}]
[null,1280,9,null,null,null,null,null,null,null,null,null,null,null,null,null,null,null,{"$error":"#N/A"}]
[null,1281,{"$f":"Race-INT(Race*B388/RefPY+0.5)+1","v":9},null,null,null,null,null,null,null,null,null,null,null,null,null,null,null,{"$f":"VLOOKUP(R388,$K$3:$O$97,5,FALSE)","v":{"$error":"#N/A"}}]
[null,{"$f":"B388+1","v":1282},9,null,null,null,null,null,null,null,null,null,null,null,null,null,null,null,{"$error":"#N/A"}]
[null,1283,9,null,null,null,null,null,null,null,null,null,null,null,null,null,null,null,{"$error":"#N/A"}]
[null,1284,8,null,null,null,null,null,null,null,null,null,null,null,null,null,null,null,{"$error":"#N/A"}]
[null,1285,8,null,null,null,null,null,null,null,null,null,null,null,null,null,null,null,{"$error":"#N/A"}]
[null,1286,8,null,null,null,null,null,null,null,null,null,null,null,null,null,null,null,{"$error":"#N/A"}]
[null,1287,8,null,null,null,null,null,null,null,null,null,null,null,null,null,null,null,{"$error":"#N/A"}]
[null,1288,8,null,null,null,null,null,null,null,null,null,null,null,null,null,null,null,{"$error":"#N/A"}]
[null,1289,8,null,null,null,null,null,null,null,null,null,null,null,null,null,null,null,{"$error":"#N/A"}]
[null,1290,8,null,null,null,null,null,null,null,null,null,null,null,null,null,null,null,{"$error":"#N/A"}]
[null,1291,8,null,null,null,null,null,null,null,null,null,null,null,null,null,null,null,{"$error":"#N/A"}]
[null,1292,8,null,null,null,null,null,null,null,null,null,null,null,null,null,null,null,{"$error":"#N/A"}]
[null,1293,8,null,null,null,null,null,null,null,null,null,null,null,null,null,null,null,{"$error":"#N/A"}]
[null,1294,8,null,null,null,null,null,null,null,null,null,null,null,null,null,null,null,{"$error":"#N/A"}]
[null,1295,8,null,null,null,null,null,null,null,null,null,null,null,null,null,null,null,{"$error":"#N/A"}]
[null,1296,8,null,null,null,null,null,null,null,null,null,null,null,null,null,null,null,{"$error":"#N/A"}]
[null,1297,8,null,null,null,null,null,null,null,null,null,null,null,null,null,null,null,{"$error":"#N/A"}]
[null,1298,7,null,null,null,null,null,null,null,null,null,null,null,null,null,null,null,{"$error":"#N/A"}]
[null,1299,7,null,null,null,null,null,null,null,null,null,null,null,null,null,null,null,{"$error":"#N/A"}]
[null,1300,7,null,null,null,null,null,null,null,null,null,null,null,null,null,null,null,{"$error":"#N/A"}]
[null,1301,7,null,null,null,null,null,null,null,null,null,null,null,null,null,null,null,{"$error":"#N/A"}]
[null,1302,7,null,null,null,null,null,null,null,null,null,null,null,null,null,null,null,{"$error":"#N/A"}]
[null,1303,7,null,null,null,null,null,null,null,null,null,null,null,null,null,null,null,{"$error":"#N/A"}]
[null,1304,7,null,null,null,null,null,null,null,null,null,null,null,null,null,null,null,{"$error":"#N/A"}]
[null,1305,7,null,null,null,null,null,null,null,null,null,null,null,null,null,null,null,{"$error":"#N/A"}]
[null,1306,7,null,null,null,null,null,null,null,null,null,null,null,null,null,null,null,{"$error":"#N/A"}]
[null,1307,7,null,null,null,null,null,null,null,null,null,null,null,null,null,null,null,{"$error":"#N/A"}]
[null,1308,7,null,null,null,null,null,null,null,null,null,null,null,null,null,null,null,{"$error":"#N/A"}]
[null,1309,7,null,null,null,null,null,null,null,null,null,null,null,null,null,null,null,{"$error":"#N/A"}]
[null,1310,7,null,null,null,null,null,null,null,null,null,null,null,null,null,null,null,{"$error":"#N/A"}]
[null,1311,7,null,null,null,null,null,null,null,null,null,null,null,null,null,null,null,{"$error":"#N/A"}]
[null,1312,6,null,null,null,null,null,null,null,null,null,null,null,null,null,null,null,{"$error":"#N/A"}]
[null,1313,6,null,null,null,null,null,null,null,null,null,null,null,null,null,null,null,{"$error":"#N/A"}]
[null,1314,6,null,null,null,null,null,null,null,null,null,null,null,null,null,null,null,{"$error":"#N/A"}]
[null,1315,6,null,null,null,null,null,null,null,null,null,null,null,null,null,null,null,{"$error":"#N/A"}]
[null,1316,6,null,null,null,null,null,null,null,null,null,null,null,null,null,null,null,{"$error":"#N/A"}]
[null,1317,6,null,null,null,null,null,null,null,null,null,null,null,null,null,null,null,{"$error":"#N/A"}]
[null,1318,6,null,null,null,null,null,null,null,null,null,null,null,null,null,null,null,{"$error":"#N/A"}]
[null,1319,6,null,null,null,null,null,null,null,null,null,null,null,null,null,null,null,{"$error":"#N/A"}]
[null,1320,6,null,null,null,null,null,null,null,null,null,null,null,null,null,null,null,{"$error":"#N/A"}]
[null,1321,6,null,null,null,null,null,null,null,null,null,null,null,null,null,null,null,{"$error":"#N/A"}]
[null,1322,6,null,null,null,null,null,null,null,null,null,null,null,null,null,null,null,{"$error":"#N/A"}]
[null,1323,6,null,null,null,null,null,null,null,null,null,null,null,null,null,null,null,{"$error":"#N/A"}]
[null,1324,6,null,null,null,null,null,null,null,null,null,null,null,null,null,null,null,{"$error":"#N/A"}]
[null,1325,6,null,null,null,null,null,null,null,null,null,null,null,null,null,null,null,{"$error":"#N/A"}]
[null,1326,5,null,null,null,null,null,null,null,null,null,null,null,null,null,null,null,{"$error":"#N/A"}]
[null,1327,5,null,null,null,null,null,null,null,null,null,null,null,null,null,null,null,{"$error":"#N/A"}]
[null,1328,5,null,null,null,null,null,null,null,null,null,null,null,null,null,null,null,{"$error":"#N/A"}]
[null,1329,5,null,null,null,null,null,null,null,null,null,null,null,null,null,null,null,{"$error":"#N/A"}]
[null,1330,5,null,null,null,null,null,null,null,null,null,null,null,null,null,null,null,{"$error":"#N/A"}]
[null,1331,5,null,null,null,null,null,null,null,null,null,null,null,null,null,null,null,{"$error":"#N/A"}]
[null,1332,5,null,null,null,null,null,null,null,null,null,null,null,null,null,null,null,{"$error":"#N/A"}]
[null,1333,5,null,null,null,null,null,null,null,null,null,null,null,null,null,null,null,{"$error":"#N/A"}]
[null,1334,5,null,null,null,null,null,null,null,null,null,null,null,null,null,null,null,{"$error":"#N/A"}]
[null,1335,5,null,null,null,null,null,null,null,null,null,null,null,null,null,null,null,{"$error":"#N/A"}]
[null,1336,5,null,null,null,null,null,null,null,null,null,null,null,null,null,null,null,{"$error":"#N/A"}]
[null,1337,5,null,null,null,null,null,null,null,null,null,null,null,null,null,null,null,{"$error":"#N/A"}]
[null,1338,5,null,null,null,null,null,null,null,null,null,null,null,null,null,null,null,{"$error":"#N/A"}]
[null,1339,5,null,null,null,null,null,null,null,null,null,null,null,null,null,null,null,{"$error":"#N/A"}]
[null,1340,4,null,null,null,null,null,null,null,null,null,null,null,null,null,null,null,{"$error":"#N/A"}]
[null,1341,4,null,null,null,null,null,null,null,null,null,null,null,null,null,null,null,{"$error":"#N/A"}]
[null,1342,4,null,null,null,null,null,null,null,null,null,null,null,null,null,null,null,{"$error":"#N/A"}]
[null,1343,4,null,null,null,null,null,null,null,null,null,null,null,null,null,null,null,{"$error":"#N/A"}]
[null,1344,4,null,null,null,null,null,null,null,null,null,null,null,null,null,null,null,{"$error":"#N/A"}]
[null,1345,{"$f":"Race-INT(Race*B452/RefPY+0.5)+1","v":4},null,null,null,null,null,null,null,null,null,null,null,null,null,null,null,{"$f":"VLOOKUP(R452,$K$3:$O$97,5,FALSE)","v":{"$error":"#N/A"}}]
[null,{"$f":"B452+1","v":1346},4,null,null,null,null,null,null,null,null,null,null,null,null,null,null,null,{"$error":"#N/A"}]
[null,1347,4,null,null,null,null,null,null,null,null,null,null,null,null,null,null,null,{"$error":"#N/A"}]
[null,1348,4,null,null,null,null,null,null,null,null,null,null,null,null,null,null,null,{"$error":"#N/A"}]
[null,1349,4,null,null,null,null,null,null,null,null,null,null,null,null,null,null,null,{"$error":"#N/A"}]
[null,1350,4,null,null,null,null,null,null,null,null,null,null,null,null,null,null,null,{"$error":"#N/A"}]
[null,1351,4,null,null,null,null,null,null,null,null,null,null,null,null,null,null,null,{"$error":"#N/A"}]
[null,1352,4,null,null,null,null,null,null,null,null,null,null,null,null,null,null,null,{"$error":"#N/A"}]
[null,1353,4,null,null,null,null,null,null,null,null,null,null,null,null,null,null,null,{"$error":"#N/A"}]
[null,1354,3,null,null,null,null,null,null,null,null,null,null,null,null,null,null,null,{"$error":"#N/A"}]
[null,1355,3,null,null,null,null,null,null,null,null,null,null,null,null,null,null,null,{"$error":"#N/A"}]
[null,1356,3,null,null,null,null,null,null,null,null,null,null,null,null,null,null,null,{"$error":"#N/A"}]
[null,1357,3,null,null,null,null,null,null,null,null,null,null,null,null,null,null,null,{"$error":"#N/A"}]
[null,1358,3,null,null,null,null,null,null,null,null,null,null,null,null,null,null,null,{"$error":"#N/A"}]
[null,1359,3,null,null,null,null,null,null,null,null,null,null,null,null,null,null,null,{"$error":"#N/A"}]
[null,1360,3,null,null,null,null,null,null,null,null,null,null,null,null,null,null,null,{"$error":"#N/A"}]
[null,1361,3,null,null,null,null,null,null,null,null,null,null,null,null,null,null,null,{"$error":"#N/A"}]
[null,1362,3,null,null,null,null,null,null,null,null,null,null,null,null,null,null,null,{"$error":"#N/A"}]
[null,1363,3,null,null,null,null,null,null,null,null,null,null,null,null,null,null,null,{"$error":"#N/A"}]
[null,1364,3,null,null,null,null,null,null,null,null,null,null,null,null,null,null,null,{"$error":"#N/A"}]
[null,1365,3,null,null,null,null,null,null,null,null,null,null,null,null,null,null,null,{"$error":"#N/A"}]
[null,1366,3,null,null,null,null,null,null,null,null,null,null,null,null,null,null,null,{"$error":"#N/A"}]
[null,1367,3,null,null,null,null,null,null,null,null,null,null,null,null,null,null,null,{"$error":"#N/A"}]
[null,1368,2,null,null,null,null,null,null,null,null,null,null,null,null,null,null,null,{"$error":"#N/A"}]
[null,1369,2,null,null,null,null,null,null,null,null,null,null,null,null,null,null,null,{"$error":"#N/A"}]
[null,1370,2,null,null,null,null,null,null,null,null,null,null,null,null,null,null,null,{"$error":"#N/A"}]
[null,1371,2,null,null,null,null,null,null,null,null,null,null,null,null,null,null,null,{"$error":"#N/A"}]
[null,1372,2,null,null,null,null,null,null,null,null,null,null,null,null,null,null,null,{"$error":"#N/A"}]
[null,1373,2,null,null,null,null,null,null,null,null,null,null,null,null,null,null,null,{"$error":"#N/A"}]
[null,1374,2,null,null,null,null,null,null,null,null,null,null,null,null,null,null,null,{"$error":"#N/A"}]
[null,1375,2,null,null,null,null,null,null,null,null,null,null,null,null,null,null,null,{"$error":"#N/A"}]
[null,1376,2,null,null,null,null,null,null,null,null,null,null,null,null,null,null,null,{"$error":"#N/A"}]
[null,1377,2,null,null,null,null,null,null,null,null,null,null,null,null,null,null,null,{"$error":"#N/A"}]
[null,1378,2,null,null,null,null,null,null,null,null,null,null,null,null,null,null,null,{"$error":"#N/A"}]
[null,1379,2,null,null,null,null,null,null,null,null,null,null,null,null,null,null,null,{"$error":"#N/A"}]
[null,1380,2,null,null,null,null,null,null,null,null,null,null,null,null,null,null,null,{"$error":"#N/A"}]
[null,1381,2,null,null,null,null,null,null,null,null,null,null,null,null,null,null,null,{"$error":"#N/A"}]
[null,1382,1,null,null,null,null,null,null,null,null,null,null,null,null,null,null,null,{"$error":"#N/A"}]
[null,1383,1,null,null,null,null,null,null,null,null,null,null,null,null,null,null,null,{"$error":"#N/A"}]
[null,1384,1,null,null,null,null,null,null,null,null,null,null,null,null,null,null,null,{"$error":"#N/A"}]
[null,1385,1,null,null,null,null,null,null,null,null,null,null,null,null,null,null,null,{"$error":"#N/A"}]
[null,1386,1,null,null,null,null,null,null,null,null,null,null,null,null,null,null,null,{"$error":"#N/A"}]
[null,1387,1,null,null,null,null,null,null,null,null,null,null,null,null,null,null,null,{"$error":"#N/A"}]
[null,1388,1,null,null,null,null,null,null,null,null,null,null,null,null,null,null,null,{"$error":"#N/A"}]
[null,1389,1,null,null,null,null,null,null,null,null,null,null,null,null,null,null,null,{"$error":"#N/A"}]
[null,1390,1,null,null,null,null,null,null,null,null,null,null,null,null,null,null,null,{"$error":"#N/A"}]
[null,1391,1,null,null,null,null,null,null,null,null,null,null,null,null,null,null,null,{"$error":"#N/A"}]
[null,1392,1,null,null,null,null,null,null,null,null,null,null,null,null,null,null,null,{"$error":"#N/A"}]
[null,1393,1,null,null,null,null,null,null,null,null,null,null,null,null,null,null,null,{"$error":"#N/A"}]
[null,1394,1,null,null,null,null,null,null,null,null,null,null,null,null,null,null,null,{"$error":"#N/A"}]
[null,1395,0,null,null,null,null,null,null,null,null,null,null,null,null,null,null,null,{"$error":"#N/A"}]
[null,1396,0,null,null,null,null,null,null,null,null,null,null,null,null,null,null,null,{"$error":"#N/A"}]
[null,1397,0,null,null,null,null,null,null,null,null,null,null,null,null,null,null,null,{"$error":"#N/A"}]
[null,1398,0,null,null,null,null,null,null,null,null,null,null,null,null,null,null,null,{"$error":"#N/A"}]
[null,1399,0,null,null,null,null,null,null,null,null,null,null,null,null,null,null,null,{"$error":"#N/A"}]
[null,1400,0,null,null,null,null,null,null,null,null,null,null,null,null,null,null,null,{"$error":"#N/A"}]
[null,1401,0,null,null,null,null,null,null,null,null,null,null,null,null,null,null,null,{"$error":"#N/A"}]
[null,1402,0,null,null,null,null,null,null,null,null,null,null,null,null,null,null,null,{"$error":"#N/A"}]
[null,1403,0,null,null,null,null,null,null,null,null,null,null,null,null,null,null,null,{"$error":"#N/A"}]
[null,1404,0,null,null,null,null,null,null,null,null,null,null,null,null,null,null,null,{"$error":"#N/A"}]
[null,1405,0,null,null,null,null,null,null,null,null,null,null,null,null,null,null,null,{"$error":"#N/A"}]
[null,1406,0,null,null,null,null,null,null,null,null,null,null,null,null,null,null,null,{"$error":"#N/A"}]
[null,1407,0,null,null,null,null,null,null,null,null,null,null,null,null,null,null,null,{"$error":"#N/A"}]
[null,1408,0,null,null,null,null,null,null,null,null,null,null,null,null,null,null,null,{"$error":"#N/A"}]
[null,1409,{"$f":"Race-INT(Race*B516/RefPY+0.5)+1","v":-1},null,null,null,null,null,null,null,null,null,null,null,null,null,null,null,{"$f":"VLOOKUP(R516,$K$3:$O$97,5,FALSE)","v":{"$error":"#N/A"}}]
[null,{"$f":"B516+1","v":1410},-1,null,null,null,null,null,null,null,null,null,null,null,null,null,null,null,{"$error":"#N/A"}]
[null,1411,-1,null,null,null,null,null,null,null,null,null,null,null,null,null,null,null,{"$error":"#N/A"}]
[null,1412,-1,null,null,null,null,null,null,null,null,null,null,null,null,null,null,null,{"$error":"#N/A"}]
[null,1413,-1,null,null,null,null,null,null,null,null,null,null,null,null,null,null,null,{"$error":"#N/A"}]
[null,1414,-1,null,null,null,null,null,null,null,null,null,null,null,null,null,null,null,{"$error":"#N/A"}]
[null,1415,-1,null,null,null,null,null,null,null,null,null,null,null,null,null,null,null,{"$error":"#N/A"}]
[null,1416,-1,null,null,null,null,null,null,null,null,null,null,null,null,null,null,null,{"$error":"#N/A"}]
[null,1417,-1,null,null,null,null,null,null,null,null,null,null,null,null,null,null,null,{"$error":"#N/A"}]
[null,1418,-1,null,null,null,null,null,null,null,null,null,null,null,null,null,null,null,{"$error":"#N/A"}]
[null,1419,-1,null,null,null,null,null,null,null,null,null,null,null,null,null,null,null,{"$error":"#N/A"}]
[null,1420,-1,null,null,null,null,null,null,null,null,null,null,null,null,null,null,null,{"$error":"#N/A"}]
[null,1421,-1,null,null,null,null,null,null,null,null,null,null,null,null,null,null,null,{"$error":"#N/A"}]
[null,1422,-1,null,null,null,null,null,null,null,null,null,null,null,null,null,null,null,{"$error":"#N/A"}]
[null,1423,-2,null,null,null,null,null,null,null,null,null,null,null,null,null,null,null,{"$error":"#N/A"}]
[null,1424,-2,null,null,null,null,null,null,null,null,null,null,null,null,null,null,null,{"$error":"#N/A"}]
[null,1425,-2,null,null,null,null,null,null,null,null,null,null,null,null,null,null,null,{"$error":"#N/A"}]
[null,1426,-2,null,null,null,null,null,null,null,null,null,null,null,null,null,null,null,{"$error":"#N/A"}]
[null,1427,-2,null,null,null,null,null,null,null,null,null,null,null,null,null,null,null,{"$error":"#N/A"}]
[null,1428,-2,null,null,null,null,null,null,null,null,null,null,null,null,null,null,null,{"$error":"#N/A"}]
[null,1429,-2,null,null,null,null,null,null,null,null,null,null,null,null,null,null,null,{"$error":"#N/A"}]
[null,1430,-2,null,null,null,null,null,null,null,null,null,null,null,null,null,null,null,{"$error":"#N/A"}]
[null,1431,-2,null,null,null,null,null,null,null,null,null,null,null,null,null,null,null,{"$error":"#N/A"}]
[null,1432,-2,null,null,null,null,null,null,null,null,null,null,null,null,null,null,null,{"$error":"#N/A"}]
[null,1433,-2,null,null,null,null,null,null,null,null,null,null,null,null,null,null,null,{"$error":"#N/A"}]
[null,1434,-2,null,null,null,null,null,null,null,null,null,null,null,null,null,null,null,{"$error":"#N/A"}]
[null,1435,-2,null,null,null,null,null,null,null,null,null,null,null,null,null,null,null,{"$error":"#N/A"}]
[null,1436,-2,null,null,null,null,null,null,null,null,null,null,null,null,null,null,null,{"$error":"#N/A"}]
[null,1437,-3,null,null,null,null,null,null,null,null,null,null,null,null,null,null,null,{"$error":"#N/A"}]
[null,1438,-3,null,null,null,null,null,null,null,null,null,null,null,null,null,null,null,{"$error":"#N/A"}]
[null,1439,-3,null,null,null,null,null,null,null,null,null,null,null,null,null,null,null,{"$error":"#N/A"}]
[null,1440,-3,null,null,null,null,null,null,null,null,null,null,null,null,null,null,null,{"$error":"#N/A"}]
[null,1441,-3,null,null,null,null,null,null,null,null,null,null,null,null,null,null,null,{"$error":"#N/A"}]
[null,1442,-3,null,null,null,null,null,null,null,null,null,null,null,null,null,null,null,{"$error":"#N/A"}]
[null,1443,-3,null,null,null,null,null,null,null,null,null,null,null,null,null,null,null,{"$error":"#N/A"}]
[null,1444,-3,null,null,null,null,null,null,null,null,null,null,null,null,null,null,null,{"$error":"#N/A"}]
[null,1445,-3,null,null,null,null,null,null,null,null,null,null,null,null,null,null,null,{"$error":"#N/A"}]
[null,1446,-3,null,null,null,null,null,null,null,null,null,null,null,null,null,null,null,{"$error":"#N/A"}]
[null,1447,-3,null,null,null,null,null,null,null,null,null,null,null,null,null,null,null,{"$error":"#N/A"}]
[null,1448,-3,null,null,null,null,null,null,null,null,null,null,null,null,null,null,null,{"$error":"#N/A"}]
[null,1449,-3,null,null,null,null,null,null,null,null,null,null,null,null,null,null,null,{"$error":"#N/A"}]
[null,1450,-3,null,null,null,null,null,null,null,null,null,null,null,null,null,null,null,{"$error":"#N/A"}]
[null,1451,-4,null,null,null,null,null,null,null,null,null,null,null,null,null,null,null,{"$error":"#N/A"}]
[null,1452,-4,null,null,null,null,null,null,null,null,null,null,null,null,null,null,null,{"$error":"#N/A"}]
[null,1453,-4,null,null,null,null,null,null,null,null,null,null,null,null,null,null,null,{"$error":"#N/A"}]
[null,1454,-4,null,null,null,null,null,null,null,null,null,null,null,null,null,null,null,{"$error":"#N/A"}]
[null,1455,-4,null,null,null,null,null,null,null,null,null,null,null,null,null,null,null,{"$error":"#N/A"}]
[null,1456,-4,null,null,null,null,null,null,null,null,null,null,null,null,null,null,null,{"$error":"#N/A"}]
[null,1457,-4,null,null,null,null,null,null,null,null,null,null,null,null,null,null,null,{"$error":"#N/A"}]
[null,1458,-4,null,null,null,null,null,null,null,null,null,null,null,null,null,null,null,{"$error":"#N/A"}]
[null,1459,-4,null,null,null,null,null,null,null,null,null,null,null,null,null,null,null,{"$error":"#N/A"}]
[null,1460,-4,null,null,null,null,null,null,null,null,null,null,null,null,null,null,null,{"$error":"#N/A"}]
[null,1461,-4,null,null,null,null,null,null,null,null,null,null,null,null,null,null,null,{"$error":"#N/A"}]
[null,1462,-4,null,null,null,null,null,null,null,null,null,null,null,null,null,null,null,{"$error":"#N/A"}]
[null,1463,-4,null,null,null,null,null,null,null,null,null,null,null,null,null,null,null,{"$error":"#N/A"}]
[null,1464,-4,null,null,null,null,null,null,null,null,null,null,null,null,null,null,null,{"$error":"#N/A"}]
[null,1465,-5,null,null,null,null,null,null,null,null,null,null,null,null,null,null,null,{"$error":"#N/A"}]
[null,1466,-5,null,null,null,null,null,null,null,null,null,null,null,null,null,null,null,{"$error":"#N/A"}]
[null,1467,-5,null,null,null,null,null,null,null,null,null,null,null,null,null,null,null,{"$error":"#N/A"}]
[null,1468,-5,null,null,null,null,null,null,null,null,null,null,null,null,null,null,null,{"$error":"#N/A"}]
[null,1469,-5,null,null,null,null,null,null,null,null,null,null,null,null,null,null,null,{"$error":"#N/A"}]
[null,1470,-5,null,null,null,null,null,null,null,null,null,null,null,null,null,null,null,{"$error":"#N/A"}]
[null,1471,-5,null,null,null,null,null,null,null,null,null,null,null,null,null,null,null,{"$error":"#N/A"}]
[null,1472,-5,null,null,null,null,null,null,null,null,null,null,null,null,null,null,null,{"$error":"#N/A"}]
[null,1473,{"$f":"Race-INT(Race*B580/RefPY+0.5)+1","v":-5},null,null,null,null,null,null,null,null,null,null,null,null,null,null,null,{"$f":"VLOOKUP(R580,$K$3:$O$97,5,FALSE)","v":{"$error":"#N/A"}}]
[null,{"$f":"B580+1","v":1474},-5,null,null,null,null,null,null,null,null,null,null,null,null,null,null,null,{"$error":"#N/A"}]
[null,1475,-5,null,null,null,null,null,null,null,null,null,null,null,null,null,null,null,{"$error":"#N/A"}]
[null,1476,-5,null,null,null,null,null,null,null,null,null,null,null,null,null,null,null,{"$error":"#N/A"}]
[null,1477,-5,null,null,null,null,null,null,null,null,null,null,null,null,null,null,null,{"$error":"#N/A"}]
[null,1478,-5,null,null,null,null,null,null,null,null,null,null,null,null,null,null,null,{"$error":"#N/A"}]
[null,1479,-6,null,null,null,null,null,null,null,null,null,null,null,null,null,null,null,{"$error":"#N/A"}]
[null,1480,-6,null,null,null,null,null,null,null,null,null,null,null,null,null,null,null,{"$error":"#N/A"}]
[null,1481,-6,null,null,null,null,null,null,null,null,null,null,null,null,null,null,null,{"$error":"#N/A"}]
[null,1482,-6,null,null,null,null,null,null,null,null,null,null,null,null,null,null,null,{"$error":"#N/A"}]
[null,1483,-6,null,null,null,null,null,null,null,null,null,null,null,null,null,null,null,{"$error":"#N/A"}]
[null,1484,-6,null,null,null,null,null,null,null,null,null,null,null,null,null,null,null,{"$error":"#N/A"}]
[null,1485,-6,null,null,null,null,null,null,null,null,null,null,null,null,null,null,null,{"$error":"#N/A"}]
[null,1486,-6,null,null,null,null,null,null,null,null,null,null,null,null,null,null,null,{"$error":"#N/A"}]
[null,1487,-6,null,null,null,null,null,null,null,null,null,null,null,null,null,null,null,{"$error":"#N/A"}]
[null,1488,-6,null,null,null,null,null,null,null,null,null,null,null,null,null,null,null,{"$error":"#N/A"}]
[null,1489,-6,null,null,null,null,null,null,null,null,null,null,null,null,null,null,null,{"$error":"#N/A"}]
[null,1490,-6,null,null,null,null,null,null,null,null,null,null,null,null,null,null,null,{"$error":"#N/A"}]
[null,1491,-6,null,null,null,null,null,null,null,null,null,null,null,null,null,null,null,{"$error":"#N/A"}]
[null,1492,-6,null,null,null,null,null,null,null,null,null,null,null,null,null,null,null,{"$error":"#N/A"}]
[null,1493,-7,null,null,null,null,null,null,null,null,null,null,null,null,null,null,null,{"$error":"#N/A"}]
[null,1494,-7,null,null,null,null,null,null,null,null,null,null,null,null,null,null,null,{"$error":"#N/A"}]
[null,1495,-7,null,null,null,null,null,null,null,null,null,null,null,null,null,null,null,{"$error":"#N/A"}]
[null,1496,-7,null,null,null,null,null,null,null,null,null,null,null,null,null,null,null,{"$error":"#N/A"}]
[null,1497,-7,null,null,null,null,null,null,null,null,null,null,null,null,null,null,null,{"$error":"#N/A"}]
[null,1498,-7,null,null,null,null,null,null,null,null,null,null,null,null,null,null,null,{"$error":"#N/A"}]
[null,1499,-7,null,null,null,null,null,null,null,null,null,null,null,null,null,null,null,{"$error":"#N/A"}]
[null,1500,-7,null,null,null,null,null,null,null,null,null,null,null,null,null,null,null,{"$error":"#N/A"}]
[null,1501,-7,null,null,null,null,null,null,null,null,null,null,null,null,null,null,null,{"$error":"#N/A"}]
[null,1502,-7,null,null,null,null,null,null,null,null,null,null,null,null,null,null,null,{"$error":"#N/A"}]
[null,1503,-7,null,null,null,null,null,null,null,null,null,null,null,null,null,null,null,{"$error":"#N/A"}]
[null,1504,-7,null,null,null,null,null,null,null,null,null,null,null,null,null,null,null,{"$error":"#N/A"}]
[null,1505,-7,null,null,null,null,null,null,null,null,null,null,null,null,null,null,null,{"$error":"#N/A"}]
[null,1506,-8,null,null,null,null,null,null,null,null,null,null,null,null,null,null,null,{"$error":"#N/A"}]
[null,1507,-8,null,null,null,null,null,null,null,null,null,null,null,null,null,null,null,{"$error":"#N/A"}]
[null,1508,-8,null,null,null,null,null,null,null,null,null,null,null,null,null,null,null,{"$error":"#N/A"}]
[null,1509,-8,null,null,null,null,null,null,null,null,null,null,null,null,null,null,null,{"$error":"#N/A"}]
[null,1510,-8,null,null,null,null,null,null,null,null,null,null,null,null,null,null,null,{"$error":"#N/A"}]
[null,1511,-8,null,null,null,null,null,null,null,null,null,null,null,null,null,null,null,{"$error":"#N/A"}]
[null,1512,-8,null,null,null,null,null,null,null,null,null,null,null,null,null,null,null,{"$error":"#N/A"}]
[null,1513,-8,null,null,null,null,null,null,null,null,null,null,null,null,null,null,null,{"$error":"#N/A"}]
[null,1514,-8,null,null,null,null,null,null,null,null,null,null,null,null,null,null,null,{"$error":"#N/A"}]
[null,1515,-8,null,null,null,null,null,null,null,null,null,null,null,null,null,null,null,{"$error":"#N/A"}]
[null,1516,-8,null,null,null,null,null,null,null,null,null,null,null,null,null,null,null,{"$error":"#N/A"}]
[null,1517,-8,null,null,null,null,null,null,null,null,null,null,null,null,null,null,null,{"$error":"#N/A"}]
[null,1518,-8,null,null,null,null,null,null,null,null,null,null,null,null,null,null,null,{"$error":"#N/A"}]
[null,1519,-8,null,null,null,null,null,null,null,null,null,null,null,null,null,null,null,{"$error":"#N/A"}]
[null,1520,-9,null,null,null,null,null,null,null,null,null,null,null,null,null,null,null,{"$error":"#N/A"}]
[null,1521,-9,null,null,null,null,null,null,null,null,null,null,null,null,null,null,null,{"$error":"#N/A"}]
[null,1522,-9,null,null,null,null,null,null,null,null,null,null,null,null,null,null,null,{"$error":"#N/A"}]
[null,1523,-9,null,null,null,null,null,null,null,null,null,null,null,null,null,null,null,{"$error":"#N/A"}]
[null,1524,-9,null,null,null,null,null,null,null,null,null,null,null,null,null,null,null,{"$error":"#N/A"}]
[null,1525,-9,null,null,null,null,null,null,null,null,null,null,null,null,null,null,null,{"$error":"#N/A"}]
[null,1526,-9,null,null,null,null,null,null,null,null,null,null,null,null,null,null,null,{"$error":"#N/A"}]
[null,1527,-9,null,null,null,null,null,null,null,null,null,null,null,null,null,null,null,{"$error":"#N/A"}]
[null,1528,-9,null,null,null,null,null,null,null,null,null,null,null,null,null,null,null,{"$error":"#N/A"}]
[null,1529,-9,null,null,null,null,null,null,null,null,null,null,null,null,null,null,null,{"$error":"#N/A"}]
[null,1530,-9,null,null,null,null,null,null,null,null,null,null,null,null,null,null,null,{"$error":"#N/A"}]
[null,1531,-9,null,null,null,null,null,null,null,null,null,null,null,null,null,null,null,{"$error":"#N/A"}]
[null,1532,-9,null,null,null,null,null,null,null,null,null,null,null,null,null,null,null,{"$error":"#N/A"}]
[null,1533,-9,null,null,null,null,null,null,null,null,null,null,null,null,null,null,null,{"$error":"#N/A"}]
[null,1534,-10,null,null,null,null,null,null,null,null,null,null,null,null,null,null,null,{"$error":"#N/A"}]
[null,1535,-10,null,null,null,null,null,null,null,null,null,null,null,null,null,null,null,{"$error":"#N/A"}]
[null,1536,-10,null,null,null,null,null,null,null,null,null,null,null,null,null,null,null,{"$error":"#N/A"}]
[null,1537,{"$f":"Race-INT(Race*B644/RefPY+0.5)+1","v":-10},null,null,null,null,null,null,null,null,null,null,null,null,null,null,null,{"$f":"VLOOKUP(R644,$K$3:$O$97,5,FALSE)","v":{"$error":"#N/A"}}]
[null,{"$f":"B644+1","v":1538},-10,null,null,null,null,null,null,null,null,null,null,null,null,null,null,null,{"$error":"#N/A"}]
[null,1539,-10,null,null,null,null,null,null,null,null,null,null,null,null,null,null,null,{"$error":"#N/A"}]
[null,1540,-10,null,null,null,null,null,null,null,null,null,null,null,null,null,null,null,{"$error":"#N/A"}]
[null,1541,-10,null,null,null,null,null,null,null,null,null,null,null,null,null,null,null,{"$error":"#N/A"}]
[null,1542,-10,null,null,null,null,null,null,null,null,null,null,null,null,null,null,null,{"$error":"#N/A"}]
[null,1543,-10,null,null,null,null,null,null,null,null,null,null,null,null,null,null,null,{"$error":"#N/A"}]
[null,1544,-10,null,null,null,null,null,null,null,null,null,null,null,null,null,null,null,{"$error":"#N/A"}]
[null,1545,-10,null,null,null,null,null,null,null,null,null,null,null,null,null,null,null,{"$error":"#N/A"}]
[null,1546,-10,null,null,null,null,null,null,null,null,null,null,null,null,null,null,null,{"$error":"#N/A"}]
[null,1547,-10,null,null,null,null,null,null,null,null,null,null,null,null,null,null,null,{"$error":"#N/A"}]
[null,1548,-11,null,null,null,null,null,null,null,null,null,null,null,null,null,null,null,{"$error":"#N/A"}]
[null,1549,-11,null,null,null,null,null,null,null,null,null,null,null,null,null,null,null,{"$error":"#N/A"}]
[null,1550,-11,null,null,null,null,null,null,null,null,null,null,null,null,null,null,null,{"$error":"#N/A"}]
[null,1551,-11,null,null,null,null,null,null,null,null,null,null,null,null,null,null,null,{"$error":"#N/A"}]
[null,1552,-11,null,null,null,null,null,null,null,null,null,null,null,null,null,null,null,{"$error":"#N/A"}]
[null,1553,-11,null,null,null,null,null,null,null,null,null,null,null,null,null,null,null,{"$error":"#N/A"}]
[null,1554,-11,null,null,null,null,null,null,null,null,null,null,null,null,null,null,null,{"$error":"#N/A"}]
[null,1555,-11,null,null,null,null,null,null,null,null,null,null,null,null,null,null,null,{"$error":"#N/A"}]
[null,1556,-11,null,null,null,null,null,null,null,null,null,null,null,null,null,null,null,{"$error":"#N/A"}]
[null,1557,-11,null,null,null,null,null,null,null,null,null,null,null,null,null,null,null,{"$error":"#N/A"}]
[null,1558,-11,null,null,null,null,null,null,null,null,null,null,null,null,null,null,null,{"$error":"#N/A"}]
[null,1559,-11,null,null,null,null,null,null,null,null,null,null,null,null,null,null,null,{"$error":"#N/A"}]
[null,1560,-11,null,null,null,null,null,null,null,null,null,null,null,null,null,null,null,{"$error":"#N/A"}]
[null,1561,-11,null,null,null,null,null,null,null,null,null,null,null,null,null,null,null,{"$error":"#N/A"}]
[null,1562,-12,null,null,null,null,null,null,null,null,null,null,null,null,null,null,null,{"$error":"#N/A"}]
[null,1563,-12,null,null,null,null,null,null,null,null,null,null,null,null,null,null,null,{"$error":"#N/A"}]
[null,1564,-12,null,null,null,null,null,null,null,null,null,null,null,null,null,null,null,{"$error":"#N/A"}]
[null,1565,-12,null,null,null,null,null,null,null,null,null,null,null,null,null,null,null,{"$error":"#N/A"}]
[null,1566,-12,null,null,null,null,null,null,null,null,null,null,null,null,null,null,null,{"$error":"#N/A"}]
[null,1567,-12,null,null,null,null,null,null,null,null,null,null,null,null,null,null,null,{"$error":"#N/A"}]
[null,1568,-12,null,null,null,null,null,null,null,null,null,null,null,null,null,null,null,{"$error":"#N/A"}]
[null,1569,-12,null,null,null,null,null,null,null,null,null,null,null,null,null,null,null,{"$error":"#N/A"}]
[null,1570,-12,null,null,null,null,null,null,null,null,null,null,null,null,null,null,null,{"$error":"#N/A"}]
[null,1571,-12,null,null,null,null,null,null,null,null,null,null,null,null,null,null,null,{"$error":"#N/A"}]
[null,1572,-12,null,null,null,null,null,null,null,null,null,null,null,null,null,null,null,{"$error":"#N/A"}]
[null,1573,-12,null,null,null,null,null,null,null,null,null,null,null,null,null,null,null,{"$error":"#N/A"}]
[null,1574,-12,null,null,null,null,null,null,null,null,null,null,null,null,null,null,null,{"$error":"#N/A"}]
[null,1575,-12,null,null,null,null,null,null,null,null,null,null,null,null,null,null,null,{"$error":"#N/A"}]
[null,1576,-13,null,null,null,null,null,null,null,null,null,null,null,null,null,null,null,{"$error":"#N/A"}]
[null,1577,-13,null,null,null,null,null,null,null,null,null,null,null,null,null,null,null,{"$error":"#N/A"}]
[null,1578,-13,null,null,null,null,null,null,null,null,null,null,null,null,null,null,null,{"$error":"#N/A"}]
[null,1579,-13,null,null,null,null,null,null,null,null,null,null,null,null,null,null,null,{"$error":"#N/A"}]
[null,1580,-13,null,null,null,null,null,null,null,null,null,null,null,null,null,null,null,{"$error":"#N/A"}]
[null,1581,-13,null,null,null,null,null,null,null,null,null,null,null,null,null,null,null,{"$error":"#N/A"}]
[null,1582,-13,null,null,null,null,null,null,null,null,null,null,null,null,null,null,null,{"$error":"#N/A"}]
[null,1583,-13,null,null,null,null,null,null,null,null,null,null,null,null,null,null,null,{"$error":"#N/A"}]
[null,1584,-13,null,null,null,null,null,null,null,null,null,null,null,null,null,null,null,{"$error":"#N/A"}]
[null,1585,-13,null,null,null,null,null,null,null,null,null,null,null,null,null,null,null,{"$error":"#N/A"}]
[null,1586,-13,null,null,null,null,null,null,null,null,null,null,null,null,null,null,null,{"$error":"#N/A"}]
[null,1587,-13,null,null,null,null,null,null,null,null,null,null,null,null,null,null,null,{"$error":"#N/A"}]
[null,1588,-13,null,null,null,null,null,null,null,null,null,null,null,null,null,null,null,{"$error":"#N/A"}]
[null,1589,-13,null,null,null,null,null,null,null,null,null,null,null,null,null,null,null,{"$error":"#N/A"}]
[null,1590,-14,null,null,null,null,null,null,null,null,null,null,null,null,null,null,null,{"$error":"#N/A"}]
[null,1591,-14,null,null,null,null,null,null,null,null,null,null,null,null,null,null,null,{"$error":"#N/A"}]
[null,1592,-14,null,null,null,null,null,null,null,null,null,null,null,null,null,null,null,{"$error":"#N/A"}]
[null,1593,-14,null,null,null,null,null,null,null,null,null,null,null,null,null,null,null,{"$error":"#N/A"}]
[null,1594,-14,null,null,null,null,null,null,null,null,null,null,null,null,null,null,null,{"$error":"#N/A"}]
[null,1595,-14,null,null,null,null,null,null,null,null,null,null,null,null,null,null,null,{"$error":"#N/A"}]
[null,1596,-14,null,null,null,null,null,null,null,null,null,null,null,null,null,null,null,{"$error":"#N/A"}]
[null,1597,-14,null,null,null,null,null,null,null,null,null,null,null,null,null,null,null,{"$error":"#N/A"}]
[null,1598,-14,null,null,null,null,null,null,null,null,null,null,null,null,null,null,null,{"$error":"#N/A"}]
[null,1599,-14,null,null,null,null,null,null,null,null,null,null,null,null,null,null,null,{"$error":"#N/A"}]
[null,1600,-14,null,null,null,null,null,null,null,null,null,null,null,null,null,null,null,{"$error":"#N/A"}]
[null,1601,{"$f":"Race-INT(Race*B708/RefPY+0.5)+1","v":-14},null,null,null,null,null,null,null,null,null,null,null,null,null,null,null,{"$f":"VLOOKUP(R708,$K$3:$O$97,5,FALSE)","v":{"$error":"#N/A"}}]
[null,{"$f":"B708+1","v":1602},-14,null,null,null,null,null,null,null,null,null,null,null,null,null,null,null,{"$error":"#N/A"}]
[null,1603,-14,null,null,null,null,null,null,null,null,null,null,null,null,null,null,null,{"$error":"#N/A"}]
[null,1604,-15,null,null,null,null,null,null,null,null,null,null,null,null,null,null,null,{"$error":"#N/A"}]
[null,1605,-15,null,null,null,null,null,null,null,null,null,null,null,null,null,null,null,{"$error":"#N/A"}]
[null,1606,-15,null,null,null,null,null,null,null,null,null,null,null,null,null,null,null,{"$error":"#N/A"}]
[null,1607,-15,null,null,null,null,null,null,null,null,null,null,null,null,null,null,null,{"$error":"#N/A"}]
[null,1608,-15,null,null,null,null,null,null,null,null,null,null,null,null,null,null,null,{"$error":"#N/A"}]
[null,1609,-15,null,null,null,null,null,null,null,null,null,null,null,null,null,null,null,{"$error":"#N/A"}]
[null,1610,-15,null,null,null,null,null,null,null,null,null,null,null,null,null,null,null,{"$error":"#N/A"}]
[null,1611,-15,null,null,null,null,null,null,null,null,null,null,null,null,null,null,null,{"$error":"#N/A"}]
[null,1612,-15,null,null,null,null,null,null,null,null,null,null,null,null,null,null,null,{"$error":"#N/A"}]
[null,1613,-15,null,null,null,null,null,null,null,null,null,null,null,null,null,null,null,{"$error":"#N/A"}]
[null,1614,-15,null,null,null,null,null,null,null,null,null,null,null,null,null,null,null,{"$error":"#N/A"}]
[null,1615,-15,null,null,null,null,null,null,null,null,null,null,null,null,null,null,null,{"$error":"#N/A"}]
[null,1616,-15,null,null,null,null,null,null,null,null,null,null,null,null,null,null,null,{"$error":"#N/A"}]
[null,1617,-15,null,null,null,null,null,null,null,null,null,null,null,null,null,null,null,{"$error":"#N/A"}]
[null,1618,-16,null,null,null,null,null,null,null,null,null,null,null,null,null,null,null,{"$error":"#N/A"}]
[null,1619,-16,null,null,null,null,null,null,null,null,null,null,null,null,null,null,null,{"$error":"#N/A"}]
[null,1620,-16,null,null,null,null,null,null,null,null,null,null,null,null,null,null,null,{"$error":"#N/A"}]
[null,1621,-16,null,null,null,null,null,null,null,null,null,null,null,null,null,null,null,{"$error":"#N/A"}]
[null,1622,-16,null,null,null,null,null,null,null,null,null,null,null,null,null,null,null,{"$error":"#N/A"}]
[null,1623,-16,null,null,null,null,null,null,null,null,null,null,null,null,null,null,null,{"$error":"#N/A"}]
[null,1624,-16,null,null,null,null,null,null,null,null,null,null,null,null,null,null,null,{"$error":"#N/A"}]
[null,1625,-16,null,null,null,null,null,null,null,null,null,null,null,null,null,null,null,{"$error":"#N/A"}]
[null,1626,-16,null,null,null,null,null,null,null,null,null,null,null,null,null,null,null,{"$error":"#N/A"}]
[null,1627,-16,null,null,null,null,null,null,null,null,null,null,null,null,null,null,null,{"$error":"#N/A"}]
[null,1628,-16,null,null,null,null,null,null,null,null,null,null,null,null,null,null,null,{"$error":"#N/A"}]
[null,1629,-16,null,null,null,null,null,null,null,null,null,null,null,null,null,null,null,{"$error":"#N/A"}]
[null,1630,-16,null,null,null,null,null,null,null,null,null,null,null,null,null,null,null,{"$error":"#N/A"}]
[null,1631,-17,null,null,null,null,null,null,null,null,null,null,null,null,null,null,null,{"$error":"#N/A"}]
[null,1632,-17,null,null,null,null,null,null,null,null,null,null,null,null,null,null,null,{"$error":"#N/A"}]
[null,1633,-17,null,null,null,null,null,null,null,null,null,null,null,null,null,null,null,{"$error":"#N/A"}]
[null,1634,-17,null,null,null,null,null,null,null,null,null,null,null,null,null,null,null,{"$error":"#N/A"}]
[null,1635,-17,null,null,null,null,null,null,null,null,null,null,null,null,null,null,null,{"$error":"#N/A"}]
[null,1636,-17,null,null,null,null,null,null,null,null,null,null,null,null,null,null,null,{"$error":"#N/A"}]
[null,1637,-17,null,null,null,null,null,null,null,null,null,null,null,null,null,null,null,{"$error":"#N/A"}]
[null,1638,-17,null,null,null,null,null,null,null,null,null,null,null,null,null,null,null,{"$error":"#N/A"}]
[null,1639,-17,null,null,null,null,null,null,null,null,null,null,null,null,null,null,null,{"$error":"#N/A"}]
[null,1640,-17,null,null,null,null,null,null,null,null,null,null,null,null,null,null,null,{"$error":"#N/A"}]
[null,1641,-17,null,null,null,null,null,null,null,null,null,null,null,null,null,null,null,{"$error":"#N/A"}]
[null,1642,-17,null,null,null,null,null,null,null,null,null,null,null,null,null,null,null,{"$error":"#N/A"}]
[null,1643,-17,null,null,null,null,null,null,null,null,null,null,null,null,null,null,null,{"$error":"#N/A"}]
[null,1644,-17,null,null,null,null,null,null,null,null,null,null,null,null,null,null,null,{"$error":"#N/A"}]
[null,1645,-18,null,null,null,null,null,null,null,null,null,null,null,null,null,null,null,{"$error":"#N/A"}]
[null,1646,-18,null,null,null,null,null,null,null,null,null,null,null,null,null,null,null,{"$error":"#N/A"}]
[null,1647,-18,null,null,null,null,null,null,null,null,null,null,null,null,null,null,null,{"$error":"#N/A"}]
[null,1648,-18,null,null,null,null,null,null,null,null,null,null,null,null,null,null,null,{"$error":"#N/A"}]
[null,1649,-18,null,null,null,null,null,null,null,null,null,null,null,null,null,null,null,{"$error":"#N/A"}]
[null,1650,-18,null,null,null,null,null,null,null,null,null,null,null,null,null,null,null,{"$error":"#N/A"}]
[null,1651,-18,null,null,null,null,null,null,null,null,null,null,null,null,null,null,null,{"$error":"#N/A"}]
[null,1652,-18,null,null,null,null,null,null,null,null,null,null,null,null,null,null,null,{"$error":"#N/A"}]
[null,1653,-18,null,null,null,null,null,null,null,null,null,null,null,null,null,null,null,{"$error":"#N/A"}]
[null,1654,-18,null,null,null,null,null,null,null,null,null,null,null,null,null,null,null,{"$error":"#N/A"}]
[null,1655,-18,null,null,null,null,null,null,null,null,null,null,null,null,null,null,null,{"$error":"#N/A"}]
[null,1656,-18,null,null,null,null,null,null,null,null,null,null,null,null,null,null,null,{"$error":"#N/A"}]
[null,1657,-18,null,null,null,null,null,null,null,null,null,null,null,null,null,null,null,{"$error":"#N/A"}]
[null,1658,-18,null,null,null,null,null,null,null,null,null,null,null,null,null,null,null,{"$error":"#N/A"}]
[null,1659,-19,null,null,null,null,null,null,null,null,null,null,null,null,null,null,null,{"$error":"#N/A"}]
[null,1660,-19,null,null,null,null,null,null,null,null,null,null,null,null,null,null,null,{"$error":"#N/A"}]
[null,1661,-19,null,null,null,null,null,null,null,null,null,null,null,null,null,null,null,{"$error":"#N/A"}]
[null,1662,-19,null,null,null,null,null,null,null,null,null,null,null,null,null,null,null,{"$error":"#N/A"}]
[null,1663,-19,null,null,null,null,null,null,null,null,null,null,null,null,null,null,null,{"$error":"#N/A"}]
[null,1664,-19,null,null,null,null,null,null,null,null,null,null,null,null,null,null,null,{"$error":"#N/A"}]
[null,1665,{"$f":"Race-INT(Race*B772/RefPY+0.5)+1","v":-19},null,null,null,null,null,null,null,null,null,null,null,null,null,null,null,{"$f":"VLOOKUP(R772,$K$3:$O$97,5,FALSE)","v":{"$error":"#N/A"}}]
[null,{"$f":"B772+1","v":1666},-19,null,null,null,null,null,null,null,null,null,null,null,null,null,null,null,{"$error":"#N/A"}]
[null,1667,-19,null,null,null,null,null,null,null,null,null,null,null,null,null,null,null,{"$error":"#N/A"}]
[null,1668,-19,null,null,null,null,null,null,null,null,null,null,null,null,null,null,null,{"$error":"#N/A"}]
[null,1669,-19,null,null,null,null,null,null,null,null,null,null,null,null,null,null,null,{"$error":"#N/A"}]
[null,1670,-19,null,null,null,null,null,null,null,null,null,null,null,null,null,null,null,{"$error":"#N/A"}]
[null,1671,-19,null,null,null,null,null,null,null,null,null,null,null,null,null,null,null,{"$error":"#N/A"}]
[null,1672,-19,null,null,null,null,null,null,null,null,null,null,null,null,null,null,null,{"$error":"#N/A"}]
[null,1673,-20,null,null,null,null,null,null,null,null,null,null,null,null,null,null,null,{"$error":"#N/A"}]
[null,1674,-20,null,null,null,null,null,null,null,null,null,null,null,null,null,null,null,{"$error":"#N/A"}]
[null,1675,-20,null,null,null,null,null,null,null,null,null,null,null,null,null,null,null,{"$error":"#N/A"}]
[null,1676,-20,null,null,null,null,null,null,null,null,null,null,null,null,null,null,null,{"$error":"#N/A"}]
[null,1677,-20,null,null,null,null,null,null,null,null,null,null,null,null,null,null,null,{"$error":"#N/A"}]
[null,1678,-20,null,null,null,null,null,null,null,null,null,null,null,null,null,null,null,{"$error":"#N/A"}]
[null,1679,-20,null,null,null,null,null,null,null,null,null,null,null,null,null,null,null,{"$error":"#N/A"}]
[null,1680,-20,null,null,null,null,null,null,null,null,null,null,null,null,null,null,null,{"$error":"#N/A"}]
[null,1681,-20,null,null,null,null,null,null,null,null,null,null,null,null,null,null,null,{"$error":"#N/A"}]
[null,1682,-20,null,null,null,null,null,null,null,null,null,null,null,null,null,null,null,{"$error":"#N/A"}]
[null,1683,-20,null,null,null,null,null,null,null,null,null,null,null,null,null,null,null,{"$error":"#N/A"}]
[null,1684,-20,null,null,null,null,null,null,null,null,null,null,null,null,null,null,null,{"$error":"#N/A"}]
[null,1685,-20,null,null,null,null,null,null,null,null,null,null,null,null,null,null,null,{"$error":"#N/A"}]
[null,1686,-20,null,null,null,null,null,null,null,null,null,null,null,null,null,null,null,{"$error":"#N/A"}]
[null,1687,-21,null,null,null,null,null,null,null,null,null,null,null,null,null,null,null,{"$error":"#N/A"}]
[null,1688,-21,null,null,null,null,null,null,null,null,null,null,null,null,null,null,null,{"$error":"#N/A"}]
[null,1689,-21,null,null,null,null,null,null,null,null,null,null,null,null,null,null,null,{"$error":"#N/A"}]
[null,1690,-21,null,null,null,null,null,null,null,null,null,null,null,null,null,null,null,{"$error":"#N/A"}]
[null,1691,-21,null,null,null,null,null,null,null,null,null,null,null,null,null,null,null,{"$error":"#N/A"}]
[null,1692,-21,null,null,null,null,null,null,null,null,null,null,null,null,null,null,null,{"$error":"#N/A"}]
[null,1693,-21,null,null,null,null,null,null,null,null,null,null,null,null,null,null,null,{"$error":"#N/A"}]
[null,1694,-21,null,null,null,null,null,null,null,null,null,null,null,null,null,null,null,{"$error":"#N/A"}]
[null,1695,-21,null,null,null,null,null,null,null,null,null,null,null,null,null,null,null,{"$error":"#N/A"}]
[null,1696,-21,null,null,null,null,null,null,null,null,null,null,null,null,null,null,null,{"$error":"#N/A"}]
[null,1697,-21,null,null,null,null,null,null,null,null,null,null,null,null,null,null,null,{"$error":"#N/A"}]
[null,1698,-21,null,null,null,null,null,null,null,null,null,null,null,null,null,null,null,{"$error":"#N/A"}]
[null,1699,-21,null,null,null,null,null,null,null,null,null,null,null,null,null,null,null,{"$error":"#N/A"}]
[null,1700,-21,null,null,null,null,null,null,null,null,null,null,null,null,null,null,null,{"$error":"#N/A"}]
[null,1701,-22,null,null,null,null,null,null,null,null,null,null,null,null,null,null,null,{"$error":"#N/A"}]
[null,1702,-22,null,null,null,null,null,null,null,null,null,null,null,null,null,null,null,{"$error":"#N/A"}]
[null,1703,-22,null,null,null,null,null,null,null,null,null,null,null,null,null,null,null,{"$error":"#N/A"}]
[null,1704,-22,null,null,null,null,null,null,null,null,null,null,null,null,null,null,null,{"$error":"#N/A"}]
[null,1705,-22,null,null,null,null,null,null,null,null,null,null,null,null,null,null,null,{"$error":"#N/A"}]
[null,1706,-22,null,null,null,null,null,null,null,null,null,null,null,null,null,null,null,{"$error":"#N/A"}]
[null,1707,-22,null,null,null,null,null,null,null,null,null,null,null,null,null,null,null,{"$error":"#N/A"}]
[null,1708,-22,null,null,null,null,null,null,null,null,null,null,null,null,null,null,null,{"$error":"#N/A"}]
[null,1709,-22,null,null,null,null,null,null,null,null,null,null,null,null,null,null,null,{"$error":"#N/A"}]
[null,1710,-22,null,null,null,null,null,null,null,null,null,null,null,null,null,null,null,{"$error":"#N/A"}]
[null,1711,-22,null,null,null,null,null,null,null,null,null,null,null,null,null,null,null,{"$error":"#N/A"}]
[null,1712,-22,null,null,null,null,null,null,null,null,null,null,null,null,null,null,null,{"$error":"#N/A"}]
[null,1713,-22,null,null,null,null,null,null,null,null,null,null,null,null,null,null,null,{"$error":"#N/A"}]
[null,1714,-22,null,null,null,null,null,null,null,null,null,null,null,null,null,null,null,{"$error":"#N/A"}]
[null,1715,-23,null,null,null,null,null,null,null,null,null,null,null,null,null,null,null,{"$error":"#N/A"}]
[null,1716,-23,null,null,null,null,null,null,null,null,null,null,null,null,null,null,null,{"$error":"#N/A"}]
[null,1717,-23,null,null,null,null,null,null,null,null,null,null,null,null,null,null,null,{"$error":"#N/A"}]
[null,1718,-23,null,null,null,null,null,null,null,null,null,null,null,null,null,null,null,{"$error":"#N/A"}]
[null,1719,-23,null,null,null,null,null,null,null,null,null,null,null,null,null,null,null,{"$error":"#N/A"}]
[null,1720,-23,null,null,null,null,null,null,null,null,null,null,null,null,null,null,null,{"$error":"#N/A"}]
[null,1721,-23,null,null,null,null,null,null,null,null,null,null,null,null,null,null,null,{"$error":"#N/A"}]
[null,1722,-23,null,null,null,null,null,null,null,null,null,null,null,null,null,null,null,{"$error":"#N/A"}]
[null,1723,-23,null,null,null,null,null,null,null,null,null,null,null,null,null,null,null,{"$error":"#N/A"}]
[null,1724,-23,null,null,null,null,null,null,null,null,null,null,null,null,null,null,null,{"$error":"#N/A"}]
[null,1725,-23,null,null,null,null,null,null,null,null,null,null,null,null,null,null,null,{"$error":"#N/A"}]
[null,1726,-23,null,null,null,null,null,null,null,null,null,null,null,null,null,null,null,{"$error":"#N/A"}]
[null,1727,-23,null,null,null,null,null,null,null,null,null,null,null,null,null,null,null,{"$error":"#N/A"}]
[null,1728,-23,null,null,null,null,null,null,null,null,null,null,null,null,null,null,null,{"$error":"#N/A"}]
[null,1729,{"$f":"Race-INT(Race*B836/RefPY+0.5)+1","v":-24},null,null,null,null,null,null,null,null,null,null,null,null,null,null,null,{"$f":"VLOOKUP(R836,$K$3:$O$97,5,FALSE)","v":{"$error":"#N/A"}}]
[null,{"$f":"B836+1","v":1730},-24,null,null,null,null,null,null,null,null,null,null,null,null,null,null,null,{"$error":"#N/A"}]
[null,1731,-24,null,null,null,null,null,null,null,null,null,null,null,null,null,null,null,{"$error":"#N/A"}]
[null,1732,-24,null,null,null,null,null,null,null,null,null,null,null,null,null,null,null,{"$error":"#N/A"}]
[null,1733,-24,null,null,null,null,null,null,null,null,null,null,null,null,null,null,null,{"$error":"#N/A"}]
[null,1734,-24,null,null,null,null,null,null,null,null,null,null,null,null,null,null,null,{"$error":"#N/A"}]
[null,1735,-24,null,null,null,null,null,null,null,null,null,null,null,null,null,null,null,{"$error":"#N/A"}]
[null,1736,-24,null,null,null,null,null,null,null,null,null,null,null,null,null,null,null,{"$error":"#N/A"}]
[null,1737,-24,null,null,null,null,null,null,null,null,null,null,null,null,null,null,null,{"$error":"#N/A"}]
[null,1738,-24,null,null,null,null,null,null,null,null,null,null,null,null,null,null,null,{"$error":"#N/A"}]
[null,1739,-24,null,null,null,null,null,null,null,null,null,null,null,null,null,null,null,{"$error":"#N/A"}]
[null,1740,-24,null,null,null,null,null,null,null,null,null,null,null,null,null,null,null,{"$error":"#N/A"}]
[null,1741,-24,null,null,null,null,null,null,null,null,null,null,null,null,null,null,null,{"$error":"#N/A"}]
[null,1742,-25,null,null,null,null,null,null,null,null,null,null,null,null,null,null,null,{"$error":"#N/A"}]
[null,1743,-25,null,null,null,null,null,null,null,null,null,null,null,null,null,null,null,{"$error":"#N/A"}]
[null,1744,-25,null,null,null,null,null,null,null,null,null,null,null,null,null,null,null,{"$error":"#N/A"}]
[null,1745,-25,null,null,null,null,null,null,null,null,null,null,null,null,null,null,null,{"$error":"#N/A"}]
[null,1746,-25,null,null,null,null,null,null,null,null,null,null,null,null,null,null,null,{"$error":"#N/A"}]
[null,1747,-25,null,null,null,null,null,null,null,null,null,null,null,null,null,null,null,{"$error":"#N/A"}]
[null,1748,-25,null,null,null,null,null,null,null,null,null,null,null,null,null,null,null,{"$error":"#N/A"}]
[null,1749,-25,null,null,null,null,null,null,null,null,null,null,null,null,null,null,null,{"$error":"#N/A"}]
[null,1750,-25,null,null,null,null,null,null,null,null,null,null,null,null,null,null,null,{"$error":"#N/A"}]
[null,1751,-25,null,null,null,null,null,null,null,null,null,null,null,null,null,null,null,{"$error":"#N/A"}]
[null,1752,-25,null,null,null,null,null,null,null,null,null,null,null,null,null,null,null,{"$error":"#N/A"}]
[null,1753,-25,null,null,null,null,null,null,null,null,null,null,null,null,null,null,null,{"$error":"#N/A"}]
[null,1754,-25,null,null,null,null,null,null,null,null,null,null,null,null,null,null,null,{"$error":"#N/A"}]
[null,1755,-25,null,null,null,null,null,null,null,null,null,null,null,null,null,null,null,{"$error":"#N/A"}]
[null,1756,-26,null,null,null,null,null,null,null,null,null,null,null,null,null,null,null,{"$error":"#N/A"}]
[null,1757,-26,null,null,null,null,null,null,null,null,null,null,null,null,null,null,null,{"$error":"#N/A"}]
[null,1758,-26,null,null,null,null,null,null,null,null,null,null,null,null,null,null,null,{"$error":"#N/A"}]
[null,1759,-26,null,null,null,null,null,null,null,null,null,null,null,null,null,null,null,{"$error":"#N/A"}]
[null,1760,-26,null,null,null,null,null,null,null,null,null,null,null,null,null,null,null,{"$error":"#N/A"}]
[null,1761,-26,null,null,null,null,null,null,null,null,null,null,null,null,null,null,null,{"$error":"#N/A"}]
[null,1762,-26,null,null,null,null,null,null,null,null,null,null,null,null,null,null,null,{"$error":"#N/A"}]
[null,1763,-26,null,null,null,null,null,null,null,null,null,null,null,null,null,null,null,{"$error":"#N/A"}]
[null,1764,-26,null,null,null,null,null,null,null,null,null,null,null,null,null,null,null,{"$error":"#N/A"}]
[null,1765,-26,null,null,null,null,null,null,null,null,null,null,null,null,null,null,null,{"$error":"#N/A"}]
[null,1766,-26,null,null,null,null,null,null,null,null,null,null,null,null,null,null,null,{"$error":"#N/A"}]
[null,1767,-26,null,null,null,null,null,null,null,null,null,null,null,null,null,null,null,{"$error":"#N/A"}]
[null,1768,-26,null,null,null,null,null,null,null,null,null,null,null,null,null,null,null,{"$error":"#N/A"}]
[null,1769,-26,null,null,null,null,null,null,null,null,null,null,null,null,null,null,null,{"$error":"#N/A"}]
[null,1770,-27,null,null,null,null,null,null,null,null,null,null,null,null,null,null,null,{"$error":"#N/A"}]
[null,1771,-27,null,null,null,null,null,null,null,null,null,null,null,null,null,null,null,{"$error":"#N/A"}]
[null,1772,-27,null,null,null,null,null,null,null,null,null,null,null,null,null,null,null,{"$error":"#N/A"}]
[null,1773,-27,null,null,null,null,null,null,null,null,null,null,null,null,null,null,null,{"$error":"#N/A"}]
[null,1774,-27,null,null,null,null,null,null,null,null,null,null,null,null,null,null,null,{"$error":"#N/A"}]
[null,1775,-27,null,null,null,null,null,null,null,null,null,null,null,null,null,null,null,{"$error":"#N/A"}]
[null,1776,-27,null,null,null,null,null,null,null,null,null,null,null,null,null,null,null,{"$error":"#N/A"}]
[null,1777,-27,null,null,null,null,null,null,null,null,null,null,null,null,null,null,null,{"$error":"#N/A"}]
[null,1778,-27,null,null,null,null,null,null,null,null,null,null,null,null,null,null,null,{"$error":"#N/A"}]
[null,1779,-27,null,null,null,null,null,null,null,null,null,null,null,null,null,null,null,{"$error":"#N/A"}]
[null,1780,-27,null,null,null,null,null,null,null,null,null,null,null,null,null,null,null,{"$error":"#N/A"}]
[null,1781,-27,null,null,null,null,null,null,null,null,null,null,null,null,null,null,null,{"$error":"#N/A"}]
[null,1782,-27,null,null,null,null,null,null,null,null,null,null,null,null,null,null,null,{"$error":"#N/A"}]
[null,1783,-27,null,null,null,null,null,null,null,null,null,null,null,null,null,null,null,{"$error":"#N/A"}]
[null,1784,-28,null,null,null,null,null,null,null,null,null,null,null,null,null,null,null,{"$error":"#N/A"}]
[null,1785,-28,null,null,null,null,null,null,null,null,null,null,null,null,null,null,null,{"$error":"#N/A"}]
[null,1786,-28,null,null,null,null,null,null,null,null,null,null,null,null,null,null,null,{"$error":"#N/A"}]
[null,1787,-28,null,null,null,null,null,null,null,null,null,null,null,null,null,null,null,{"$error":"#N/A"}]
[null,1788,-28,null,null,null,null,null,null,null,null,null,null,null,null,null,null,null,{"$error":"#N/A"}]
[null,1789,-28,null,null,null,null,null,null,null,null,null,null,null,null,null,null,null,{"$error":"#N/A"}]
[null,1790,-28,null,null,null,null,null,null,null,null,null,null,null,null,null,null,null,{"$error":"#N/A"}]
[null,1791,-28,null,null,null,null,null,null,null,null,null,null,null,null,null,null,null,{"$error":"#N/A"}]
[null,1792,-28,null,null,null,null,null,null,null,null,null,null,null,null,null,null,null,{"$error":"#N/A"}]
[null,1793,{"$f":"Race-INT(Race*B900/RefPY+0.5)+1","v":-28},null,null,null,null,null,null,null,null,null,null,null,null,null,null,null,{"$f":"VLOOKUP(R900,$K$3:$O$97,5,FALSE)","v":{"$error":"#N/A"}}]
[null,{"$f":"B900+1","v":1794},-28,null,null,null,null,null,null,null,null,null,null,null,null,null,null,null,{"$error":"#N/A"}]
[null,1795,-28,null,null,null,null,null,null,null,null,null,null,null,null,null,null,null,{"$error":"#N/A"}]
[null,1796,-28,null,null,null,null,null,null,null,null,null,null,null,null,null,null,null,{"$error":"#N/A"}]
[null,1797,-28,null,null,null,null,null,null,null,null,null,null,null,null,null,null,null,{"$error":"#N/A"}]
[null,1798,-29,null,null,null,null,null,null,null,null,null,null,null,null,null,null,null,{"$error":"#N/A"}]
[null,1799,-29,null,null,null,null,null,null,null,null,null,null,null,null,null,null,null,{"$error":"#N/A"}]
[null,1800,-29,null,null,null,null,null,null,null,null,null,null,null,null,null,null,null,{"$error":"#N/A"}]
[null,1801,-29,null,null,null,null,null,null,null,null,null,null,null,null,null,null,null,{"$error":"#N/A"}]
[null,1802,-29,null,null,null,null,null,null,null,null,null,null,null,null,null,null,null,{"$error":"#N/A"}]
[null,1803,-29,null,null,null,null,null,null,null,null,null,null,null,null,null,null,null,{"$error":"#N/A"}]
[null,1804,-29,null,null,null,null,null,null,null,null,null,null,null,null,null,null,null,{"$error":"#N/A"}]
[null,1805,-29,null,null,null,null,null,null,null,null,null,null,null,null,null,null,null,{"$error":"#N/A"}]
[null,1806,-29,null,null,null,null,null,null,null,null,null,null,null,null,null,null,null,{"$error":"#N/A"}]
[null,1807,-29,null,null,null,null,null,null,null,null,null,null,null,null,null,null,null,{"$error":"#N/A"}]
[null,1808,-29,null,null,null,null,null,null,null,null,null,null,null,null,null,null,null,{"$error":"#N/A"}]
[null,1809,-29,null,null,null,null,null,null,null,null,null,null,null,null,null,null,null,{"$error":"#N/A"}]
[null,1810,-29,null,null,null,null,null,null,null,null,null,null,null,null,null,null,null,{"$error":"#N/A"}]
[null,1811,-29,null,null,null,null,null,null,null,null,null,null,null,null,null,null,null,{"$error":"#N/A"}]
[null,1812,-30,null,null,null,null,null,null,null,null,null,null,null,null,null,null,null,{"$error":"#N/A"}]
[null,1813,-30,null,null,null,null,null,null,null,null,null,null,null,null,null,null,null,{"$error":"#N/A"}]
[null,1814,-30,null,null,null,null,null,null,null,null,null,null,null,null,null,null,null,{"$error":"#N/A"}]
[null,1815,-30,null,null,null,null,null,null,null,null,null,null,null,null,null,null,null,{"$error":"#N/A"}]
[null,1816,-30,null,null,null,null,null,null,null,null,null,null,null,null,null,null,null,{"$error":"#N/A"}]
[null,1817,-30,null,null,null,null,null,null,null,null,null,null,null,null,null,null,null,{"$error":"#N/A"}]
[null,1818,-30,null,null,null,null,null,null,null,null,null,null,null,null,null,null,null,{"$error":"#N/A"}]
[null,1819,-30,null,null,null,null,null,null,null,null,null,null,null,null,null,null,null,{"$error":"#N/A"}]
[null,1820,-30,null,null,null,null,null,null,null,null,null,null,null,null,null,null,null,{"$error":"#N/A"}]
[null,1821,-30,null,null,null,null,null,null,null,null,null,null,null,null,null,null,null,{"$error":"#N/A"}]
[null,1822,-30,null,null,null,null,null,null,null,null,null,null,null,null,null,null,null,{"$error":"#N/A"}]
[null,1823,-30,null,null,null,null,null,null,null,null,null,null,null,null,null,null,null,{"$error":"#N/A"}]
[null,1824,-30,null,null,null,null,null,null,null,null,null,null,null,null,null,null,null,{"$error":"#N/A"}]
[null,1825,-30,null,null,null,null,null,null,null,null,null,null,null,null,null,null,null,{"$error":"#N/A"}]
[null,1826,-31,null,null,null,null,null,null,null,null,null,null,null,null,null,null,null,{"$error":"#N/A"}]
[null,1827,-31,null,null,null,null,null,null,null,null,null,null,null,null,null,null,null,{"$error":"#N/A"}]
[null,1828,-31,null,null,null,null,null,null,null,null,null,null,null,null,null,null,null,{"$error":"#N/A"}]
[null,1829,-31,null,null,null,null,null,null,null,null,null,null,null,null,null,null,null,{"$error":"#N/A"}]
[null,1830,-31,null,null,null,null,null,null,null,null,null,null,null,null,null,null,null,{"$error":"#N/A"}]
[null,1831,-31,null,null,null,null,null,null,null,null,null,null,null,null,null,null,null,{"$error":"#N/A"}]
[null,1832,-31,null,null,null,null,null,null,null,null,null,null,null,null,null,null,null,{"$error":"#N/A"}]
[null,1833,-31,null,null,null,null,null,null,null,null,null,null,null,null,null,null,null,{"$error":"#N/A"}]
[null,1834,-31,null,null,null,null,null,null,null,null,null,null,null,null,null,null,null,{"$error":"#N/A"}]
[null,1835,-31,null,null,null,null,null,null,null,null,null,null,null,null,null,null,null,{"$error":"#N/A"}]
[null,1836,-31,null,null,null,null,null,null,null,null,null,null,null,null,null,null,null,{"$error":"#N/A"}]
[null,1837,-31,null,null,null,null,null,null,null,null,null,null,null,null,null,null,null,{"$error":"#N/A"}]
[null,1838,-31,null,null,null,null,null,null,null,null,null,null,null,null,null,null,null,{"$error":"#N/A"}]
[null,1839,-31,null,null,null,null,null,null,null,null,null,null,null,null,null,null,null,{"$error":"#N/A"}]
[null,1840,-32,null,null,null,null,null,null,null,null,null,null,null,null,null,null,null,{"$error":"#N/A"}]
[null,1841,-32,null,null,null,null,null,null,null,null,null,null,null,null,null,null,null,{"$error":"#N/A"}]
[null,1842,-32,null,null,null,null,null,null,null,null,null,null,null,null,null,null,null,{"$error":"#N/A"}]
[null,1843,-32,null,null,null,null,null,null,null,null,null,null,null,null,null,null,null,{"$error":"#N/A"}]
[null,1844,-32,null,null,null,null,null,null,null,null,null,null,null,null,null,null,null,{"$error":"#N/A"}]
[null,1845,-32,null,null,null,null,null,null,null,null,null,null,null,null,null,null,null,{"$error":"#N/A"}]
[null,1846,-32,null,null,null,null,null,null,null,null,null,null,null,null,null,null,null,{"$error":"#N/A"}]
[null,1847,-32,null,null,null,null,null,null,null,null,null,null,null,null,null,null,null,{"$error":"#N/A"}]
[null,1848,-32,null,null,null,null,null,null,null,null,null,null,null,null,null,null,null,{"$error":"#N/A"}]
[null,1849,-32,null,null,null,null,null,null,null,null,null,null,null,null,null,null,null,{"$error":"#N/A"}]
[null,1850,-32,null,null,null,null,null,null,null,null,null,null,null,null,null,null,null,{"$error":"#N/A"}]
[null,1851,-32,null,null,null,null,null,null,null,null,null,null,null,null,null,null,null,{"$error":"#N/A"}]
[null,1852,-32,null,null,null,null,null,null,null,null,null,null,null,null,null,null,null,{"$error":"#N/A"}]
[null,1853,-33,null,null,null,null,null,null,null,null,null,null,null,null,null,null,null,{"$error":"#N/A"}]
[null,1854,-33,null,null,null,null,null,null,null,null,null,null,null,null,null,null,null,{"$error":"#N/A"}]
[null,1855,-33,null,null,null,null,null,null,null,null,null,null,null,null,null,null,null,{"$error":"#N/A"}]
[null,1856,-33,null,null,null,null,null,null,null,null,null,null,null,null,null,null,null,{"$error":"#N/A"}]
[null,1857,{"$f":"Race-INT(Race*B964/RefPY+0.5)+1","v":-33},null,null,null,null,null,null,null,null,null,null,null,null,null,null,null,{"$f":"VLOOKUP(R964,$K$3:$O$97,5,FALSE)","v":{"$error":"#N/A"}}]
[null,{"$f":"B964+1","v":1858},-33,null,null,null,null,null,null,null,null,null,null,null,null,null,null,null,{"$error":"#N/A"}]
[null,1859,-33,null,null,null,null,null,null,null,null,null,null,null,null,null,null,null,{"$error":"#N/A"}]
[null,1860,-33,null,null,null,null,null,null,null,null,null,null,null,null,null,null,null,{"$error":"#N/A"}]
[null,1861,-33,null,null,null,null,null,null,null,null,null,null,null,null,null,null,null,{"$error":"#N/A"}]
[null,1862,-33,null,null,null,null,null,null,null,null,null,null,null,null,null,null,null,{"$error":"#N/A"}]
[null,1863,-33,null,null,null,null,null,null,null,null,null,null,null,null,null,null,null,{"$error":"#N/A"}]
[null,1864,-33,null,null,null,null,null,null,null,null,null,null,null,null,null,null,null,{"$error":"#N/A"}]
[null,1865,-33,null,null,null,null,null,null,null,null,null,null,null,null,null,null,null,{"$error":"#N/A"}]
[null,1866,-33,null,null,null,null,null,null,null,null,null,null,null,null,null,null,null,{"$error":"#N/A"}]
[null,1867,-34,null,null,null,null,null,null,null,null,null,null,null,null,null,null,null,{"$error":"#N/A"}]
[null,1868,-34,null,null,null,null,null,null,null,null,null,null,null,null,null,null,null,{"$error":"#N/A"}]
[null,1869,-34,null,null,null,null,null,null,null,null,null,null,null,null,null,null,null,{"$error":"#N/A"}]
[null,1870,-34,null,null,null,null,null,null,null,null,null,null,null,null,null,null,null,{"$error":"#N/A"}]
[null,1871,-34,null,null,null,null,null,null,null,null,null,null,null,null,null,null,null,{"$error":"#N/A"}]
[null,1872,-34,null,null,null,null,null,null,null,null,null,null,null,null,null,null,null,{"$error":"#N/A"}]
[null,1873,-34,null,null,null,null,null,null,null,null,null,null,null,null,null,null,null,{"$error":"#N/A"}]
[null,1874,-34,null,null,null,null,null,null,null,null,null,null,null,null,null,null,null,{"$error":"#N/A"}]
[null,1875,-34,null,null,null,null,null,null,null,null,null,null,null,null,null,null,null,{"$error":"#N/A"}]
[null,1876,-34,null,null,null,null,null,null,null,null,null,null,null,null,null,null,null,{"$error":"#N/A"}]
[null,1877,-34,null,null,null,null,null,null,null,null,null,null,null,null,null,null,null,{"$error":"#N/A"}]
[null,1878,-34,null,null,null,null,null,null,null,null,null,null,null,null,null,null,null,{"$error":"#N/A"}]
[null,1879,-34,null,null,null,null,null,null,null,null,null,null,null,null,null,null,null,{"$error":"#N/A"}]
[null,1880,-34,null,null,null,null,null,null,null,null,null,null,null,null,null,null,null,{"$error":"#N/A"}]
[null,1881,-35,null,null,null,null,null,null,null,null,null,null,null,null,null,null,null,{"$error":"#N/A"}]
[null,1882,-35,null,null,null,null,null,null,null,null,null,null,null,null,null,null,null,{"$error":"#N/A"}]
[null,1883,-35,null,null,null,null,null,null,null,null,null,null,null,null,null,null,null,{"$error":"#N/A"}]
[null,1884,-35,null,null,null,null,null,null,null,null,null,null,null,null,null,null,null,{"$error":"#N/A"}]
[null,1885,-35,null,null,null,null,null,null,null,null,null,null,null,null,null,null,null,{"$error":"#N/A"}]
[null,1886,-35,null,null,null,null,null,null,null,null,null,null,null,null,null,null,null,{"$error":"#N/A"}]
[null,1887,-35,null,null,null,null,null,null,null,null,null,null,null,null,null,null,null,{"$error":"#N/A"}]
[null,1888,-35,null,null,null,null,null,null,null,null,null,null,null,null,null,null,null,{"$error":"#N/A"}]
[null,1889,-35,null,null,null,null,null,null,null,null,null,null,null,null,null,null,null,{"$error":"#N/A"}]
[null,1890,-35,null,null,null,null,null,null,null,null,null,null,null,null,null,null,null,{"$error":"#N/A"}]
[null,1891,-35,null,null,null,null,null,null,null,null,null,null,null,null,null,null,null,{"$error":"#N/A"}]
[null,1892,-35,null,null,null,null,null,null,null,null,null,null,null,null,null,null,null,{"$error":"#N/A"}]
[null,1893,-35,null,null,null,null,null,null,null,null,null,null,null,null,null,null,null,{"$error":"#N/A"}]
[null,1894,-35,null,null,null,null,null,null,null,null,null,null,null,null,null,null,null,{"$error":"#N/A"}]
[null,1895,-36,null,null,null,null,null,null,null,null,null,null,null,null,null,null,null,{"$error":"#N/A"}]
[null,1896,-36,null,null,null,null,null,null,null,null,null,null,null,null,null,null,null,{"$error":"#N/A"}]
[null,1897,-36,null,null,null,null,null,null,null,null,null,null,null,null,null,null,null,{"$error":"#N/A"}]
[null,1898,-36,null,null,null,null,null,null,null,null,null,null,null,null,null,null,null,{"$error":"#N/A"}]
[null,1899,-36,null,null,null,null,null,null,null,null,null,null,null,null,null,null,null,{"$error":"#N/A"}]
[null,1900,-36,null,null,null,null,null,null,null,null,null,null,null,null,null,null,null,{"$error":"#N/A"}]
[null,1901,-36,null,null,null,null,null,null,null,null,null,null,null,null,null,null,null,{"$error":"#N/A"}]
[null,1902,-36,null,null,null,null,null,null,null,null,null,null,null,null,null,null,null,{"$error":"#N/A"}]
[null,1903,-36,null,null,null,null,null,null,null,null,null,null,null,null,null,null,null,{"$error":"#N/A"}]
[null,1904,-36,null,null,null,null,null,null,null,null,null,null,null,null,null,null,null,{"$error":"#N/A"}]
[null,1905,-36,null,null,null,null,null,null,null,null,null,null,null,null,null,null,null,{"$error":"#N/A"}]
[null,1906,-36,null,null,null,null,null,null,null,null,null,null,null,null,null,null,null,{"$error":"#N/A"}]
[null,1907,-36,null,null,null,null,null,null,null,null,null,null,null,null,null,null,null,{"$error":"#N/A"}]
[null,1908,-36,null,null,null,null,null,null,null,null,null,null,null,null,null,null,null,{"$error":"#N/A"}]
[null,1909,-37,null,null,null,null,null,null,null,null,null,null,null,null,null,null,null,{"$error":"#N/A"}]
[null,1910,-37,null,null,null,null,null,null,null,null,null,null,null,null,null,null,null,{"$error":"#N/A"}]
[null,1911,-37,null,null,null,null,null,null,null,null,null,null,null,null,null,null,null,{"$error":"#N/A"}]
[null,1912,-37,null,null,null,null,null,null,null,null,null,null,null,null,null,null,null,{"$error":"#N/A"}]
[null,1913,-37,null,null,null,null,null,null,null,null,null,null,null,null,null,null,null,{"$error":"#N/A"}]
[null,1914,-37,null,null,null,null,null,null,null,null,null,null,null,null,null,null,null,{"$error":"#N/A"}]
[null,1915,-37,null,null,null,null,null,null,null,null,null,null,null,null,null,null,null,{"$error":"#N/A"}]
[null,1916,-37,null,null,null,null,null,null,null,null,null,null,null,null,null,null,null,{"$error":"#N/A"}]
[null,1917,-37,null,null,null,null,null,null,null,null,null,null,null,null,null,null,null,{"$error":"#N/A"}]
[null,1918,-37,null,null,null,null,null,null,null,null,null,null,null,null,null,null,null,{"$error":"#N/A"}]
[null,1919,-37,null,null,null,null,null,null,null,null,null,null,null,null,null,null,null,{"$error":"#N/A"}]
[null,1920,-37,null,null,null,null,null,null,null,null,null,null,null,null,null,null,null,{"$error":"#N/A"}]
[null,1921,{"$f":"Race-INT(Race*B1028/RefPY+0.5)+1","v":-37},null,null,null,null,null,null,null,null,null,null,null,null,null,null,null,{"$f":"VLOOKUP(R1028,$K$3:$O$97,5,FALSE)","v":{"$error":"#N/A"}}]
[null,{"$f":"B1028+1","v":1922},-37,null,null,null,null,null,null,null,null,null,null,null,null,null,null,null,{"$error":"#N/A"}]
[null,1923,-38,null,null,null,null,null,null,null,null,null,null,null,null,null,null,null,{"$error":"#N/A"}]
[null,1924,-38,null,null,null,null,null,null,null,null,null,null,null,null,null,null,null,{"$error":"#N/A"}]
[null,1925,-38,null,null,null,null,null,null,null,null,null,null,null,null,null,null,null,{"$error":"#N/A"}]
[null,1926,-38,null,null,null,null,null,null,null,null,null,null,null,null,null,null,null,{"$error":"#N/A"}]
[null,1927,-38,null,null,null,null,null,null,null,null,null,null,null,null,null,null,null,{"$error":"#N/A"}]
[null,1928,-38,null,null,null,null,null,null,null,null,null,null,null,null,null,null,null,{"$error":"#N/A"}]
[null,1929,-38,null,null,null,null,null,null,null,null,null,null,null,null,null,null,null,{"$error":"#N/A"}]
[null,1930,-38,null,null,null,null,null,null,null,null,null,null,null,null,null,null,null,{"$error":"#N/A"}]
[null,1931,-38,null,null,null,null,null,null,null,null,null,null,null,null,null,null,null,{"$error":"#N/A"}]
[null,1932,-38,null,null,null,null,null,null,null,null,null,null,null,null,null,null,null,{"$error":"#N/A"}]
[null,1933,-38,null,null,null,null,null,null,null,null,null,null,null,null,null,null,null,{"$error":"#N/A"}]
[null,1934,-38,null,null,null,null,null,null,null,null,null,null,null,null,null,null,null,{"$error":"#N/A"}]
[null,1935,-38,null,null,null,null,null,null,null,null,null,null,null,null,null,null,null,{"$error":"#N/A"}]
[null,1936,-38,null,null,null,null,null,null,null,null,null,null,null,null,null,null,null,{"$error":"#N/A"}]
[null,1937,-39,null,null,null,null,null,null,null,null,null,null,null,null,null,null,null,{"$error":"#N/A"}]
[null,1938,-39,null,null,null,null,null,null,null,null,null,null,null,null,null,null,null,{"$error":"#N/A"}]
[null,1939,-39,null,null,null,null,null,null,null,null,null,null,null,null,null,null,null,{"$error":"#N/A"}]
[null,1940,-39,null,null,null,null,null,null,null,null,null,null,null,null,null,null,null,{"$error":"#N/A"}]
[null,1941,-39,null,null,null,null,null,null,null,null,null,null,null,null,null,null,null,{"$error":"#N/A"}]
[null,1942,-39,null,null,null,null,null,null,null,null,null,null,null,null,null,null,null,{"$error":"#N/A"}]
[null,1943,-39,null,null,null,null,null,null,null,null,null,null,null,null,null,null,null,{"$error":"#N/A"}]
[null,1944,-39,null,null,null,null,null,null,null,null,null,null,null,null,null,null,null,{"$error":"#N/A"}]
[null,1945,-39,null,null,null,null,null,null,null,null,null,null,null,null,null,null,null,{"$error":"#N/A"}]
[null,1946,-39,null,null,null,null,null,null,null,null,null,null,null,null,null,null,null,{"$error":"#N/A"}]
[null,1947,-39,null,null,null,null,null,null,null,null,null,null,null,null,null,null,null,{"$error":"#N/A"}]
[null,1948,-39,null,null,null,null,null,null,null,null,null,null,null,null,null,null,null,{"$error":"#N/A"}]
[null,1949,-39,null,null,null,null,null,null,null,null,null,null,null,null,null,null,null,{"$error":"#N/A"}]
[null,1950,-39,null,null,null,null,null,null,null,null,null,null,null,null,null,null,null,{"$error":"#N/A"}]
[null,1951,-40,null,null,null,null,null,null,null,null,null,null,null,null,null,null,null,{"$error":"#N/A"}]
[null,1952,-40,null,null,null,null,null,null,null,null,null,null,null,null,null,null,null,{"$error":"#N/A"}]
[null,1953,-40,null,null,null,null,null,null,null,null,null,null,null,null,null,null,null,{"$error":"#N/A"}]
[null,1954,-40,null,null,null,null,null,null,null,null,null,null,null,null,null,null,null,{"$error":"#N/A"}]
[null,1955,-40,null,null,null,null,null,null,null,null,null,null,null,null,null,null,null,{"$error":"#N/A"}]
[null,1956,-40,null,null,null,null,null,null,null,null,null,null,null,null,null,null,null,{"$error":"#N/A"}]
[null,1957,-40,null,null,null,null,null,null,null,null,null,null,null,null,null,null,null,{"$error":"#N/A"}]
[null,1958,-40,null,null,null,null,null,null,null,null,null,null,null,null,null,null,null,{"$error":"#N/A"}]
[null,1959,-40,null,null,null,null,null,null,null,null,null,null,null,null,null,null,null,{"$error":"#N/A"}]
[null,1960,-40,null,null,null,null,null,null,null,null,null,null,null,null,null,null,null,{"$error":"#N/A"}]
[null,1961,-40,null,null,null,null,null,null,null,null,null,null,null,null,null,null,null,{"$error":"#N/A"}]
[null,1962,-40,null,null,null,null,null,null,null,null,null,null,null,null,null,null,null,{"$error":"#N/A"}]
[null,1963,-40,null,null,null,null,null,null,null,null,null,null,null,null,null,null,null,{"$error":"#N/A"}]
[null,1964,-40,null,null,null,null,null,null,null,null,null,null,null,null,null,null,null,{"$error":"#N/A"}]
[null,1965,-41,null,null,null,null,null,null,null,null,null,null,null,null,null,null,null,{"$error":"#N/A"}]
[null,1966,-41,null,null,null,null,null,null,null,null,null,null,null,null,null,null,null,{"$error":"#N/A"}]
[null,1967,-41,null,null,null,null,null,null,null,null,null,null,null,null,null,null,null,{"$error":"#N/A"}]
[null,1968,-41,null,null,null,null,null,null,null,null,null,null,null,null,null,null,null,{"$error":"#N/A"}]
[null,1969,-41,null,null,null,null,null,null,null,null,null,null,null,null,null,null,null,{"$error":"#N/A"}]
[null,1970,-41,null,null,null,null,null,null,null,null,null,null,null,null,null,null,null,{"$error":"#N/A"}]
[null,1971,-41,null,null,null,null,null,null,null,null,null,null,null,null,null,null,null,{"$error":"#N/A"}]
[null,1972,-41,null,null,null,null,null,null,null,null,null,null,null,null,null,null,null,{"$error":"#N/A"}]
[null,1973,-41,null,null,null,null,null,null,null,null,null,null,null,null,null,null,null,{"$error":"#N/A"}]
[null,1974,-41,null,null,null,null,null,null,null,null,null,null,null,null,null,null,null,{"$error":"#N/A"}]
[null,1975,-41,null,null,null,null,null,null,null,null,null,null,null,null,null,null,null,{"$error":"#N/A"}]
[null,1976,-41,null,null,null,null,null,null,null,null,null,null,null,null,null,null,null,{"$error":"#N/A"}]
[null,1977,-41,null,null,null,null,null,null,null,null,null,null,null,null,null,null,null,{"$error":"#N/A"}]
[null,1978,-42,null,null,null,null,null,null,null,null,null,null,null,null,null,null,null,{"$error":"#N/A"}]
[null,1979,-42,null,null,null,null,null,null,null,null,null,null,null,null,null,null,null,{"$error":"#N/A"}]
[null,1980,-42,null,null,null,null,null,null,null,null,null,null,null,null,null,null,null,{"$error":"#N/A"}]
[null,1981,-42,null,null,null,null,null,null,null,null,null,null,null,null,null,null,null,{"$error":"#N/A"}]
[null,1982,-42,null,null,null,null,null,null,null,null,null,null,null,null,null,null,null,{"$error":"#N/A"}]
[null,1983,-42,null,null,null,null,null,null,null,null,null,null,null,null,null,null,null,{"$error":"#N/A"}]
[null,1984,-42,null,null,null,null,null,null,null,null,null,null,null,null,null,null,null,{"$error":"#N/A"}]
[null,1985,{"$f":"Race-INT(Race*B1092/RefPY+0.5)+1","v":-42},null,null,null,null,null,null,null,null,null,null,null,null,null,null,null,{"$f":"VLOOKUP(R1092,$K$3:$O$97,5,FALSE)","v":{"$error":"#N/A"}}]
[null,{"$f":"B1092+1","v":1986},-42,null,null,null,null,null,null,null,null,null,null,null,null,null,null,null,{"$error":"#N/A"}]
[null,1987,-42,null,null,null,null,null,null,null,null,null,null,null,null,null,null,null,{"$error":"#N/A"}]
[null,1988,-42,null,null,null,null,null,null,null,null,null,null,null,null,null,null,null,{"$error":"#N/A"}]
[null,1989,-42,null,null,null,null,null,null,null,null,null,null,null,null,null,null,null,{"$error":"#N/A"}]
[null,1990,-42,null,null,null,null,null,null,null,null,null,null,null,null,null,null,null,{"$error":"#N/A"}]
[null,1991,-42,null,null,null,null,null,null,null,null,null,null,null,null,null,null,null,{"$error":"#N/A"}]
[null,1992,-43,null,null,null,null,null,null,null,null,null,null,null,null,null,null,null,{"$error":"#N/A"}]
[null,1993,-43,null,null,null,null,null,null,null,null,null,null,null,null,null,null,null,{"$error":"#N/A"}]
[null,1994,-43,null,null,null,null,null,null,null,null,null,null,null,null,null,null,null,{"$error":"#N/A"}]
[null,1995,-43,null,null,null,null,null,null,null,null,null,null,null,null,null,null,null,{"$error":"#N/A"}]
[null,1996,-43,null,null,null,null,null,null,null,null,null,null,null,null,null,null,null,{"$error":"#N/A"}]
[null,1997,-43,null,null,null,null,null,null,null,null,null,null,null,null,null,null,null,{"$error":"#N/A"}]
[null,1998,-43,null,null,null,null,null,null,null,null,null,null,null,null,null,null,null,{"$error":"#N/A"}]
[null,1999,-43,null,null,null,null,null,null,null,null,null,null,null,null,null,null,null,{"$error":"#N/A"}]
[null,2000,-43,null,null,null,null,null,null,null,null,null,null,null,null,null,null,null,{"$error":"#N/A"}]
[null,2001,-43,null,null,null,null,null,null,null,null,null,null,null,null,null,null,null,{"$error":"#N/A"}]
[null,2002,-43,null,null,null,null,null,null,null,null,null,null,null,null,null,null,null,{"$error":"#N/A"}]
[null,2003,-43,null,null,null,null,null,null,null,null,null,null,null,null,null,null,null,{"$error":"#N/A"}]
[null,2004,-43,null,null,null,null,null,null,null,null,null,null,null,null,null,null,null,{"$error":"#N/A"}]
[null,2005,-43,null,null,null,null,null,null,null,null,null,null,null,null,null,null,null,{"$error":"#N/A"}]
[null,2006,-44,null,null,null,null,null,null,null,null,null,null,null,null,null,null,null,{"$error":"#N/A"}]
[null,2007,-44,null,null,null,null,null,null,null,null,null,null,null,null,null,null,null,{"$error":"#N/A"}]
[null,2008,-44,null,null,null,null,null,null,null,null,null,null,null,null,null,null,null,{"$error":"#N/A"}]
[null,2009,-44,null,null,null,null,null,null,null,null,null,null,null,null,null,null,null,{"$error":"#N/A"}]
[null,2010,-44,null,null,null,null,null,null,null,null,null,null,null,null,null,null,null,{"$error":"#N/A"}]
[null,2011,-44,null,null,null,null,null,null,null,null,null,null,null,null,null,null,null,{"$error":"#N/A"}]
[null,2012,-44,null,null,null,null,null,null,null,null,null,null,null,null,null,null,null,{"$error":"#N/A"}]
[null,2013,-44,null,null,null,null,null,null,null,null,null,null,null,null,null,null,null,{"$error":"#N/A"}]
[null,2014,-44,null,null,null,null,null,null,null,null,null,null,null,null,null,null,null,{"$error":"#N/A"}]
[null,2015,-44,null,null,null,null,null,null,null,null,null,null,null,null,null,null,null,{"$error":"#N/A"}]
[null,2016,-44,null,null,null,null,null,null,null,null,null,null,null,null,null,null,null,{"$error":"#N/A"}]
[null,2017,-44,null,null,null,null,null,null,null,null,null,null,null,null,null,null,null,{"$error":"#N/A"}]
[null,2018,-44,null,null,null,null,null,null,null,null,null,null,null,null,null,null,null,{"$error":"#N/A"}]
[null,2019,-44,null,null,null,null,null,null,null,null,null,null,null,null,null,null,null,{"$error":"#N/A"}]
[null,2020,-45,null,null,null,null,null,null,null,null,null,null,null,null,null,null,null,{"$error":"#N/A"}]
[null,2021,-45,null,null,null,null,null,null,null,null,null,null,null,null,null,null,null,{"$error":"#N/A"}]
[null,2022,-45,null,null,null,null,null,null,null,null,null,null,null,null,null,null,null,{"$error":"#N/A"}]
[null,2023,-45,null,null,null,null,null,null,null,null,null,null,null,null,null,null,null,{"$error":"#N/A"}]
[null,2024,-45,null,null,null,null,null,null,null,null,null,null,null,null,null,null,null,{"$error":"#N/A"}]
[null,2025,-45,null,null,null,null,null,null,null,null,null,null,null,null,null,null,null,{"$error":"#N/A"}]
[null,2026,-45,null,null,null,null,null,null,null,null,null,null,null,null,null,null,null,{"$error":"#N/A"}]
[null,2027,-45,null,null,null,null,null,null,null,null,null,null,null,null,null,null,null,{"$error":"#N/A"}]
[null,2028,-45,null,null,null,null,null,null,null,null,null,null,null,null,null,null,null,{"$error":"#N/A"}]
[null,2029,-45,null,null,null,null,null,null,null,null,null,null,null,null,null,null,null,{"$error":"#N/A"}]
[null,2030,-45,null,null,null,null,null,null,null,null,null,null,null,null,null,null,null,{"$error":"#N/A"}]
[null,2031,-45,null,null,null,null,null,null,null,null,null,null,null,null,null,null,null,{"$error":"#N/A"}]
[null,2032,-45,null,null,null,null,null,null,null,null,null,null,null,null,null,null,null,{"$error":"#N/A"}]
[null,2033,-45,null,null,null,null,null,null,null,null,null,null,null,null,null,null,null,{"$error":"#N/A"}]
[null,2034,-46,null,null,null,null,null,null,null,null,null,null,null,null,null,null,null,{"$error":"#N/A"}]
[null,2035,-46,null,null,null,null,null,null,null,null,null,null,null,null,null,null,null,{"$error":"#N/A"}]
[null,2036,-46,null,null,null,null,null,null,null,null,null,null,null,null,null,null,null,{"$error":"#N/A"}]
[null,2037,-46,null,null,null,null,null,null,null,null,null,null,null,null,null,null,null,{"$error":"#N/A"}]
[null,2038,-46,null,null,null,null,null,null,null,null,null,null,null,null,null,null,null,{"$error":"#N/A"}]
[null,2039,-46,null,null,null,null,null,null,null,null,null,null,null,null,null,null,null,{"$error":"#N/A"}]
[null,2040,-46,null,null,null,null,null,null,null,null,null,null,null,null,null,null,null,{"$error":"#N/A"}]
[null,2041,-46,null,null,null,null,null,null,null,null,null,null,null,null,null,null,null,{"$error":"#N/A"}]
[null,2042,-46,null,null,null,null,null,null,null,null,null,null,null,null,null,null,null,{"$error":"#N/A"}]
[null,2043,-46,null,null,null,null,null,null,null,null,null,null,null,null,null,null,null,{"$error":"#N/A"}]
[null,2044,-46,null,null,null,null,null,null,null,null,null,null,null,null,null,null,null,{"$error":"#N/A"}]
[null,2045,-46,null,null,null,null,null,null,null,null,null,null,null,null,null,null,null,{"$error":"#N/A"}]
[null,2046,-46,null,null,null,null,null,null,null,null,null,null,null,null,null,null,null,{"$error":"#N/A"}]
[null,2047,-46,null,null,null,null,null,null,null,null,null,null,null,null,null,null,null,{"$error":"#N/A"}]
[null,2048,-47,null,null,null,null,null,null,null,null,null,null,null,null,null,null,null,{"$error":"#N/A"}]
[null,2049,{"$f":"Race-INT(Race*B1156/RefPY+0.5)+1","v":-47},null,null,null,null,null,null,null,null,null,null,null,null,null,null,null,{"$f":"VLOOKUP(R1156,$K$3:$O$97,5,FALSE)","v":{"$error":"#N/A"}}]
[null,{"$f":"B1156+1","v":2050},-47,null,null,null,null,null,null,null,null,null,null,null,null,null,null,null,{"$error":"#N/A"}]
[null,2051,-47,null,null,null,null,null,null,null,null,null,null,null,null,null,null,null,{"$error":"#N/A"}]
[null,2052,-47,null,null,null,null,null,null,null,null,null,null,null,null,null,null,null,{"$error":"#N/A"}]
[null,2053,-47,null,null,null,null,null,null,null,null,null,null,null,null,null,null,null,{"$error":"#N/A"}]
[null,2054,-47,null,null,null,null,null,null,null,null,null,null,null,null,null,null,null,{"$error":"#N/A"}]
[null,2055,-47,null,null,null,null,null,null,null,null,null,null,null,null,null,null,null,{"$error":"#N/A"}]
[null,2056,-47,null,null,null,null,null,null,null,null,null,null,null,null,null,null,null,{"$error":"#N/A"}]
[null,2057,-47,null,null,null,null,null,null,null,null,null,null,null,null,null,null,null,{"$error":"#N/A"}]
[null,2058,-47,null,null,null,null,null,null,null,null,null,null,null,null,null,null,null,{"$error":"#N/A"}]
[null,2059,-47,null,null,null,null,null,null,null,null,null,null,null,null,null,null,null,{"$error":"#N/A"}]
[null,2060,-47,null,null,null,null,null,null,null,null,null,null,null,null,null,null,null,{"$error":"#N/A"}]
[null,2061,-47,null,null,null,null,null,null,null,null,null,null,null,null,null,null,null,{"$error":"#N/A"}]
[null,2062,-48,null,null,null,null,null,null,null,null,null,null,null,null,null,null,null,{"$error":"#N/A"}]
[null,2063,-48,null,null,null,null,null,null,null,null,null,null,null,null,null,null,null,{"$error":"#N/A"}]
[null,2064,-48,null,null,null,null,null,null,null,null,null,null,null,null,null,null,null,{"$error":"#N/A"}]
[null,2065,-48,null,null,null,null,null,null,null,null,null,null,null,null,null,null,null,{"$error":"#N/A"}]
[null,2066,-48,null,null,null,null,null,null,null,null,null,null,null,null,null,null,null,{"$error":"#N/A"}]
[null,2067,-48,null,null,null,null,null,null,null,null,null,null,null,null,null,null,null,{"$error":"#N/A"}]
[null,2068,-48,null,null,null,null,null,null,null,null,null,null,null,null,null,null,null,{"$error":"#N/A"}]
[null,2069,-48,null,null,null,null,null,null,null,null,null,null,null,null,null,null,null,{"$error":"#N/A"}]
[null,2070,-48,null,null,null,null,null,null,null,null,null,null,null,null,null,null,null,{"$error":"#N/A"}]
[null,2071,-48,null,null,null,null,null,null,null,null,null,null,null,null,null,null,null,{"$error":"#N/A"}]
[null,2072,-48,null,null,null,null,null,null,null,null,null,null,null,null,null,null,null,{"$error":"#N/A"}]
[null,2073,-48,null,null,null,null,null,null,null,null,null,null,null,null,null,null,null,{"$error":"#N/A"}]
[null,2074,-48,null,null,null,null,null,null,null,null,null,null,null,null,null,null,null,{"$error":"#N/A"}]
[null,2075,-48,null,null,null,null,null,null,null,null,null,null,null,null,null,null,null,{"$error":"#N/A"}]
[null,2076,-49,null,null,null,null,null,null,null,null,null,null,null,null,null,null,null,{"$error":"#N/A"}]
[null,2077,-49,null,null,null,null,null,null,null,null,null,null,null,null,null,null,null,{"$error":"#N/A"}]
[null,2078,-49,null,null,null,null,null,null,null,null,null,null,null,null,null,null,null,{"$error":"#N/A"}]
[null,2079,-49,null,null,null,null,null,null,null,null,null,null,null,null,null,null,null,{"$error":"#N/A"}]
[null,2080,-49,null,null,null,null,null,null,null,null,null,null,null,null,null,null,null,{"$error":"#N/A"}]
[null,2081,-49,null,null,null,null,null,null,null,null,null,null,null,null,null,null,null,{"$error":"#N/A"}]
[null,2082,-49,null,null,null,null,null,null,null,null,null,null,null,null,null,null,null,{"$error":"#N/A"}]
[null,2083,-49,null,null,null,null,null,null,null,null,null,null,null,null,null,null,null,{"$error":"#N/A"}]
[null,2084,-49,null,null,null,null,null,null,null,null,null,null,null,null,null,null,null,{"$error":"#N/A"}]
[null,2085,-49,null,null,null,null,null,null,null,null,null,null,null,null,null,null,null,{"$error":"#N/A"}]
[null,2086,-49,null,null,null,null,null,null,null,null,null,null,null,null,null,null,null,{"$error":"#N/A"}]
[null,2087,-49,null,null,null,null,null,null,null,null,null,null,null,null,null,null,null,{"$error":"#N/A"}]
[null,2088,-49,null,null,null,null,null,null,null,null,null,null,null,null,null,null,null,{"$error":"#N/A"}]
[null,2089,-50,null,null,null,null,null,null,null,null,null,null,null,null,null,null,null,{"$error":"#N/A"}]
[null,2090,-50,null,null,null,null,null,null,null,null,null,null,null,null,null,null,null,{"$error":"#N/A"}]
[null,2091,-50,null,null,null,null,null,null,null,null,null,null,null,null,null,null,null,{"$error":"#N/A"}]
[null,2092,-50,null,null,null,null,null,null,null,null,null,null,null,null,null,null,null,{"$error":"#N/A"}]
[null,2093,-50,null,null,null,null,null,null,null,null,null,null,null,null,null,null,null,{"$error":"#N/A"}]
[null,2094,-50,null,null,null,null,null,null,null,null,null,null,null,null,null,null,null,{"$error":"#N/A"}]
[null,2095,-50,null,null,null,null,null,null,null,null,null,null,null,null,null,null,null,{"$error":"#N/A"}]
[null,2096,-50,null,null,null,null,null,null,null,null,null,null,null,null,null,null,null,{"$error":"#N/A"}]
[null,2097,-50,null,null,null,null,null,null,null,null,null,null,null,null,null,null,null,{"$error":"#N/A"}]
[null,2098,-50,null,null,null,null,null,null,null,null,null,null,null,null,null,null,null,{"$error":"#N/A"}]
[null,2099,-50,null,null,null,null,null,null,null,null,null,null,null,null,null,null,null,{"$error":"#N/A"}]
[null,2100,-50,null,null,null,null,null,null,null,null,null,null,null,null,null,null,null,{"$error":"#N/A"}]
[null,2101,-50,null,null,null,null,null,null,null,null,null,null,null,null,null,null,null,{"$error":"#N/A"}]
[null,2102,-50,null,null,null,null,null,null,null,null,null,null,null,null,null,null,null,{"$error":"#N/A"}]
[null,2103,-51,null,null,null,null,null,null,null,null,null,null,null,null,null,null,null,{"$error":"#N/A"}]
[null,2104,-51,null,null,null,null,null,null,null,null,null,null,null,null,null,null,null,{"$error":"#N/A"}]
[null,2105,-51,null,null,null,null,null,null,null,null,null,null,null,null,null,null,null,{"$error":"#N/A"}]
[null,2106,-51,null,null,null,null,null,null,null,null,null,null,null,null,null,null,null,{"$error":"#N/A"}]
[null,2107,-51,null,null,null,null,null,null,null,null,null,null,null,null,null,null,null,{"$error":"#N/A"}]
[null,2108,-51,null,null,null,null,null,null,null,null,null,null,null,null,null,null,null,{"$error":"#N/A"}]
[null,2109,-51,null,null,null,null,null,null,null,null,null,null,null,null,null,null,null,{"$error":"#N/A"}]
[null,2110,-51,null,null,null,null,null,null,null,null,null,null,null,null,null,null,null,{"$error":"#N/A"}]
[null,2111,-51,null,null,null,null,null,null,null,null,null,null,null,null,null,null,null,{"$error":"#N/A"}]
[null,2112,-51,null,null,null,null,null,null,null,null,null,null,null,null,null,null,null,{"$error":"#N/A"}]
[null,2113,{"$f":"Race-INT(Race*B1220/RefPY+0.5)+1","v":-51},null,null,null,null,null,null,null,null,null,null,null,null,null,null,null,{"$f":"VLOOKUP(R1220,$K$3:$O$97,5,FALSE)","v":{"$error":"#N/A"}}]
[null,{"$f":"B1220+1","v":2114},-51,null,null,null,null,null,null,null,null,null,null,null,null,null,null,null,{"$error":"#N/A"}]
[null,2115,-51,null,null,null,null,null,null,null,null,null,null,null,null,null,null,null,{"$error":"#N/A"}]
[null,2116,-51,null,null,null,null,null,null,null,null,null,null,null,null,null,null,null,{"$error":"#N/A"}]
[null,2117,-52,null,null,null,null,null,null,null,null,null,null,null,null,null,null,null,{"$error":"#N/A"}]
[null,2118,-52,null,null,null,null,null,null,null,null,null,null,null,null,null,null,null,{"$error":"#N/A"}]
[null,2119,-52,null,null,null,null,null,null,null,null,null,null,null,null,null,null,null,{"$error":"#N/A"}]
[null,2120,-52,null,null,null,null,null,null,null,null,null,null,null,null,null,null,null,{"$error":"#N/A"}]
[null,2121,-52,null,null,null,null,null,null,null,null,null,null,null,null,null,null,null,{"$error":"#N/A"}]
[null,2122,-52,null,null,null,null,null,null,null,null,null,null,null,null,null,null,null,{"$error":"#N/A"}]
[null,2123,-52,null,null,null,null,null,null,null,null,null,null,null,null,null,null,null,{"$error":"#N/A"}]
[null,2124,-52,null,null,null,null,null,null,null,null,null,null,null,null,null,null,null,{"$error":"#N/A"}]
[null,2125,-52,null,null,null,null,null,null,null,null,null,null,null,null,null,null,null,{"$error":"#N/A"}]
[null,2126,-52,null,null,null,null,null,null,null,null,null,null,null,null,null,null,null,{"$error":"#N/A"}]
[null,2127,-52,null,null,null,null,null,null,null,null,null,null,null,null,null,null,null,{"$error":"#N/A"}]
[null,2128,-52,null,null,null,null,null,null,null,null,null,null,null,null,null,null,null,{"$error":"#N/A"}]
[null,2129,-52,null,null,null,null,null,null,null,null,null,null,null,null,null,null,null,{"$error":"#N/A"}]
[null,2130,-52,null,null,null,null,null,null,null,null,null,null,null,null,null,null,null,{"$error":"#N/A"}]
[null,2131,-53,null,null,null,null,null,null,null,null,null,null,null,null,null,null,null,{"$error":"#N/A"}]
[null,2132,-53,null,null,null,null,null,null,null,null,null,null,null,null,null,null,null,{"$error":"#N/A"}]
[null,2133,-53,null,null,null,null,null,null,null,null,null,null,null,null,null,null,null,{"$error":"#N/A"}]
[null,2134,-53,null,null,null,null,null,null,null,null,null,null,null,null,null,null,null,{"$error":"#N/A"}]
[null,2135,-53,null,null,null,null,null,null,null,null,null,null,null,null,null,null,null,{"$error":"#N/A"}]
[null,2136,-53,null,null,null,null,null,null,null,null,null,null,null,null,null,null,null,{"$error":"#N/A"}]
[null,2137,-53,null,null,null,null,null,null,null,null,null,null,null,null,null,null,null,{"$error":"#N/A"}]
[null,2138,-53,null,null,null,null,null,null,null,null,null,null,null,null,null,null,null,{"$error":"#N/A"}]
[null,2139,-53,null,null,null,null,null,null,null,null,null,null,null,null,null,null,null,{"$error":"#N/A"}]
[null,2140,-53,null,null,null,null,null,null,null,null,null,null,null,null,null,null,null,{"$error":"#N/A"}]
[null,2141,-53,null,null,null,null,null,null,null,null,null,null,null,null,null,null,null,{"$error":"#N/A"}]
[null,2142,-53,null,null,null,null,null,null,null,null,null,null,null,null,null,null,null,{"$error":"#N/A"}]
[null,2143,-53,null,null,null,null,null,null,null,null,null,null,null,null,null,null,null,{"$error":"#N/A"}]
[null,2144,-53,null,null,null,null,null,null,null,null,null,null,null,null,null,null,null,{"$error":"#N/A"}]
[null,2145,-54,null,null,null,null,null,null,null,null,null,null,null,null,null,null,null,{"$error":"#N/A"}]
[null,2146,-54,null,null,null,null,null,null,null,null,null,null,null,null,null,null,null,{"$error":"#N/A"}]
[null,2147,-54,null,null,null,null,null,null,null,null,null,null,null,null,null,null,null,{"$error":"#N/A"}]
[null,2148,-54,null,null,null,null,null,null,null,null,null,null,null,null,null,null,null,{"$error":"#N/A"}]
[null,2149,-54,null,null,null,null,null,null,null,null,null,null,null,null,null,null,null,{"$error":"#N/A"}]
[null,2150,-54,null,null,null,null,null,null,null,null,null,null,null,null,null,null,null,{"$error":"#N/A"}]
[null,2151,-54,null,null,null,null,null,null,null,null,null,null,null,null,null,null,null,{"$error":"#N/A"}]
[null,2152,-54,null,null,null,null,null,null,null,null,null,null,null,null,null,null,null,{"$error":"#N/A"}]
[null,2153,-54,null,null,null,null,null,null,null,null,null,null,null,null,null,null,null,{"$error":"#N/A"}]
[null,2154,-54,null,null,null,null,null,null,null,null,null,null,null,null,null,null,null,{"$error":"#N/A"}]
[null,2155,-54,null,null,null,null,null,null,null,null,null,null,null,null,null,null,null,{"$error":"#N/A"}]
[null,2156,-54,null,null,null,null,null,null,null,null,null,null,null,null,null,null,null,{"$error":"#N/A"}]
[null,2157,-54,null,null,null,null,null,null,null,null,null,null,null,null,null,null,null,{"$error":"#N/A"}]
[null,2158,-54,null,null,null,null,null,null,null,null,null,null,null,null,null,null,null,{"$error":"#N/A"}]
[null,2159,-55,null,null,null,null,null,null,null,null,null,null,null,null,null,null,null,{"$error":"#N/A"}]
[null,2160,-55,null,null,null,null,null,null,null,null,null,null,null,null,null,null,null,{"$error":"#N/A"}]
[null,2161,-55,null,null,null,null,null,null,null,null,null,null,null,null,null,null,null,{"$error":"#N/A"}]
[null,2162,-55,null,null,null,null,null,null,null,null,null,null,null,null,null,null,null,{"$error":"#N/A"}]
[null,2163,-55,null,null,null,null,null,null,null,null,null,null,null,null,null,null,null,{"$error":"#N/A"}]
[null,2164,-55,null,null,null,null,null,null,null,null,null,null,null,null,null,null,null,{"$error":"#N/A"}]
[null,2165,-55,null,null,null,null,null,null,null,null,null,null,null,null,null,null,null,{"$error":"#N/A"}]
[null,2166,-55,null,null,null,null,null,null,null,null,null,null,null,null,null,null,null,{"$error":"#N/A"}]
[null,2167,-55,null,null,null,null,null,null,null,null,null,null,null,null,null,null,null,{"$error":"#N/A"}]
[null,2168,-55,null,null,null,null,null,null,null,null,null,null,null,null,null,null,null,{"$error":"#N/A"}]
[null,2169,-55,null,null,null,null,null,null,null,null,null,null,null,null,null,null,null,{"$error":"#N/A"}]
[null,2170,-55,null,null,null,null,null,null,null,null,null,null,null,null,null,null,null,{"$error":"#N/A"}]
[null,2171,-55,null,null,null,null,null,null,null,null,null,null,null,null,null,null,null,{"$error":"#N/A"}]
[null,2172,-55,null,null,null,null,null,null,null,null,null,null,null,null,null,null,null,{"$error":"#N/A"}]
[null,2173,-56,null,null,null,null,null,null,null,null,null,null,null,null,null,null,null,{"$error":"#N/A"}]
[null,2174,-56,null,null,null,null,null,null,null,null,null,null,null,null,null,null,null,{"$error":"#N/A"}]
[null,2175,-56,null,null,null,null,null,null,null,null,null,null,null,null,null,null,null,{"$error":"#N/A"}]
[null,2176,-56,null,null,null,null,null,null,null,null,null,null,null,null,null,null,null,{"$error":"#N/A"}]
[null,2177,{"$f":"Race-INT(Race*B1284/RefPY+0.5)+1","v":-56},null,null,null,null,null,null,null,null,null,null,null,null,null,null,null,{"$f":"VLOOKUP(R1284,$K$3:$O$97,5,FALSE)","v":{"$error":"#N/A"}}]
[null,{"$f":"B1284+1","v":2178},-56,null,null,null,null,null,null,null,null,null,null,null,null,null,null,null,{"$error":"#N/A"}]
[null,2179,-56,null,null,null,null,null,null,null,null,null,null,null,null,null,null,null,{"$error":"#N/A"}]
[null,2180,-56,null,null,null,null,null,null,null,null,null,null,null,null,null,null,null,{"$error":"#N/A"}]
[null,2181,-56,null,null,null,null,null,null,null,null,null,null,null,null,null,null,null,{"$error":"#N/A"}]
[null,2182,-56,null,null,null,null,null,null,null,null,null,null,null,null,null,null,null,{"$error":"#N/A"}]
[null,2183,-56,null,null,null,null,null,null,null,null,null,null,null,null,null,null,null,{"$error":"#N/A"}]
[null,2184,-56,null,null,null,null,null,null,null,null,null,null,null,null,null,null,null,{"$error":"#N/A"}]
[null,2185,-56,null,null,null,null,null,null,null,null,null,null,null,null,null,null,null,{"$error":"#N/A"}]
[null,2186,-56,null,null,null,null,null,null,null,null,null,null,null,null,null,null,null,{"$error":"#N/A"}]
[null,2187,-57,null,null,null,null,null,null,null,null,null,null,null,null,null,null,null,{"$error":"#N/A"}]
[null,2188,-57,null,null,null,null,null,null,null,null,null,null,null,null,null,null,null,{"$error":"#N/A"}]
[null,2189,-57,null,null,null,null,null,null,null,null,null,null,null,null,null,null,null,{"$error":"#N/A"}]
[null,2190,-57,null,null,null,null,null,null,null,null,null,null,null,null,null,null,null,{"$error":"#N/A"}]
[null,2191,-57,null,null,null,null,null,null,null,null,null,null,null,null,null,null,null,{"$error":"#N/A"}]
[null,2192,-57,null,null,null,null,null,null,null,null,null,null,null,null,null,null,null,{"$error":"#N/A"}]
[null,2193,-57,null,null,null,null,null,null,null,null,null,null,null,null,null,null,null,{"$error":"#N/A"}]
[null,2194,-57,null,null,null,null,null,null,null,null,null,null,null,null,null,null,null,{"$error":"#N/A"}]
[null,2195,-57,null,null,null,null,null,null,null,null,null,null,null,null,null,null,null,{"$error":"#N/A"}]
[null,2196,-57,null,null,null,null,null,null,null,null,null,null,null,null,null,null,null,{"$error":"#N/A"}]
[null,2197,-57,null,null,null,null,null,null,null,null,null,null,null,null,null,null,null,{"$error":"#N/A"}]
[null,2198,-57,null,null,null,null,null,null,null,null,null,null,null,null,null,null,null,{"$error":"#N/A"}]
[null,2199,-57,null,null,null,null,null,null,null,null,null,null,null,null,null,null,null,{"$error":"#N/A"}]
[null,2200,-58,null,null,null,null,null,null,null,null,null,null,null,null,null,null,null,{"$error":"#N/A"}]
[null,2201,-58,null,null,null,null,null,null,null,null,null,null,null,null,null,null,null,{"$error":"#N/A"}]
[null,2202,-58,null,null,null,null,null,null,null,null,null,null,null,null,null,null,null,{"$error":"#N/A"}]
[null,2203,-58,null,null,null,null,null,null,null,null,null,null,null,null,null,null,null,{"$error":"#N/A"}]
[null,2204,-58,null,null,null,null,null,null,null,null,null,null,null,null,null,null,null,{"$error":"#N/A"}]
[null,2205,-58,null,null,null,null,null,null,null,null,null,null,null,null,null,null,null,{"$error":"#N/A"}]
[null,2206,-58,null,null,null,null,null,null,null,null,null,null,null,null,null,null,null,{"$error":"#N/A"}]
[null,2207,-58,null,null,null,null,null,null,null,null,null,null,null,null,null,null,null,{"$error":"#N/A"}]
[null,2208,-58,null,null,null,null,null,null,null,null,null,null,null,null,null,null,null,{"$error":"#N/A"}]
[null,2209,-58,null,null,null,null,null,null,null,null,null,null,null,null,null,null,null,{"$error":"#N/A"}]
[null,2210,-58,null,null,null,null,null,null,null,null,null,null,null,null,null,null,null,{"$error":"#N/A"}]
[null,2211,-58,null,null,null,null,null,null,null,null,null,null,null,null,null,null,null,{"$error":"#N/A"}]
[null,2212,-58,null,null,null,null,null,null,null,null,null,null,null,null,null,null,null,{"$error":"#N/A"}]
[null,2213,-58,null,null,null,null,null,null,null,null,null,null,null,null,null,null,null,{"$error":"#N/A"}]
[null,2214,-59,null,null,null,null,null,null,null,null,null,null,null,null,null,null,null,{"$error":"#N/A"}]
[null,2215,-59,null,null,null,null,null,null,null,null,null,null,null,null,null,null,null,{"$error":"#N/A"}]
[null,2216,-59,null,null,null,null,null,null,null,null,null,null,null,null,null,null,null,{"$error":"#N/A"}]
[null,2217,-59,null,null,null,null,null,null,null,null,null,null,null,null,null,null,null,{"$error":"#N/A"}]
[null,2218,-59,null,null,null,null,null,null,null,null,null,null,null,null,null,null,null,{"$error":"#N/A"}]
[null,2219,-59,null,null,null,null,null,null,null,null,null,null,null,null,null,null,null,{"$error":"#N/A"}]
[null,2220,-59,null,null,null,null,null,null,null,null,null,null,null,null,null,null,null,{"$error":"#N/A"}]
[null,2221,-59,null,null,null,null,null,null,null,null,null,null,null,null,null,null,null,{"$error":"#N/A"}]
[null,2222,-59,null,null,null,null,null,null,null,null,null,null,null,null,null,null,null,{"$error":"#N/A"}]
[null,2223,-59,null,null,null,null,null,null,null,null,null,null,null,null,null,null,null,{"$error":"#N/A"}]

{"sheet":"Changes","index":4,"n_rows":41,"n_cols":3,"rows_kept":41,"cut":false,"hidden":false,"merged":[]}
[]
["2013-10-01",null,"Column C in sheet PY DATA.  (Neil)"]
[null,null,"The method used to determine the group numbers in Column C from the group numbers in column B was not valid at the extremes of the range."]
[null,null,"For a race of realistic settings this made no difference in practice."]
[null,null,"But a different formula is now used to calculate the group number from the PY number, which is correct for all PYs in the list."]
[]
["2013-10-01",null,"The Drop-down list for Slowest Class selection on the RACE SETUP page. Data Validation.  (Neil)"]
[null,null,"This used to be taken from an area off the right of the screen, linked to the PY list on the PY DATA sheet"]
[null,null,"The drop-down list now references the PY DATA sheet directly by referring to a named range called PYlist (In    Data - Data Validation)"]
[null,null,"PYlist is a dynamic named range. That means that as boats are added to or deleted from the list, the range changes. "]
[null,null,"This avoids having all the blank rows from lower down the list appearing in the drop-down list."]
[null,null,"Look in     Formulas - Name Manager     to see the definition of PYlist."]
[]
["2013-10-01",null,"PY DATA sheet. (Neil)"]
[null,null,"Formula in column H amended to show an X if the class is slower than RefPY and hence not in the race."]
[null,null,"Formula in Column O amended so as to not append to cell above if the cell above contains an X"]
[]
["2013-10-01",null,"RO ONLY sheet added  (Janice)"]
[]
["2014-05-01",null,"PYs updated for 2014 (Tudor PYs)"]
[]
["2015-09-01",null,"PYs updated for 2015 (Tudor PYs)"]
[]
["2016-04-01",null,"Change settings for the cell containing \"Slowest Class competing\" drop-down menu on RACE SETUP sheet.  (Neil)"]
[null,null,"(Because newer versions of Excel behave differently to old version)"]
[null,null,"The cell is now not Locked.   In DataValidation the \"Ignore blank\" option is now unticked."]
[]
["2016-05-01",null,"DISPLAY NOTICE (together with SIs) changed.  (Neil)"]
[null,null,"Group Numbers for starting are no longer used. Instead there is a START TIME OFFSET."]
[null,null,"RO ONLY sheet deleted (no longer needed)"]
[null,null,"PYs updated for 2016 (Tudor PYs)"]
[]
["2017-05-01",null,"PYs updated for 2017 (Tudor PYs)"]
["2017-07-01",null,"Some Tudor PYs updated/added"]
["2018-03-01",null,"PYs updated for 2018 (Tudor PYs)"]
["2019-04-01",null,"PYs updated for 2019 (Tudor PYs)"]
["2022-04-01",null,"PYs updated for 2022 (Tudor PYs)"]
["2023-03-01",null,"PYs updated for 2023 (Tudor PYs)"]
["2023-05-01",null,"Tudor PY for Vago XD changed from 1067 to 1068"]
["2024-05-01",null,"PYs updated for 2024 (Tudor PYs)"]
["2025-03-01",null,"PYs updated for 2025 (Tudor PYs)"]